Transaction Number,Transaction date,Invoice Date,Beneficiary ID,Beneficiary Name,Purpose of Expenditure,Local Authority Department that incurred Expenditure,Amount
12329819,12/11/2018,08/11/2018,3004123,Personal detail - redacted,Fees,Fostering and Adoption,1898
12329820,12/11/2018,08/11/2018,3000637,Personal detail - redacted,Fees,Fostering and Adoption,1110
12329825,12/11/2018,08/11/2018,3022405,Personal detail - redacted,Fees,Fostering and Adoption,2702
12329826,12/11/2018,08/11/2018,3005414,Personal detail - redacted,Fees,Fostering and Adoption,3683
12329829,12/11/2018,08/11/2018,3001239,Personal detail - redacted,Fees,Fostering and Adoption,950
12329832,12/11/2018,08/11/2018,3003974,Personal detail - redacted,Fees,Looked After Children and Leaving Care,2058
12329834,12/11/2018,08/11/2018,3001240,Personal detail - redacted,Fees,Fostering and Adoption,700
12329835,12/11/2018,08/11/2018,3030650,Personal detail - redacted,Fees,Fostering and Adoption,950
12329843,12/11/2018,08/11/2018,3005378,Personal detail - redacted,Fees,Fostering and Adoption,1194
12329844,12/11/2018,08/11/2018,3022220,Personal detail - redacted,Fees,Fostering and Adoption,1693
12329845,12/11/2018,08/11/2018,3005408,Personal detail - redacted,Fees,Fostering and Adoption,2058
12329846,12/11/2018,08/11/2018,3025821,Personal detail - redacted,Fees,Looked After Children and Leaving Care,2791
12329847,12/11/2018,08/11/2018,3003503,Personal detail - redacted,Fees,Fostering and Adoption,1348
12329848,12/11/2018,08/11/2018,3032447,Personal detail - redacted,Placements,Child Protection,1820
12329851,12/11/2018,08/11/2018,3009791,Personal detail - redacted,Fees,Fostering and Adoption,1348
12329852,12/11/2018,08/11/2018,3005150,Personal detail - redacted,Fees,Fostering and Adoption,2058
12329853,12/11/2018,08/11/2018,3002365,Personal detail - redacted,Fees,Assessment and MASH,1348
12329854,12/11/2018,08/11/2018,3001789,Personal detail - redacted,Fees,Fostering and Adoption,1678
12329855,12/11/2018,08/11/2018,3001543,Personal detail - redacted,Fees,Fostering and Adoption,3954
12329856,12/11/2018,08/11/2018,3024453,Personal detail - redacted,Fees,Fostering and Adoption,2761.64
12329857,12/11/2018,08/11/2018,3000840,Personal detail - redacted,Fees,Assessment and MASH,1348
12329858,12/11/2018,08/11/2018,3004966,Personal detail - redacted,Fees,Fostering and Adoption,2058
12329861,12/11/2018,08/11/2018,3005408,Personal detail - redacted,Fees,Fostering and Adoption,1898
12329862,12/11/2018,08/11/2018,3031190,Personal detail - redacted,Fees,Fostering and Adoption,1787
12329863,12/11/2018,08/11/2018,3009691,Personal detail - redacted,Fees,Assessment and MASH,1836
12329865,12/11/2018,08/11/2018,3001152,Personal detail - redacted,Fees,Looked After Children and Leaving Care,1898
12329866,12/11/2018,08/11/2018,3032808,Personal detail - redacted,Fees,Fostering and Adoption,1678
12329868,12/11/2018,08/11/2018,3025045,Personal detail - redacted,Fees,Fostering and Adoption,950
12329870,12/11/2018,08/11/2018,3003045,Personal detail - redacted,Fees,Fostering and Adoption,1898
12329871,12/11/2018,08/11/2018,3033193,Personal detail - redacted,Fees,Child Protection,584
12329700,12/11/2018,08/11/2018,3004893,Personal detail - redacted,Placements,Child Protection,628
12329701,12/11/2018,08/11/2018,3032893,Personal detail - redacted,Placements,Child Protection,737
12329242,12/11/2018,08/11/2018,3000619,Personal detail - redacted,Placements,Fostering and Adoption,821.16
12329243,12/11/2018,08/11/2018,3002374,Personal detail - redacted,Placements,Fostering and Adoption,1189.72
12329246,12/11/2018,08/11/2018,3000870,Personal detail - redacted,Placements,Fostering and Adoption,1892.8
12329247,12/11/2018,08/11/2018,3005110,Personal detail - redacted,Placements,Fostering and Adoption,1970
12329249,12/11/2018,08/11/2018,3004998,Personal detail - redacted,Placements,Fostering and Adoption,1154.4
12329251,12/11/2018,08/11/2018,3004998,Personal detail - redacted,Placements,Fostering and Adoption,733.92
12329253,12/11/2018,08/11/2018,3005385,Personal detail - redacted,Residence Order (RO),Fostering and Adoption,805.16
12329254,12/11/2018,08/11/2018,3002605,Personal detail - redacted,Residence Order (RO),Fostering and Adoption,665.16
12329257,12/11/2018,08/11/2018,3001738,Personal detail - redacted,Residence Order (RO),Fostering and Adoption,550.4
12329261,12/11/2018,08/11/2018,3004998,Personal detail - redacted,Placements,Fostering and Adoption,733.92
12329265,12/11/2018,08/11/2018,3024009,Personal detail - redacted,Residence Order (RO),Fostering and Adoption,537.3
12329266,12/11/2018,08/11/2018,3002984,Personal detail - redacted,Residence Order (RO),Fostering and Adoption,747.35
12329267,12/11/2018,08/11/2018,3023923,Personal detail - redacted,Residence Order (RO),Fostering and Adoption,597.12
12329269,12/11/2018,08/11/2018,3023923,Personal detail - redacted,Residence Order (RO),Fostering and Adoption,525.12
12329271,12/11/2018,08/11/2018,3002966,Personal detail - redacted,Residence Order (RO),Fostering and Adoption,573.8
12329272,12/11/2018,08/11/2018,3002227,Personal detail - redacted,Residence Order (RO),Fostering and Adoption,548
12329273,12/11/2018,08/11/2018,3007631,Personal detail - redacted,Residence Order (RO),Fostering and Adoption,548
12329274,12/11/2018,08/11/2018,3003846,Personal detail - redacted,Residence Order (RO),Fostering and Adoption,1472
12329278,12/11/2018,08/11/2018,3001150,Personal detail - redacted,Placements,Fostering and Adoption,577.16
12329282,12/11/2018,08/11/2018,3003267,Personal detail - redacted,Placements,Fostering and Adoption,1970
12329283,12/11/2018,08/11/2018,3002217,Personal detail - redacted,Residence Order (RO),Fostering and Adoption,983.19
12329286,12/11/2018,08/11/2018,3026692,Personal detail - redacted,Residence Order (RO),Fostering and Adoption,652
12329287,12/11/2018,08/11/2018,3002966,Personal detail - redacted,Residence Order (RO),Fostering and Adoption,630
12329289,12/11/2018,08/11/2018,3003832,Personal detail - redacted,Residence Order (RO),Fostering and Adoption,1410.4
12329291,12/11/2018,08/11/2018,3002756,Personal detail - redacted,Residence Order (RO),Fostering and Adoption,552
12329292,12/11/2018,08/11/2018,3024112,Personal detail - redacted,Residence Order (RO),Fostering and Adoption,502.84
12329293,12/11/2018,08/11/2018,3005383,Personal detail - redacted,Residence Order (RO),Fostering and Adoption,597.2
12329297,12/11/2018,08/11/2018,3004998,Personal detail - redacted,Placements,Fostering and Adoption,965.36
12329299,12/11/2018,08/11/2018,3002419,Personal detail - redacted,Residence Order (RO),Fostering and Adoption,702.12
12329301,12/11/2018,08/11/2018,3001978,Personal detail - redacted,Residence Order (RO),Fostering and Adoption,693.16
12329302,12/11/2018,08/11/2018,3005370,Personal detail - redacted,Residence Order (RO),Fostering and Adoption,696
12329303,12/11/2018,08/11/2018,3002837,Personal detail - redacted,Residence Order (RO),Fostering and Adoption,540
12329304,12/11/2018,08/11/2018,3003712,Personal detail - redacted,Residence Order (RO),Fostering and Adoption,1474.4
12329306,12/11/2018,08/11/2018,3015614,Personal detail - redacted,Residence Order (RO),Fostering and Adoption,652
12329307,12/11/2018,08/11/2018,3003663,Personal detail - redacted,Residence Order (RO),Fostering and Adoption,604
12329309,12/11/2018,08/11/2018,3002149,Personal detail - redacted,Placements,Fostering and Adoption,1321.56
12329310,12/11/2018,08/11/2018,3001341,Personal detail - redacted,Placements,Fostering and Adoption,521.44
12329312,12/11/2018,08/11/2018,3003839,Personal detail - redacted,Residence Order (RO),Fostering and Adoption,540
12329313,12/11/2018,08/11/2018,3005368,Personal detail - redacted,Residence Order (RO),Fostering and Adoption,562.4
12329314,12/11/2018,08/11/2018,3004870,Personal detail - redacted,Residence Order (RO),Fostering and Adoption,604
12329316,12/11/2018,08/11/2018,3001148,Personal detail - redacted,Residence Order (RO),Fostering and Adoption,652
12329317,12/11/2018,08/11/2018,3004888,Personal detail - redacted,Residence Order (RO),Fostering and Adoption,616
12329318,12/11/2018,08/11/2018,3001738,Personal detail - redacted,Residence Order (RO),Fostering and Adoption,550.4
12329319,12/11/2018,08/11/2018,3019712,Personal detail - redacted,Residence Order (RO),Fostering and Adoption,546.08
12329321,12/11/2018,08/11/2018,3019016,Personal detail - redacted,Residence Order (RO),Fostering and Adoption,681.2
12329323,12/11/2018,08/11/2018,3000619,Personal detail - redacted,Placements,Fostering and Adoption,875.92
12329324,12/11/2018,08/11/2018,3033112,Personal detail - redacted,Residence Order (RO),Fostering and Adoption,556.84
12329324,12/11/2018,08/11/2018,3033112,Personal detail - redacted,Placements,Fostering and Adoption,791.08
12329326,12/11/2018,08/11/2018,3001177,Personal detail - redacted,Placements,Fostering and Adoption,649.32
12329328,12/11/2018,08/11/2018,3001594,Personal detail - redacted,Residence Order (RO),Fostering and Adoption,627.36
12329330,12/11/2018,08/11/2018,3007953,Personal detail - redacted,Residence Order (RO),Fostering and Adoption,592.52
12329331,12/11/2018,08/11/2018,3007953,Personal detail - redacted,Residence Order (RO),Fostering and Adoption,652.52
12329332,12/11/2018,08/11/2018,3003751,Personal detail - redacted,Residence Order (RO),Fostering and Adoption,749.72
12329333,12/11/2018,08/11/2018,3026746,Personal detail - redacted,Residence Order (RO),Fostering and Adoption,569.2
12329336,12/11/2018,08/11/2018,3002756,Personal detail - redacted,Residence Order (RO),Fostering and Adoption,540
12329337,12/11/2018,08/11/2018,3015614,Personal detail - redacted,Residence Order (RO),Fostering and Adoption,652
12329338,12/11/2018,08/11/2018,3019016,Personal detail - redacted,Residence Order (RO),Fostering and Adoption,653.2
12329340,12/11/2018,08/11/2018,3001238,Personal detail - redacted,Residence Order (RO),Fostering and Adoption,657.8
12329341,12/11/2018,08/11/2018,3005383,Personal detail - redacted,Residence Order (RO),Fostering and Adoption,653.2
12329342,12/11/2018,08/11/2018,3000962,Personal detail - redacted,Placements,Fostering and Adoption,562
12329345,12/11/2018,08/11/2018,3007953,Personal detail - redacted,Residence Order (RO),Fostering and Adoption,592.52
12329346,12/11/2018,08/11/2018,3023923,Personal detail - redacted,Residence Order (RO),Fostering and Adoption,597.12
12329347,12/11/2018,08/11/2018,3002986,Personal detail - redacted,Residence Order (RO),Fostering and Adoption,592
12329349,12/11/2018,08/11/2018,3004850,Personal detail - redacted,Residence Order (RO),Fostering and Adoption,528
12329351,12/11/2018,08/11/2018,3003712,Personal detail - redacted,Residence Order (RO),Fostering and Adoption,1446.8
12329356,12/11/2018,08/11/2018,3001341,Personal detail - redacted,Placements,Fostering and Adoption,521.44
12329360,12/11/2018,08/11/2018,3005385,Personal detail - redacted,Residence Order (RO),Fostering and Adoption,705.16
12329361,12/11/2018,08/11/2018,3002605,Personal detail - redacted,Residence Order (RO),Fostering and Adoption,605.16
12329362,12/11/2018,08/11/2018,3003663,Personal detail - redacted,Residence Order (RO),Fostering and Adoption,516
12329363,12/11/2018,08/11/2018,3003832,Personal detail - redacted,Residence Order (RO),Fostering and Adoption,1446.8
12329364,12/11/2018,08/11/2018,3005368,Personal detail - redacted,Residence Order (RO),Fostering and Adoption,534.8
12329365,12/11/2018,08/11/2018,3024009,Personal detail - redacted,Residence Order (RO),Fostering and Adoption,736
12329366,12/11/2018,08/11/2018,3003839,Personal detail - redacted,Residence Order (RO),Fostering and Adoption,616
12329367,12/11/2018,08/11/2018,3004888,Personal detail - redacted,Residence Order (RO),Fostering and Adoption,540
12329368,12/11/2018,08/11/2018,3002986,Personal detail - redacted,Residence Order (RO),Fostering and Adoption,592
12329369,12/11/2018,08/11/2018,3004870,Personal detail - redacted,Residence Order (RO),Fostering and Adoption,604
12329222,12/11/2018,09/11/2018,3027519,Personal detail - redacted,Direct payments - client,SEN and Disabilities,1597.28
3503720,12/11/2018,11/11/2018,3012115,St.Augustines Primary,Element 3 - Top-up Funding,Special Educational Needs,13390.72
3503720,12/11/2018,11/11/2018,3012115,St.Augustines Primary,Element 3 - Top-up Funding,Special Educational Needs,13672.96
3503589,12/11/2018,05/11/2018,3033403,Breeze Landscape Architects Ltd,Consultancy (Hired & Contr - Consultancy),Place Shaping,3500
3503591,12/11/2018,08/11/2018,3033548,Stern Consultancy Ltd,Commercial (Equip Dom Goods),Employment and Skills,3200
3503308,12/11/2018,09/11/2018,3999999,Clerville Investment Management LLP,Construction - enhancements,Business and Enterprise,2000
3503320,12/11/2018,09/11/2018,3999999,John Ellerman Foundation,Construction - enhancements,Business and Enterprise,2000
3503314,12/11/2018,09/11/2018,3999999,Maidthorn Limited,Equipment (Contractors C5700),Business and Enterprise,2000
3503481,12/11/2018,31/10/2018,3009673,Citywest Homes Client Account,Temporary Accommodation,Temporary Accommodation,20902.86
3503482,12/11/2018,31/10/2018,3009673,Citywest Homes Client Account,Temporary Accommodation,Temporary Accommodation,11160
3503483,12/11/2018,31/10/2018,3009673,Citywest Homes Client Account,Temporary Accommodation,Temporary Accommodation,23590.69
2200000082,05/12/2018,04/12/2018,1249082,The Assessment and Training Centre Ltd,Information services,Westminster Adult Ed,2013.21
2200000225,06/12/2018,05/12/2018,1244947,Norman Mark Training,Business&Personl Dev,Childrens Services,1190
2200000294,07/12/2018,06/12/2018,1244748,Limm Skills Academy Limited T/a Limms,Information services,Westminster Adult Ed,2685.39
2200000300,07/12/2018,04/12/2018,1244748,Limm Skills Academy Limited T/a Limms,Information services,Westminster Adult Ed,8410.83
2200000493,10/12/2018,07/12/2018,1246942,Ericsson Ltd,Mobile communicatns,Parking,1045.66
2200000628,10/12/2018,04/12/2018,1247021,Personal detail - redacted,Business&Personl Dev,Housing,2207.06
2200000631,10/12/2018,04/12/2018,1247220,Greenhouse Sports Ltd,Business&Personl Dev,Housing,4702.5
2200000709,10/12/2018,06/12/2018,1247070,Personal detail - redacted,Information services,Westminster Adult Ed,590.75
2200000712,10/12/2018,05/12/2018,1249523,Margaret Jean Mcwilliams Coyle,Information services,Westminster Adult Ed,1251
2200000716,10/12/2018,05/12/2018,1249429,Personal detail - redacted,Information services,Westminster Adult Ed,585
2200000719,10/12/2018,05/12/2018,1249523,Margaret Jean Mcwilliams Coyle,Information services,Westminster Adult Ed,690
2200000720,10/12/2018,06/12/2018,1246764,Personal detail - redacted,Information services,Westminster Adult Ed,525
2200000725,10/12/2018,07/12/2018,1246476,Personal detail - redacted,Information services,Westminster Adult Ed,851.62
2200000783,10/12/2018,08/12/2018,1249584,Personal detail - redacted,Information services,Westminster Adult Ed,640
2200000785,10/12/2018,10/12/2018,1247030,Personal detail - redacted,Teacher training,Westminster Adult Ed,4113.15
2200000788,10/12/2018,03/12/2018,1246649,DA Languages Ltd,Gardening equip,Childrens Services,1065.32
2200001008,11/12/2018,02/12/2018,1244396,Extrastaff Ltd,Business&Personl Dev,Schools,3533.39
2200001009,11/12/2018,02/12/2018,1244396,Extrastaff Ltd,Business&Personl Dev,Schools,998.18
2200001099,11/12/2018,03/12/2018,1244446,Furg! Enterprises Ltd,Storage facilities,Adults Services,761.64
2200001100,11/12/2018,02/12/2018,1249384,Personal detail - redacted,Business&Personl Dev,Schools,2500
2200001197,11/12/2018,01/12/2018,1248629,Royal National College For The Blind,Business&Personl Dev,Schools,12913.34
2200001208,11/12/2018,01/12/2018,1249291,Westminster Society,Business&Personl Dev,Adults Services,84070.12
2200001211,11/12/2018,01/12/2018,1245900,The Grace Eyre Foundation,Storage facilities,Adults Services,1610.35
2200001298,11/12/2018,06/12/2018,1245808,Streetscene Addiction Recovery,Storage facilities,Public Health,535.71
2200001410,11/12/2018,01/12/2018,1245091,Care UK Community Partnerships Ltd,Business&Personl Dev,Adults Services,67790.36
2200001420,11/12/2018,03/12/2018,1248207,Notting Hill Housing Trust ,Storage facilities,Adults Services,85601.27
2200001515,11/12/2018,01/12/2018,1249291,Westminster Society,Storage facilities,Childrens Services,84629.37
2200001597,12/12/2018,05/12/2018,1244382,Etc Venues Ltd,Educ & Vocatnl Qual,Parking,810
2200001611,12/12/2018,06/12/2018,1243767,London Councils,Business&Personl Dev,Parking,24896
2200001613,12/12/2018,10/12/2018,1246307,Personal detail - redacted,Specialist advice,Childrens Services,2047.25
2200001614,12/12/2018,03/12/2018,1245939,The Salvation Army,Storage facilities,Public Health,1544.61
2200001615,12/12/2018,01/12/2018,1245152,Personal detail - redacted,Storage facilities,Public Health,1563.37
2200001618,12/12/2018,01/12/2018,1245152,Personal detail - redacted,Storage facilities,Public Health,1980
2200001619,12/12/2018,05/12/2018,1245939,The Salvation Army,Storage facilities,Public Health,664.9
2200001620,12/12/2018,05/12/2018,1245939,The Salvation Army,Storage facilities,Public Health,2849.57
2200001621,12/12/2018,05/12/2018,1245939,The Salvation Army,Storage facilities,Public Health,3051
2200001625,12/12/2018,06/12/2018,1248207,Notting Hill Housing Trust ,Storage facilities,Adults Services,15402.31
2200001638,12/12/2018,05/12/2018,1244085,Calista Francis Consultants Ltd,Storage facilities,Westminster Adult Ed,3875
2200001640,12/12/2018,05/12/2018,1249523,Margaret Jean Mcwilliams Coyle,Information services,Westminster Adult Ed,670
2200001973,12/12/2018,10/12/2018,1249736,Maria fidelis Convent School,Business&Personl Dev,Schools,3583.33
2200001974,12/12/2018,05/12/2018,1246178,Vibe Teacher Recruitment Ltd,Business&Personl Dev,Schools,1300
2200001975,12/12/2018,05/12/2018,1246178,Vibe Teacher Recruitment Ltd,Business&Personl Dev,Schools,1280
2200002073,13/12/2018,11/12/2018,1246288,Personal detail - redacted,Prop Rep & Maint,Property,1850
2200002074,13/12/2018,11/12/2018,1246288,Personal detail - redacted,Prop Rep & Maint,Property,3250
2200002075,13/12/2018,11/12/2018,1246288,Personal detail - redacted,Prop Rep & Maint,Property,5475
2200002076,13/12/2018,11/12/2018,1246288,Personal detail - redacted,Prop Rep & Maint,Property,750
2200002090,13/12/2018,11/12/2018,1244675,Justex Ventures Ltd,Specialist advice,Adults Services,521
2200002100,13/12/2018,12/12/2018,1246539,Personal detail - redacted,Information services,Westminster Adult Ed,515
2200002104,13/12/2018,12/12/2018,1250724,Eden College,Information services,Westminster Adult Ed,7173.45
2200002107,13/12/2018,07/12/2018,1245371,G & D Higgins Mechanical Services Ltd,"Interior wall, I,M&R",Housing Revenue Acco,9852
2200002109,13/12/2018,10/12/2018,1245371,G & D Higgins Mechanical Services Ltd,"Interior wall, I,M&R",Housing Revenue Acco,8115
2200002110,13/12/2018,06/12/2018,1244735,Learning Curve Group t/a Learning at work Ltd,Storage facilities,Westminster Adult Ed,875
2200002111,13/12/2018,11/12/2018,1243854,Action Pumps Ltd,"Interior wall, I,M&R",Housing Revenue Acco,1825.9
2200002118,13/12/2018,07/12/2018,1244096,Capita Business Services Ltd,Legal services,Financial Control,870.5
2200002123,13/12/2018,10/12/2018,1244919,National Gallery Company Ltd,Hire temp buildings,Adults Services,675
2200002197,14/12/2018,12/12/2018,1244841,Maybo Ltd,H&S &Wellbeing train,Cleansing,1980
2200002198,14/12/2018,03/12/2018,1246288,Personal detail - redacted,Storage facilities,Housing,8870
2200002216,14/12/2018,01/12/2018,1244260,Cycle Confident Ltd,Educ & Vocatnl Qual,Street Management,600
2200002218,14/12/2018,01/12/2018,1244260,Cycle Confident Ltd,Educ & Vocatnl Qual,Street Management,1536.75
2200002220,14/12/2018,01/12/2018,1244260,Cycle Confident Ltd,Educ & Vocatnl Qual,Street Management,9483
2200002276,17/12/2018,12/12/2018,1248955,St James'S Church Paddington,Political &diplomacy,Performance,1220
2200002280,17/12/2018,13/12/2018,1244371,Erosh,Information services,Adults Services,620
2200002288,17/12/2018,01/12/2018,1244806,Lynch Insulation Ltd,Business&Personl Dev,Housing Revenue Acco,9445
2200002359,17/12/2018,13/12/2018,1246942,Ericsson Ltd,Mobile communicatns,Information Services,22920.95
2200002364,17/12/2018,13/12/2018,1245756,1st 4 Business Services Ltd,Information services,Westminster Adult Ed,680
2200002366,17/12/2018,14/12/2018,1249472,Personal detail - redacted,Information services,Westminster Adult Ed,659.82
2200002369,17/12/2018,13/12/2018,1251942,Recovery Hub Ipswich,Residential� care -,Public Health,3180
2200002372,17/12/2018,06/12/2018,1245601,Sodexo Motivation Solutions UK Ltd,Storage facilities,People Services,19509.06
2200002389,17/12/2018,06/12/2018,1249285,Westminster Citizens Advice Bureau,Storage facilities,Performance,247500
2200002390,17/12/2018,11/12/2018,1246942,Ericsson Ltd,Mobile communicatns,Information Services,976.05
2200002392,17/12/2018,10/12/2018,1249648,Personal detail - redacted,Information services,Westminster Adult Ed,680
2200002506,18/12/2018,03/12/2018,1249557,Personal detail - redacted,Legal services,Housing Revenue Acco,5160
2200002526,18/12/2018,14/12/2018,1244928,New Dawn Training Academy Ltd,Information services,Westminster Adult Ed,2530
2200002527,18/12/2018,14/12/2018,1245948,Adult Education Employment & Training Ltd,Information services,Westminster Adult Ed,3778.13
2200002547,18/12/2018,01/12/2018,1249171,Toast Inbound Ltd,Business&Personl Dev,"Parks, Trees & Cemet",4097
2200002549,18/12/2018,17/12/2018,1245372,GEM Environmental Building Services Ltd,Business&Personl Dev,Housing Revenue Acco,32725
2200002564,18/12/2018,11/12/2018,1244708,Koru Medical Ltd,Storage facilities,Adults Services,3172.54
2200002568,18/12/2018,08/12/2018,1246503,Personal detail - redacted,Information services,Westminster Adult Ed,4375
2200002570,18/12/2018,17/12/2018,1249523,Margaret Jean Mcwilliams Coyle,Information services,Westminster Adult Ed,610
2200002583,18/12/2018,10/12/2018,1249736,Maria fidelis Convent School,Business&Personl Dev,Schools,3583.33
2200002589,18/12/2018,12/12/2018,1245367,F.M Conway Ltd,Educ & Vocatnl Qual,Economy,24667
2200002594,18/12/2018,05/12/2018,1244662,Jma Design & Technical Services,Printer & fax consum,Housing Revenue Acco,1224
2200002595,18/12/2018,03/12/2018,1244033,Bowen Partnership,Business&Personl Dev,Housing Revenue Acco,1300
2200002611,18/12/2018,13/12/2018,1245919,The Mansfield Group,Storage facilities,Parking,10788.1
2200002624,18/12/2018,10/12/2018,1244350,Electrical Safety Assessments Ltd,Storage facilities,Economy,652
2200002630,18/12/2018,17/12/2018,1244259,Cushman & Wakefield LLP,Prop Rep & Maint,Housing,5000
2200002631,18/12/2018,17/12/2018,1249286,Westminster Community Homes Ltd,Storage facilities,Housing,1062.86
2200002709,19/12/2018,09/12/2018,1244396,Extrastaff Ltd,Business&Personl Dev,Schools,998.18
2200002710,19/12/2018,09/12/2018,1244396,Extrastaff Ltd,Business&Personl Dev,Schools,3444.44
2200002715,19/12/2018,12/12/2018,1245367,F.M Conway Ltd,Educ & Vocatnl Qual,Economy,45319
2200002716,19/12/2018,12/12/2018,1245367,F.M Conway Ltd,Educ & Vocatnl Qual,Economy,3548
2200002717,19/12/2018,12/12/2018,1245367,F.M Conway Ltd,Educ & Vocatnl Qual,Economy,106727
2200002719,19/12/2018,18/12/2018,1246212,Westminster 16-19 Partnership,Specialist advice,Schools,3000
2200002721,19/12/2018,14/12/2018,1246887,Dynamic Initiatives Ltd,Educational Supplies,Street Management,2365
2200002722,19/12/2018,13/12/2018,1244624,Irrv Services Ltd,Subscriptions,Financial Control,737.75
2200002727,19/12/2018,13/12/2018,1244931,New West End Company,Business admin servs,Financial Control,118847.74
2200002728,19/12/2018,13/12/2018,1244931,New West End Company,Business admin servs,Financial Control,93653.99
2200002738,19/12/2018,18/12/2018,1247262,Heart Of London Business Alliance  ,Grants,Performance,610
2200002739,19/12/2018,18/12/2018,1244421,First In Service Ltd,M&R electrical equip,Childrens Services,1804.95
2200002740,19/12/2018,18/12/2018,1244421,First In Service Ltd,M&R electrical equip,Childrens Services,7776.74
2200002741,19/12/2018,18/12/2018,1244421,First In Service Ltd,M&R electrical equip,Childrens Services,2380
2200002744,19/12/2018,03/12/2018,1244190,Clouds End Services Ltd,"Inf, child, domc car",Adults Services,500
2200002752,19/12/2018,11/12/2018,1245228,Pohwer,Storage facilities,Adults Services,3100
2200002753,19/12/2018,05/12/2018,1243839,Able 2 Occupational Therapy Services Ltd,Business&Personl Dev,Adults Services,30074.76
2200002758,19/12/2018,09/12/2018,1245297,Reach Publishing Services Ltd,Printer & fax consum,Planning Development,673.2
2200002763,19/12/2018,28/12/2017,1244501,Gva Grimley Ltd,Management advisory,Housing,5000
2200002767,19/12/2018,17/12/2018,1249651,Personal detail - redacted,Business&Personl Dev,Westminster Adult Ed,4320
2200002800,19/12/2018,18/12/2018,1245895,The Fitzrovia Partnership Business Improvement District Ltd,Grants,Performance,610
2200002819,19/12/2018,12/12/2018,1246337,Carefirst Recruitment Ltd,Business&Personl Dev,Schools,4634.98
2200002824,19/12/2018,14/12/2018,1246008,ARO Performance Systems Ltd,Business&Personl Dev,Housing Revenue Acco,2340
2200002825,19/12/2018,12/12/2018,1244501,Gva Grimley Ltd,Management advisory,Housing,1500
2200002827,19/12/2018,12/12/2018,1244501,Gva Grimley Ltd,Management advisory,Housing,2552.78
2200002828,19/12/2018,03/12/2018,1244501,Gva Grimley Ltd,Management advisory,Housing,1875
2200002831,19/12/2018,13/12/2018,1249583,Personal detail - redacted,Specialist advice,Schools,700
2200002842,19/12/2018,18/12/2018,1244310,DPS Software Plc,Business&Personl Dev,Legal,9025
2200002844,19/12/2018,17/12/2018,1247259,Healthwatch Central West London,Storage facilities,Performance,39250
2200002845,20/12/2018,12/12/2018,1243905,Amey,Business&Personl Dev,Housing,337249.64
2200002846,20/12/2018,05/12/2018,1246337,Carefirst Recruitment Ltd,Business&Personl Dev,Schools,4181.05
2200002848,20/12/2018,12/12/2018,1244346,Eileen Say Catering Equipment Ltd,Refrigerators,Childrens Services,1628
2200002849,20/12/2018,12/12/2018,1244346,Eileen Say Catering Equipment Ltd,Refrigerators,Childrens Services,1012
2200002886,20/12/2018,14/12/2018,1246158,University Of London,Storage facilities,Childrens Services,1877.73
2200002890,20/12/2018,01/12/2018,1245004,Outdoor Restore Ltd,Grounds maintenance,"Parks, Trees & Cemet",7750
2200002896,20/12/2018,10/12/2018,1251433,Personal detail - redacted,Exhibition facilitie,Housing Revenue Acco,800
2200002900,20/12/2018,01/12/2018,1244517,Hats Group Ltd,Business&Personl Dev,Schools,44159.39
2200002902,20/12/2018,15/12/2018,1246054,B Hamblett Contractors,"Interior wall, I,M&R",Housing Revenue Acco,9536
2200002903,20/12/2018,14/12/2018,1245371,G & D Higgins Mechanical Services Ltd,"Interior wall, I,M&R",Housing Revenue Acco,9852
2200002906,20/12/2018,12/12/2018,1246054,B Hamblett Contractors,"Interior wall, I,M&R",Housing Revenue Acco,1630
2200002907,20/12/2018,12/12/2018,1246054,B Hamblett Contractors,"Interior wall, I,M&R",Housing Revenue Acco,1768
2200002908,20/12/2018,01/12/2018,1244517,Hats Group Ltd,Business&Personl Dev,Schools,52705.36
2200002918,20/12/2018,11/12/2018,1246054,B Hamblett Contractors,"Interior wall, I,M&R",Housing Revenue Acco,4768
2200002933,20/12/2018,12/12/2018,1248531,Posturite (Uk) Ltd,Educ & Vocatnl Qual,People Services,995
2200002940,20/12/2018,01/12/2018,1244216,Citysafe T/A Comunis Ltd,Information services,Cleansing,16720
2200003020,21/12/2018,17/12/2018,1249758,St Edwards Rc Primary (Imprest),Specialist advice,Schools,1000
2200003022,21/12/2018,17/12/2018,1247856,Loomis Uk Ltd,Banking & investment,Financial Control,521.85
2200003025,21/12/2018,20/12/2018,1246315,Camden Town Centre Ltd TA Camden Town Unlimited,Grants,Performance,610
2200003026,21/12/2018,03/12/2018,1244501,Gva Grimley Ltd,Legal services,Housing,40162.5
2200003028,21/12/2018,19/12/2018,1247118,Dorothy Gardner Nursery School,Specialist advice,Schools,16000
2200003032,21/12/2018,12/12/2018,1244501,Gva Grimley Ltd,Management advisory,Housing,2739.06
2200003037,21/12/2018,19/12/2018,1244708,Koru Medical Ltd,Storage facilities,Adults Services,756.2
2200003040,21/12/2018,14/12/2018,1248273,Paddington Business Improvement,Business admin servs,Financial Control,113225.36
2200003041,21/12/2018,01/12/2018,1244517,Hats Group Ltd,Hire vehicle-selfdrv,Adults Services,9625
2200003043,21/12/2018,10/12/2018,1245367,F.M Conway Ltd,"Road constructn, R&M",Street Management,25679.12
2200003151,21/12/2018,18/12/2018,1248235,On Demand PR & Marketing Ltd,Community services-,Performance,7095
2200003153,21/12/2018,10/12/2018,1245367,F.M Conway Ltd,Gardening equip,Street Management,9443.47
2200003154,21/12/2018,10/12/2018,1245367,F.M Conway Ltd,Gardening equip,Street Management,20633.96
2200003156,21/12/2018,08/12/2018,1246054,B Hamblett Contractors,Business&Personl Dev,Housing Revenue Acco,780
2200003157,21/12/2018,08/12/2018,1246054,B Hamblett Contractors,Business&Personl Dev,Housing Revenue Acco,3928
2200003158,21/12/2018,08/12/2018,1246054,B Hamblett Contractors,Business&Personl Dev,Housing Revenue Acco,720
2200003162,21/12/2018,10/12/2018,1245367,F.M Conway Ltd,"Road constructn, R&M",Street Management,671.92
2200003167,21/12/2018,03/12/2018,1244501,Gva Grimley Ltd,Legal services,Housing,1875
2200003168,21/12/2018,04/12/2018,1245371,G & D Higgins Mechanical Services Ltd,"Interior wall, I,M&R",Housing Revenue Acco,7623
2200003169,21/12/2018,18/12/2018,1248273,Paddington Business Improvement,Grants,Performance,610
2200003170,21/12/2018,18/12/2018,1244824,Marble Arch Partnership Ltd,Grants,Performance,610
2200003177,21/12/2018,19/12/2018,1248316,Personal detail - redacted,Grants,Housing Revenue Acco,4210
2200003189,21/12/2018,13/12/2018,1244661,Jlt Speciality Ltd,Profess indem insure,Financial Control,2800
2200003209,21/12/2018,20/12/2018,1246206,Westco Trading ltd,"Temp staff, profess",Performance,8330
2200003314,24/12/2018,06/12/2018,1244973,Odhams Walk Resident(Quarterly Allowance,Business&Personl Dev,Housing Revenue Acco,26768
2200003325,24/12/2018,20/12/2018,1245206,Phoenix Software Ltd,M&R computer softwar,Housing Revenue Acco,24232
2200003442,27/12/2018,17/12/2018,1249147,The Technology Forge,Storage facilities,Housing,4658.4
2200003443,27/12/2018,12/12/2018,1244501,Gva Grimley Ltd,Legal services,Housing,1500
2200003447,27/12/2018,21/12/2018,1244501,Gva Grimley Ltd,Legal services,Housing,50000
2200003448,27/12/2018,16/12/2018,1244396,Extrastaff Ltd,Business&Personl Dev,Schools,3089.18
2200003449,27/12/2018,16/12/2018,1244396,Extrastaff Ltd,Business&Personl Dev,Schools,998.18
2200003450,27/12/2018,19/12/2018,1244517,Hats Group Ltd,Business&Personl Dev,Schools,1798
2200003451,27/12/2018,01/12/2018,1248214,Nsl Limited,"Road constructn, R&M",Parking,258500.2
2200003452,27/12/2018,01/12/2018,1245601,Sodexo Motivation Solutions UK Ltd,Storage facilities,People Services,666.67
2200003455,27/12/2018,13/12/2018,1244129,Catering Consultants,Political &diplomacy,Performance,1068
2200003456,27/12/2018,18/12/2018,1249319,Zoedale plc,Business&Personl Dev,Housing Revenue Acco,645
2200003465,27/12/2018,17/12/2018,1246308,C Steele Associates,Prop Rep & Maint,Property,2500
2200003466,27/12/2018,07/12/2018,1247946,MLB Fire & Security Services Ltd,Prop Rep & Maint,Property,2850
2200003467,27/12/2018,13/12/2018,1247946,MLB Fire & Security Services Ltd,Prop Rep & Maint,Property,3687
2200003468,27/12/2018,07/12/2018,1247946,MLB Fire & Security Services Ltd,Prop Rep & Maint,Property,6145
2200003471,27/12/2018,13/12/2018,1247946,MLB Fire & Security Services Ltd,Prop Rep & Maint,Property,1710
2200003485,27/12/2018,20/12/2018,1248940,Special People,Business&Personl Dev,Schools,704.16
2200003486,27/12/2018,19/12/2018,1246337,Carefirst Recruitment Ltd,Business&Personl Dev,Schools,3950.72
2200003487,27/12/2018,23/12/2018,1244396,Extrastaff Ltd,Business&Personl Dev,Schools,804.24
2200003488,27/12/2018,23/12/2018,1244396,Extrastaff Ltd,Business&Personl Dev,Schools,2700.89
2200003495,27/12/2018,19/12/2018,1246138,Tunstall Healthcare (Uk) Ltd,Aid 4 peop wi disab,Adults Services,750
2200003558,28/12/2018,27/12/2018,1243900,Amaze Umbrella Ltd,Storage facilities,Housing,10925
2200003565,28/12/2018,06/12/2018,1248595,Reed Specilaist Recruitment Ltd,Storage facilities,Public Health,13827
2200003572,28/12/2018,19/12/2018,1247925,Millbank Estate Management Organisation,Business&Personl Dev,Housing Revenue Acco,138998.5
2200003573,28/12/2018,28/12/2018,1244745,Lilestone Tenants & Residents,Business&Personl Dev,Housing Revenue Acco,22965
2200003576,28/12/2018,06/12/2018,1244215,Computer Imprintable Label Systems Ltd,Printg & publishing,Parking,9419
2200003578,28/12/2018,17/12/2018,1244665,Judge & Priestley,Legal services,Housing Revenue Acco,1606
2200003679,31/12/2018,20/12/2018,1246206,Westco Trading ltd,"Temp staff, profess",Performance,23000
2200003686,31/12/2018,10/12/2018,1245367,F.M Conway Ltd,Gardening equip,Street Management,9498.45
2200003687,31/12/2018,10/12/2018,1245367,F.M Conway Ltd,Gardening equip,Street Management,131486.87
3110000029,06/12/2018,03/12/2018,1249318,Zodiac Arts Ltd,Not assigned,Adults Services,715.5
3110000064,06/12/2018,03/12/2018,1248292,Paypacket Ltd,Not assigned,Adults Services,9952.22
3110000073,06/12/2018,03/12/2018,1249318,Zodiac Arts Ltd,Not assigned,Adults Services,715.5
3110000196,07/12/2018,27/02/2017,1245256,Proquest Llc,Not assigned,Libraries,2130
3110000494,07/12/2018,05/12/2018,D000000016,Personal detail - redacted,Not assigned,Housing Revenue Acco,800
3110000495,07/12/2018,05/12/2018,D000000016,Personal detail - redacted,Not assigned,Housing Revenue Acco,5677.23
3110000496,07/12/2018,06/12/2018,D000000016,Personal detail - redacted,Not assigned,Housing Revenue Acco,728
3110000497,07/12/2018,06/12/2018,D000000016,Personal detail - redacted,Not assigned,Housing Revenue Acco,1508.57
3110000498,07/12/2018,06/12/2018,D000000016,Personal detail - redacted,Not assigned,Housing Revenue Acco,625.81
3110000499,07/12/2018,06/12/2018,D000000016,Personal detail - redacted,Not assigned,Housing Revenue Acco,636.48
3110000501,07/12/2018,05/12/2018,D000000016,Personal detail - redacted,Not assigned,Housing Revenue Acco,6300
3110000516,07/12/2018,06/12/2018,1245501,Personal detail - redacted,Not assigned,Childrens Services,555.98
3110000534,07/12/2018,06/12/2018,1243684,Personal detail - redacted,Not assigned,Childrens Services,720
3110000536,07/12/2018,06/12/2018,1245425,Personal detail - redacted,Not assigned,Childrens Services,664
3110000537,07/12/2018,06/12/2018,1245487,Personal detail - redacted,Not assigned,Childrens Services,901
3110000559,07/12/2018,06/12/2018,1250125,Personal detail - redacted,Not assigned,Childrens Services,926.47
3110000586,07/12/2018,06/12/2018,1250312,Personal detail - redacted,Not assigned,Childrens Services,857
3110000590,07/12/2018,06/12/2018,1245674,Personal detail - redacted,Not assigned,Childrens Services,545.5
3110000592,07/12/2018,06/12/2018,1245447,Personal detail - redacted,Not assigned,Childrens Services,1143.5
3110000595,07/12/2018,06/12/2018,1245411,Personal detail - redacted,Not assigned,Childrens Services,545.5
3110000598,07/12/2018,06/12/2018,1250198,Personal detail - redacted,Not assigned,Childrens Services,694.37
3110000609,07/12/2018,06/12/2018,1243634,Personal detail - redacted,Not assigned,Childrens Services,933
3110000629,07/12/2018,06/12/2018,1247932,Igar Hotel T/A Minds Ltd,Not assigned,Childrens Services,930
3110000638,07/12/2018,06/12/2018,1245670,Personal detail - redacted,Not assigned,Childrens Services,894.7
3110000639,07/12/2018,06/12/2018,1243658,Personal detail - redacted,Not assigned,Childrens Services,545.5
3110000642,07/12/2018,06/12/2018,1248108,Personal detail - redacted,Not assigned,Childrens Services,1000
3110000646,07/12/2018,06/12/2018,1245496,Personal detail - redacted,Not assigned,Childrens Services,717.91
3110000649,07/12/2018,06/12/2018,1247407,Personal detail - redacted,Not assigned,Childrens Services,855.2
3110000660,07/12/2018,06/12/2018,1245411,Personal detail - redacted,Not assigned,Childrens Services,555.5
3110000661,07/12/2018,06/12/2018,1245410,Personal detail - redacted,Not assigned,Childrens Services,1102
3110000663,07/12/2018,06/12/2018,1245488,Personal detail - redacted,Not assigned,Childrens Services,933
3110000666,07/12/2018,06/12/2018,1250438,Personal detail - redacted,Not assigned,Childrens Services,879
3110000671,07/12/2018,06/12/2018,1243652,Personal detail - redacted,Not assigned,Childrens Services,773.9
3110000678,07/12/2018,06/12/2018,1244672,Just Homes Charity,Not assigned,Childrens Services,980
3110000680,07/12/2018,06/12/2018,1245485,Personal detail - redacted,Not assigned,Childrens Services,977.69
3110000713,07/12/2018,06/12/2018,1243700,Personal detail - redacted,Not assigned,Childrens Services,651.52
3110000714,07/12/2018,05/12/2018,1246289,Bs Project Services Ltd,Not assigned,Schools,1273.95
3110000747,07/12/2018,04/12/2018,1246934,Equal People,Not assigned,Schools,540
3110000750,07/12/2018,04/12/2018,1246934,Equal People,Not assigned,Schools,558
3110000765,07/12/2018,06/12/2018,1243715,Personal detail - redacted,Not assigned,Childrens Services,933
3110000776,07/12/2018,06/12/2018,1245496,Personal detail - redacted,Not assigned,Childrens Services,717.91
3110000780,07/12/2018,06/12/2018,1243681,Personal detail - redacted,Not assigned,Childrens Services,1199.78
3110000783,07/12/2018,06/12/2018,1245496,Personal detail - redacted,Not assigned,Childrens Services,688.91
3110000787,07/12/2018,05/12/2018,1246289,Bs Project Services Ltd,Not assigned,Schools,1019.16
3110000790,07/12/2018,06/12/2018,1243695,Personal detail - redacted,Not assigned,Childrens Services,588.95
3110000808,07/12/2018,01/11/2017,1246289,Bs Project Services Ltd,Not assigned,Schools,608.31
3110000816,07/12/2018,31/12/2017,1249291,Westminster Society,Not assigned,Schools,510
3110000831,07/12/2018,06/12/2018,1248358,Personal detail - redacted,Not assigned,Childrens Services,736.5
3110000840,07/12/2018,06/12/2018,1247664,Personal detail - redacted,Not assigned,Childrens Services,600.26
3110000843,07/12/2018,04/12/2018,1246934,Equal People,Not assigned,Schools,549
3110000852,07/12/2018,05/12/2018,1246289,Bs Project Services Ltd,Not assigned,Schools,764.37
3110000864,07/12/2018,06/12/2018,1243696,Personal detail - redacted,Not assigned,Childrens Services,748.85
3110000867,07/12/2018,06/12/2018,1245426,Personal detail - redacted,Not assigned,Childrens Services,943.19
3110000876,10/12/2018,10/12/2018,1246504,Personal detail - redacted,Not assigned,Childrens Services,1820
3110000884,10/12/2018,10/12/2018,1245425,Personal detail - redacted,Not assigned,Childrens Services,4381
3110000913,10/12/2018,05/12/2018,1243795,Cambs & Peterborough Mental Health Nhs,Not assigned,Adults Services,568.14
3110000960,10/12/2018,07/12/2018,1248940,Special People,Not assigned,Adults Services,3159.36
3110000981,10/12/2018,07/12/2018,1248940,Special People,Not assigned,Adults Services,1240.59
3110001019,11/12/2018,07/12/2018,1245936,The Royal Bank of Scotland Plc,Not assigned,Financial Control,95039.63
3110001020,11/12/2018,07/12/2018,1248978,St Matthews Bayswater,Not assigned,SEB & Ceremonial,585
3110001024,11/12/2018,04/12/2018,D000000016,Personal detail - redacted,Not assigned,Housing Revenue Acco,648.9
3110001025,11/12/2018,06/12/2018,D000000016,Personal detail - redacted,Not assigned,SEB & Ceremonial,829.17
3110001089,12/12/2018,06/12/2018,1245825,Sweet Tree Home Care Services,Not assigned,Adults Services,2642.32
3110001096,12/12/2018,03/12/2018,1245825,Sweet Tree Home Care Services,Not assigned,Adults Services,735
3110001097,12/12/2018,03/12/2018,1245825,Sweet Tree Home Care Services,Not assigned,Adults Services,1233.4
3110001100,12/12/2018,03/12/2018,1245825,Sweet Tree Home Care Services,Not assigned,Adults Services,2688
3110001104,12/12/2018,03/12/2018,1245825,Sweet Tree Home Care Services,Not assigned,Adults Services,2550.01
3110001107,12/12/2018,06/12/2018,1248913,Smithfield Health & Social Care Ltd T/A Verilife,Not assigned,Adults Services,821.5
3110001111,12/12/2018,06/12/2018,1248913,Smithfield Health & Social Care Ltd T/A Verilife,Not assigned,Adults Services,728.5
3110001115,12/12/2018,06/12/2018,1248913,Smithfield Health & Social Care Ltd T/A Verilife,Not assigned,Adults Services,1666.25
3110001120,12/12/2018,03/12/2018,1245825,Sweet Tree Home Care Services,Not assigned,Adults Services,758.72
3110001123,12/12/2018,06/12/2018,1248913,Smithfield Health & Social Care Ltd T/A Verilife,Not assigned,Adults Services,813.75
3110001124,12/12/2018,03/12/2018,1245825,Sweet Tree Home Care Services,Not assigned,Adults Services,4708.68
3110001127,12/12/2018,06/12/2018,1244190,Clouds End Services Ltd,Not assigned,Adults Services,1500
3110001128,12/12/2018,06/12/2018,1248913,Smithfield Health & Social Care Ltd T/A Verilife,Not assigned,Adults Services,627.75
3110001129,12/12/2018,03/12/2018,1245825,Sweet Tree Home Care Services,Not assigned,Adults Services,1718.44
3110001133,12/12/2018,06/12/2018,1248913,Smithfield Health & Social Care Ltd T/A Verilife,Not assigned,Adults Services,844.76
3110001134,12/12/2018,06/12/2018,1245825,Sweet Tree Home Care Services,Not assigned,Adults Services,687.46
3110001137,12/12/2018,06/12/2018,1248913,Smithfield Health & Social Care Ltd T/A Verilife,Not assigned,Adults Services,1743.75
3110001139,12/12/2018,06/12/2018,1248913,Smithfield Health & Social Care Ltd T/A Verilife,Not assigned,Adults Services,802.26
3110001140,12/12/2018,06/12/2018,1248913,Smithfield Health & Social Care Ltd T/A Verilife,Not assigned,Adults Services,782.75
3110001148,12/12/2018,06/12/2018,1248913,Smithfield Health & Social Care Ltd T/A Verilife,Not assigned,Adults Services,558
3110001150,12/12/2018,06/12/2018,1248913,Smithfield Health & Social Care Ltd T/A Verilife,Not assigned,Adults Services,1705.27
3110001154,12/12/2018,06/12/2018,1248913,Smithfield Health & Social Care Ltd T/A Verilife,Not assigned,Adults Services,604.5
3110001171,12/12/2018,06/12/2018,1248913,Smithfield Health & Social Care Ltd T/A Verilife,Not assigned,Adults Services,1092.75
3110001176,12/12/2018,06/12/2018,1248913,Smithfield Health & Social Care Ltd T/A Verilife,Not assigned,Adults Services,1209.25
3110001244,12/12/2018,07/12/2018,D000000016,Personal detail - redacted,Not assigned,Housing Revenue Acco,4090
3110001247,12/12/2018,10/12/2018,D000000016,Personal detail - redacted,Not assigned,Corporate Finance,5000
3110001248,12/12/2018,10/12/2018,D000000016,Personal detail - redacted,Not assigned,Housing Revenue Acco,8254.22
3110001249,12/12/2018,10/12/2018,D000000016,Personal detail - redacted,Not assigned,Housing Revenue Acco,3500
3110001250,12/12/2018,10/12/2018,D000000016,Personal detail - redacted,Not assigned,Housing Revenue Acco,3500
3110001252,12/12/2018,10/12/2018,D000000016,Personal detail - redacted,Not assigned,Housing Revenue Acco,3500
3110001253,12/12/2018,10/12/2018,D000000016,Personal detail - redacted,Not assigned,Housing Revenue Acco,1772.1
3110001254,12/12/2018,05/12/2018,D000000016,Personal detail - redacted,Not assigned,Housing Revenue Acco,537.8
3110001260,12/12/2018,10/12/2018,D000000016,Personal detail - redacted,Not assigned,Housing Revenue Acco,2097.54
3110001261,12/12/2018,10/12/2018,D000000016,Personal detail - redacted,Not assigned,Housing Revenue Acco,11500
3110001284,13/12/2018,04/12/2018,1244591,Independent Care Solution,Not assigned,Adults Services,697.5
3110001285,13/12/2018,03/12/2018,1245825,Sweet Tree Home Care Services,Not assigned,Adults Services,589.63
3110001286,13/12/2018,04/12/2018,1244591,Independent Care Solution,Not assigned,Adults Services,1012.5
3110001379,13/12/2018,04/12/2018,1244591,Independent Care Solution,Not assigned,Adults Services,2418
3110001380,13/12/2018,04/12/2018,1244591,Independent Care Solution,Not assigned,Adults Services,1125
3110001387,13/12/2018,03/12/2018,1245825,Sweet Tree Home Care Services,Not assigned,Adults Services,3676.08
3110001389,13/12/2018,03/12/2018,1245825,Sweet Tree Home Care Services,Not assigned,Adults Services,2438.44
3110001390,13/12/2018,03/12/2018,1245825,Sweet Tree Home Care Services,Not assigned,Adults Services,1794
3110001406,13/12/2018,12/12/2018,1244411,Financial Data Management Ltd,Not assigned,SEB & Ceremonial,1962.35
3110001407,13/12/2018,12/12/2018,1244411,Financial Data Management Ltd,Not assigned,SEB & Ceremonial,3593.62
3110001408,13/12/2018,11/12/2018,D000000016,Personal detail - redacted,Not assigned,Housing Revenue Acco,682.02
3110001409,13/12/2018,11/12/2018,D000000016,Personal detail - redacted,Not assigned,Housing Revenue Acco,7460.78
3110001410,13/12/2018,11/12/2018,D000000016,Personal detail - redacted,Not assigned,Housing Revenue Acco,6000
3110001411,13/12/2018,11/12/2018,D000000016,Personal detail - redacted,Not assigned,Housing Revenue Acco,4084
3110001413,13/12/2018,12/12/2018,D000000016,Personal detail - redacted,Not assigned,Housing Revenue Acco,7936.68
3110001415,13/12/2018,12/12/2018,D000000016,Personal detail - redacted,Not assigned,Housing Revenue Acco,1500
3110001417,13/12/2018,11/12/2018,D000000016,Personal detail - redacted,Not assigned,Housing Revenue Acco,10025.26
3110001420,13/12/2018,12/12/2018,D000000016,Personal detail - redacted,Not assigned,Housing Revenue Acco,679.26
3110001421,13/12/2018,12/12/2018,D000000016,Personal detail - redacted,Not assigned,Cleansing,2300
3110001422,13/12/2018,12/12/2018,D000000016,Personal detail - redacted,Not assigned,Housing Revenue Acco,1207.33
3110001425,13/12/2018,12/12/2018,D000000016,Personal detail - redacted,Not assigned,Housing Revenue Acco,2120
3110001448,13/12/2018,11/12/2018,1249232,Vincentian Care Plus,Not assigned,Adults Services,1097
3110001450,13/12/2018,11/12/2018,1249232,Vincentian Care Plus,Not assigned,Adults Services,1197.1
3110001454,13/12/2018,11/12/2018,1249232,Vincentian Care Plus,Not assigned,Adults Services,1221.09
3110001456,13/12/2018,11/12/2018,1248843,Sage Care Ltd,Not assigned,Adults Services,3910.69
3110001457,13/12/2018,11/12/2018,1249232,Vincentian Care Plus,Not assigned,Adults Services,641.57
3110001459,13/12/2018,11/12/2018,1249232,Vincentian Care Plus,Not assigned,Adults Services,3109.06
3110001460,13/12/2018,11/12/2018,1248843,Sage Care Ltd,Not assigned,Adults Services,736.05
3110001465,13/12/2018,11/12/2018,1249232,Vincentian Care Plus,Not assigned,Adults Services,1296.82
3110001467,13/12/2018,11/12/2018,1249232,Vincentian Care Plus,Not assigned,Adults Services,582.2
3110001470,13/12/2018,11/12/2018,1248843,Sage Care Ltd,Not assigned,Adults Services,884.62
3110001472,13/12/2018,11/12/2018,1248843,Sage Care Ltd,Not assigned,Adults Services,1546.58
3110001473,13/12/2018,11/12/2018,1249232,Vincentian Care Plus,Not assigned,Adults Services,2301.38
3110001475,13/12/2018,11/12/2018,1248843,Sage Care Ltd,Not assigned,Adults Services,558.49
3110001476,13/12/2018,11/12/2018,1249232,Vincentian Care Plus,Not assigned,Adults Services,549.99
3110001477,13/12/2018,11/12/2018,1248843,Sage Care Ltd,Not assigned,Adults Services,1470.54
3110001479,13/12/2018,11/12/2018,1248843,Sage Care Ltd,Not assigned,Adults Services,524.26
3110001480,13/12/2018,11/12/2018,1249232,Vincentian Care Plus,Not assigned,Adults Services,616.3
3110001481,13/12/2018,11/12/2018,1248843,Sage Care Ltd,Not assigned,Adults Services,970.97
3110001482,13/12/2018,11/12/2018,1249232,Vincentian Care Plus,Not assigned,Adults Services,2555.62
3110001485,13/12/2018,11/12/2018,1248843,Sage Care Ltd,Not assigned,Adults Services,753.11
3110001486,13/12/2018,11/12/2018,1249232,Vincentian Care Plus,Not assigned,Adults Services,545.32
3110001487,13/12/2018,11/12/2018,1248843,Sage Care Ltd,Not assigned,Adults Services,886.49
3110001488,13/12/2018,11/12/2018,1249232,Vincentian Care Plus,Not assigned,Adults Services,527.2
3110001490,13/12/2018,11/12/2018,1249232,Vincentian Care Plus,Not assigned,Adults Services,993
3110001491,13/12/2018,11/12/2018,1248843,Sage Care Ltd,Not assigned,Adults Services,939.49
3110001494,13/12/2018,11/12/2018,1248843,Sage Care Ltd,Not assigned,Adults Services,2490.81
3110001497,13/12/2018,11/12/2018,1249232,Vincentian Care Plus,Not assigned,Adults Services,597.2
3110001498,13/12/2018,11/12/2018,1248843,Sage Care Ltd,Not assigned,Adults Services,625.49
3110001500,13/12/2018,11/12/2018,1248843,Sage Care Ltd,Not assigned,Adults Services,1932.25
3110001501,13/12/2018,11/12/2018,1249232,Vincentian Care Plus,Not assigned,Adults Services,3053.04
3110001504,13/12/2018,11/12/2018,1248843,Sage Care Ltd,Not assigned,Adults Services,540.59
3110001508,13/12/2018,11/12/2018,1248843,Sage Care Ltd,Not assigned,Adults Services,971.58
3110001509,13/12/2018,11/12/2018,1249232,Vincentian Care Plus,Not assigned,Adults Services,1337.75
3110001510,13/12/2018,11/12/2018,1248843,Sage Care Ltd,Not assigned,Adults Services,623.66
3110001513,13/12/2018,11/12/2018,1249232,Vincentian Care Plus,Not assigned,Adults Services,729.42
3110001514,13/12/2018,11/12/2018,1248843,Sage Care Ltd,Not assigned,Adults Services,1914.9
3110001515,13/12/2018,11/12/2018,1249232,Vincentian Care Plus,Not assigned,Adults Services,501.22
3110001517,13/12/2018,11/12/2018,1249232,Vincentian Care Plus,Not assigned,Adults Services,696.32
3110001521,13/12/2018,11/12/2018,1249232,Vincentian Care Plus,Not assigned,Adults Services,1754.91
3110001522,13/12/2018,11/12/2018,1248843,Sage Care Ltd,Not assigned,Adults Services,1552.35
3110001524,13/12/2018,11/12/2018,1248843,Sage Care Ltd,Not assigned,Adults Services,1140.8
3110001525,13/12/2018,11/12/2018,1249232,Vincentian Care Plus,Not assigned,Adults Services,1410.73
3110001526,13/12/2018,11/12/2018,1248843,Sage Care Ltd,Not assigned,Adults Services,2399.19
3110001529,13/12/2018,11/12/2018,1249232,Vincentian Care Plus,Not assigned,Adults Services,784.43
3110001530,13/12/2018,11/12/2018,1248843,Sage Care Ltd,Not assigned,Adults Services,1818.96
3110001531,13/12/2018,11/12/2018,1249232,Vincentian Care Plus,Not assigned,Adults Services,1991.69
3110001532,13/12/2018,11/12/2018,1248843,Sage Care Ltd,Not assigned,Adults Services,896.96
3110001534,13/12/2018,11/12/2018,1248843,Sage Care Ltd,Not assigned,Adults Services,1222.69
3110001535,13/12/2018,11/12/2018,1249232,Vincentian Care Plus,Not assigned,Adults Services,742.42
3110001536,13/12/2018,11/12/2018,1248843,Sage Care Ltd,Not assigned,Adults Services,1251.7
3110001537,13/12/2018,11/12/2018,1249232,Vincentian Care Plus,Not assigned,Adults Services,545.83
3110001538,13/12/2018,11/12/2018,1248843,Sage Care Ltd,Not assigned,Adults Services,505.32
3110001540,13/12/2018,11/12/2018,1248843,Sage Care Ltd,Not assigned,Adults Services,1436.17
3110001542,13/12/2018,11/12/2018,1248843,Sage Care Ltd,Not assigned,Adults Services,800.3
3110001543,13/12/2018,11/12/2018,1249232,Vincentian Care Plus,Not assigned,Adults Services,899.2
3110001545,13/12/2018,11/12/2018,1249232,Vincentian Care Plus,Not assigned,Adults Services,618.12
3110001546,13/12/2018,11/12/2018,1248843,Sage Care Ltd,Not assigned,Adults Services,1081.97
3110001548,13/12/2018,11/12/2018,1248843,Sage Care Ltd,Not assigned,Adults Services,1493.19
3110001549,13/12/2018,11/12/2018,1249232,Vincentian Care Plus,Not assigned,Adults Services,1060.74
3110001550,13/12/2018,11/12/2018,1249232,Vincentian Care Plus,Not assigned,Adults Services,1088.7
3110001552,13/12/2018,11/12/2018,1249232,Vincentian Care Plus,Not assigned,Adults Services,807.45
3110001555,13/12/2018,11/12/2018,1248843,Sage Care Ltd,Not assigned,Adults Services,724
3110001557,13/12/2018,11/12/2018,1248843,Sage Care Ltd,Not assigned,Adults Services,2352.14
3110001559,13/12/2018,11/12/2018,1248843,Sage Care Ltd,Not assigned,Adults Services,1735.66
3110001560,13/12/2018,11/12/2018,1249232,Vincentian Care Plus,Not assigned,Adults Services,3884.56
3110001565,13/12/2018,11/12/2018,1249232,Vincentian Care Plus,Not assigned,Adults Services,691.34
3110001566,13/12/2018,11/12/2018,1248843,Sage Care Ltd,Not assigned,Adults Services,3122.23
3110001567,13/12/2018,11/12/2018,1249232,Vincentian Care Plus,Not assigned,Adults Services,1024.07
3110001569,13/12/2018,11/12/2018,1249232,Vincentian Care Plus,Not assigned,Adults Services,1262.98
3110001572,13/12/2018,11/12/2018,1248843,Sage Care Ltd,Not assigned,Adults Services,2575.12
3110001574,13/12/2018,11/12/2018,1248843,Sage Care Ltd,Not assigned,Adults Services,2008.4
3110001575,13/12/2018,11/12/2018,1249232,Vincentian Care Plus,Not assigned,Adults Services,1491.04
3110001576,13/12/2018,11/12/2018,1248843,Sage Care Ltd,Not assigned,Adults Services,1685.87
3110001578,13/12/2018,11/12/2018,1248843,Sage Care Ltd,Not assigned,Adults Services,2152.94
3110001579,13/12/2018,11/12/2018,1249232,Vincentian Care Plus,Not assigned,Adults Services,710.84
3110001580,13/12/2018,11/12/2018,1248843,Sage Care Ltd,Not assigned,Adults Services,853
3110001582,13/12/2018,11/12/2018,1248843,Sage Care Ltd,Not assigned,Adults Services,2740.95
3110001583,13/12/2018,11/12/2018,1249232,Vincentian Care Plus,Not assigned,Adults Services,953.38
3110001585,13/12/2018,11/12/2018,1248843,Sage Care Ltd,Not assigned,Adults Services,872.13
3110001587,13/12/2018,11/12/2018,1248843,Sage Care Ltd,Not assigned,Adults Services,720.52
3110001589,13/12/2018,11/12/2018,1248843,Sage Care Ltd,Not assigned,Adults Services,4071.67
3110001590,13/12/2018,11/12/2018,1249232,Vincentian Care Plus,Not assigned,Adults Services,521.48
3110001593,13/12/2018,11/12/2018,1248843,Sage Care Ltd,Not assigned,Adults Services,568.13
3110001599,13/12/2018,11/12/2018,1248843,Sage Care Ltd,Not assigned,Adults Services,1933.29
3110001600,13/12/2018,11/12/2018,1249232,Vincentian Care Plus,Not assigned,Adults Services,782.48
3110001602,13/12/2018,11/12/2018,1249232,Vincentian Care Plus,Not assigned,Adults Services,570.24
3110001604,13/12/2018,11/12/2018,1248843,Sage Care Ltd,Not assigned,Adults Services,2745.57
3110001605,13/12/2018,11/12/2018,1249232,Vincentian Care Plus,Not assigned,Adults Services,1268.17
3110001606,13/12/2018,11/12/2018,1248843,Sage Care Ltd,Not assigned,Adults Services,640.49
3110001607,13/12/2018,11/12/2018,1249232,Vincentian Care Plus,Not assigned,Adults Services,1448.81
3110001609,13/12/2018,11/12/2018,1249232,Vincentian Care Plus,Not assigned,Adults Services,538.09
3110001610,13/12/2018,11/12/2018,1248843,Sage Care Ltd,Not assigned,Adults Services,511.68
3110001611,13/12/2018,11/12/2018,1249232,Vincentian Care Plus,Not assigned,Adults Services,1058.05
3110001614,13/12/2018,11/12/2018,1248843,Sage Care Ltd,Not assigned,Adults Services,2774.62
3110001616,13/12/2018,11/12/2018,1248843,Sage Care Ltd,Not assigned,Adults Services,630.55
3110001617,13/12/2018,11/12/2018,1249232,Vincentian Care Plus,Not assigned,Adults Services,1023.79
3110001619,13/12/2018,11/12/2018,1249232,Vincentian Care Plus,Not assigned,Adults Services,1410.01
3110001622,13/12/2018,11/12/2018,1249232,Vincentian Care Plus,Not assigned,Adults Services,554.27
3110001625,13/12/2018,11/12/2018,1248843,Sage Care Ltd,Not assigned,Adults Services,1061.4
3110001626,13/12/2018,11/12/2018,1249232,Vincentian Care Plus,Not assigned,Adults Services,2979.99
3110001627,13/12/2018,11/12/2018,1248843,Sage Care Ltd,Not assigned,Adults Services,785.92
3110001628,13/12/2018,11/12/2018,1249232,Vincentian Care Plus,Not assigned,Adults Services,638.87
3110001629,13/12/2018,11/12/2018,1248843,Sage Care Ltd,Not assigned,Adults Services,918.28
3110001632,13/12/2018,11/12/2018,1249232,Vincentian Care Plus,Not assigned,Adults Services,1104.63
3110001633,13/12/2018,11/12/2018,1248843,Sage Care Ltd,Not assigned,Adults Services,1867.44
3110001635,13/12/2018,11/12/2018,1248843,Sage Care Ltd,Not assigned,Adults Services,1125.15
3110001636,13/12/2018,11/12/2018,1249232,Vincentian Care Plus,Not assigned,Adults Services,1076.21
3110001637,13/12/2018,11/12/2018,1248843,Sage Care Ltd,Not assigned,Adults Services,1077.2
3110001638,13/12/2018,11/12/2018,1249232,Vincentian Care Plus,Not assigned,Adults Services,2849.9
3110001639,13/12/2018,11/12/2018,1248843,Sage Care Ltd,Not assigned,Adults Services,1133.62
3110001640,13/12/2018,11/12/2018,1249232,Vincentian Care Plus,Not assigned,Adults Services,1102.02
3110001642,13/12/2018,11/12/2018,1248843,Sage Care Ltd,Not assigned,Adults Services,3622.55
3110001644,13/12/2018,11/12/2018,1248843,Sage Care Ltd,Not assigned,Adults Services,2038.66
3110001645,13/12/2018,11/12/2018,1249232,Vincentian Care Plus,Not assigned,Adults Services,538.38
3110001647,13/12/2018,11/12/2018,1249232,Vincentian Care Plus,Not assigned,Adults Services,658.29
3110001648,13/12/2018,11/12/2018,1248843,Sage Care Ltd,Not assigned,Adults Services,1128.85
3110001649,13/12/2018,11/12/2018,1249232,Vincentian Care Plus,Not assigned,Adults Services,616.7
3110001650,13/12/2018,11/12/2018,1248843,Sage Care Ltd,Not assigned,Adults Services,620.56
3110001652,13/12/2018,11/12/2018,1248843,Sage Care Ltd,Not assigned,Adults Services,3427.93
3110001653,13/12/2018,11/12/2018,1249232,Vincentian Care Plus,Not assigned,Adults Services,1224.92
3110001654,13/12/2018,11/12/2018,1248843,Sage Care Ltd,Not assigned,Adults Services,1178.82
3110001655,13/12/2018,11/12/2018,1249232,Vincentian Care Plus,Not assigned,Adults Services,1976.67
3110001656,13/12/2018,11/12/2018,1248843,Sage Care Ltd,Not assigned,Adults Services,1297.8
3110001657,13/12/2018,11/12/2018,1249232,Vincentian Care Plus,Not assigned,Adults Services,922.02
3110001658,13/12/2018,11/12/2018,1248843,Sage Care Ltd,Not assigned,Adults Services,986.01
3110001660,13/12/2018,11/12/2018,1248843,Sage Care Ltd,Not assigned,Adults Services,1299.93
3110001661,13/12/2018,11/12/2018,1249232,Vincentian Care Plus,Not assigned,Adults Services,2722.41
3110001664,13/12/2018,11/12/2018,1248843,Sage Care Ltd,Not assigned,Adults Services,1285.01
3110001665,13/12/2018,11/12/2018,1247650,London Care Ltd,Not assigned,Adults Services,1091.88
3110001666,13/12/2018,11/12/2018,1249232,Vincentian Care Plus,Not assigned,Adults Services,1457.77
3110001668,13/12/2018,11/12/2018,1249232,Vincentian Care Plus,Not assigned,Adults Services,735.72
3110001669,13/12/2018,11/12/2018,1247650,London Care Ltd,Not assigned,Adults Services,1181.34
3110001672,13/12/2018,11/12/2018,1247650,London Care Ltd,Not assigned,Adults Services,556.03
3110001673,13/12/2018,11/12/2018,1248843,Sage Care Ltd,Not assigned,Adults Services,1251.68
3110001674,13/12/2018,11/12/2018,1249232,Vincentian Care Plus,Not assigned,Adults Services,3915.22
3110001675,13/12/2018,11/12/2018,1247650,London Care Ltd,Not assigned,Adults Services,998.92
3110001678,13/12/2018,11/12/2018,1247650,London Care Ltd,Not assigned,Adults Services,830.48
3110001680,13/12/2018,11/12/2018,1249232,Vincentian Care Plus,Not assigned,Adults Services,1532.14
3110001682,13/12/2018,11/12/2018,1248843,Sage Care Ltd,Not assigned,Adults Services,732.29
3110001683,13/12/2018,11/12/2018,1249232,Vincentian Care Plus,Not assigned,Adults Services,2373.72
3110001686,13/12/2018,11/12/2018,1249232,Vincentian Care Plus,Not assigned,Adults Services,819.26
3110001688,13/12/2018,11/12/2018,1248843,Sage Care Ltd,Not assigned,Adults Services,3248.91
3110001690,13/12/2018,11/12/2018,1247650,London Care Ltd,Not assigned,Adults Services,1391.85
3110001691,13/12/2018,11/12/2018,1248843,Sage Care Ltd,Not assigned,Adults Services,715.55
3110001692,13/12/2018,11/12/2018,1249232,Vincentian Care Plus,Not assigned,Adults Services,872.87
3110001693,13/12/2018,11/12/2018,1247650,London Care Ltd,Not assigned,Adults Services,1535.94
3110001694,13/12/2018,11/12/2018,1248843,Sage Care Ltd,Not assigned,Adults Services,1058.47
3110001695,13/12/2018,11/12/2018,1249232,Vincentian Care Plus,Not assigned,Adults Services,655.47
3110001697,13/12/2018,11/12/2018,1248843,Sage Care Ltd,Not assigned,Adults Services,1286.08
3110001698,13/12/2018,11/12/2018,1249232,Vincentian Care Plus,Not assigned,Adults Services,4646.17
3110001699,13/12/2018,11/12/2018,1247650,London Care Ltd,Not assigned,Adults Services,1115.5
3110001700,13/12/2018,11/12/2018,1248843,Sage Care Ltd,Not assigned,Adults Services,548.28
3110001701,13/12/2018,11/12/2018,1249232,Vincentian Care Plus,Not assigned,Adults Services,621.69
3110001703,13/12/2018,11/12/2018,1248843,Sage Care Ltd,Not assigned,Adults Services,747.19
3110001705,13/12/2018,11/12/2018,1247650,London Care Ltd,Not assigned,Adults Services,2130.25
3110001706,13/12/2018,11/12/2018,1248843,Sage Care Ltd,Not assigned,Adults Services,1594.11
3110001707,13/12/2018,11/12/2018,1249232,Vincentian Care Plus,Not assigned,Adults Services,1213.65
3110001708,13/12/2018,11/12/2018,1247650,London Care Ltd,Not assigned,Adults Services,821.73
3110001710,13/12/2018,11/12/2018,1249232,Vincentian Care Plus,Not assigned,Adults Services,2792.82
3110001711,13/12/2018,11/12/2018,1247650,London Care Ltd,Not assigned,Adults Services,1013.59
3110001712,13/12/2018,11/12/2018,1248843,Sage Care Ltd,Not assigned,Adults Services,819.03
3110001713,13/12/2018,11/12/2018,1249232,Vincentian Care Plus,Not assigned,Adults Services,2361.71
3110001715,13/12/2018,11/12/2018,1248843,Sage Care Ltd,Not assigned,Adults Services,628.34
3110001717,13/12/2018,11/12/2018,1247650,London Care Ltd,Not assigned,Adults Services,1128.15
3110001718,13/12/2018,11/12/2018,1248843,Sage Care Ltd,Not assigned,Adults Services,2124.51
3110001719,13/12/2018,11/12/2018,1249232,Vincentian Care Plus,Not assigned,Adults Services,878.88
3110001720,13/12/2018,11/12/2018,1247650,London Care Ltd,Not assigned,Adults Services,1167.6
3110001722,13/12/2018,11/12/2018,1249232,Vincentian Care Plus,Not assigned,Adults Services,1357.75
3110001724,13/12/2018,11/12/2018,1249232,Vincentian Care Plus,Not assigned,Adults Services,1432.73
3110001725,13/12/2018,11/12/2018,1247650,London Care Ltd,Not assigned,Adults Services,1523.11
3110001726,13/12/2018,11/12/2018,1249232,Vincentian Care Plus,Not assigned,Adults Services,564.59
3110001729,13/12/2018,11/12/2018,1247257,Health Vision Uk,Not assigned,Adults Services,1374.57
3110001731,13/12/2018,11/12/2018,1249232,Vincentian Care Plus,Not assigned,Adults Services,754.75
3110001733,13/12/2018,11/12/2018,1247650,London Care Ltd,Not assigned,Adults Services,937.74
3110001734,13/12/2018,11/12/2018,1249232,Vincentian Care Plus,Not assigned,Adults Services,2003.53
3110001738,13/12/2018,11/12/2018,1247257,Health Vision Uk,Not assigned,Adults Services,535.93
3110001739,13/12/2018,11/12/2018,1247650,London Care Ltd,Not assigned,Adults Services,611.18
3110001740,13/12/2018,11/12/2018,1249232,Vincentian Care Plus,Not assigned,Adults Services,707.14
3110001742,13/12/2018,11/12/2018,1247650,London Care Ltd,Not assigned,Adults Services,572.94
3110001743,13/12/2018,11/12/2018,1249232,Vincentian Care Plus,Not assigned,Adults Services,1308.91
3110001744,13/12/2018,11/12/2018,1247257,Health Vision Uk,Not assigned,Adults Services,1309.53
3110001745,13/12/2018,11/12/2018,1247650,London Care Ltd,Not assigned,Adults Services,1288.25
3110001746,13/12/2018,11/12/2018,1249232,Vincentian Care Plus,Not assigned,Adults Services,689.36
3110001747,13/12/2018,11/12/2018,1247257,Health Vision Uk,Not assigned,Adults Services,1907.02
3110001749,13/12/2018,11/12/2018,1249232,Vincentian Care Plus,Not assigned,Adults Services,1089.73
3110001750,13/12/2018,11/12/2018,1247257,Health Vision Uk,Not assigned,Adults Services,724.55
3110001751,13/12/2018,11/12/2018,1247650,London Care Ltd,Not assigned,Adults Services,696.37
3110001754,13/12/2018,11/12/2018,1247650,London Care Ltd,Not assigned,Adults Services,1308.18
3110001756,13/12/2018,11/12/2018,1247257,Health Vision Uk,Not assigned,Adults Services,628.61
3110001759,13/12/2018,11/12/2018,1247257,Health Vision Uk,Not assigned,Adults Services,2510.1
3110001761,13/12/2018,11/12/2018,1249232,Vincentian Care Plus,Not assigned,Adults Services,903.64
3110001762,13/12/2018,11/12/2018,1247257,Health Vision Uk,Not assigned,Adults Services,1417.54
3110001763,13/12/2018,11/12/2018,1247650,London Care Ltd,Not assigned,Adults Services,796.08
3110001764,13/12/2018,11/12/2018,1249232,Vincentian Care Plus,Not assigned,Adults Services,1447.75
3110001765,13/12/2018,11/12/2018,1247257,Health Vision Uk,Not assigned,Adults Services,1348.62
3110001766,13/12/2018,11/12/2018,1247650,London Care Ltd,Not assigned,Adults Services,1060.45
3110001770,13/12/2018,11/12/2018,1247257,Health Vision Uk,Not assigned,Adults Services,1227.96
3110001772,13/12/2018,11/12/2018,1247257,Health Vision Uk,Not assigned,Adults Services,1207.85
3110001778,13/12/2018,11/12/2018,1247257,Health Vision Uk,Not assigned,Adults Services,1110.44
3110001780,13/12/2018,11/12/2018,1247257,Health Vision Uk,Not assigned,Adults Services,629.31
3110001783,13/12/2018,11/12/2018,1247650,London Care Ltd,Not assigned,Adults Services,1501.3
3110001784,13/12/2018,11/12/2018,1247257,Health Vision Uk,Not assigned,Adults Services,502.98
3110001785,13/12/2018,11/12/2018,1247650,London Care Ltd,Not assigned,Adults Services,1007.14
3110001788,13/12/2018,11/12/2018,1247257,Health Vision Uk,Not assigned,Adults Services,1117.71
3110001789,13/12/2018,11/12/2018,1247650,London Care Ltd,Not assigned,Adults Services,1177.15
3110001794,13/12/2018,11/12/2018,1247650,London Care Ltd,Not assigned,Adults Services,510.61
3110001795,13/12/2018,11/12/2018,1247257,Health Vision Uk,Not assigned,Adults Services,743.57
3110001800,13/12/2018,11/12/2018,1247650,London Care Ltd,Not assigned,Adults Services,826.2
3110001801,13/12/2018,11/12/2018,1247257,Health Vision Uk,Not assigned,Adults Services,567.66
3110001804,13/12/2018,11/12/2018,1247650,London Care Ltd,Not assigned,Adults Services,553.24
3110001807,13/12/2018,11/12/2018,1247257,Health Vision Uk,Not assigned,Adults Services,1241.77
3110001808,13/12/2018,11/12/2018,1247650,London Care Ltd,Not assigned,Adults Services,2660.68
3110001810,13/12/2018,11/12/2018,1247650,London Care Ltd,Not assigned,Adults Services,1135.14
3110001811,13/12/2018,11/12/2018,1247257,Health Vision Uk,Not assigned,Adults Services,642.95
3110001813,13/12/2018,11/12/2018,1247257,Health Vision Uk,Not assigned,Adults Services,656.56
3110001814,13/12/2018,11/12/2018,1247650,London Care Ltd,Not assigned,Adults Services,733.79
3110001815,13/12/2018,11/12/2018,1247257,Health Vision Uk,Not assigned,Adults Services,1871.93
3110001816,13/12/2018,11/12/2018,1247650,London Care Ltd,Not assigned,Adults Services,2307.24
3110001817,13/12/2018,11/12/2018,1247257,Health Vision Uk,Not assigned,Adults Services,555.02
3110001818,13/12/2018,11/12/2018,1247650,London Care Ltd,Not assigned,Adults Services,3068.73
3110001819,13/12/2018,11/12/2018,1247257,Health Vision Uk,Not assigned,Adults Services,601.24
3110001820,13/12/2018,11/12/2018,1247650,London Care Ltd,Not assigned,Adults Services,1302.63
3110001821,13/12/2018,11/12/2018,1247257,Health Vision Uk,Not assigned,Adults Services,715.07
3110001822,13/12/2018,11/12/2018,1247650,London Care Ltd,Not assigned,Adults Services,1131.68
3110001824,13/12/2018,11/12/2018,1247257,Health Vision Uk,Not assigned,Adults Services,602.36
3110001826,13/12/2018,11/12/2018,1247257,Health Vision Uk,Not assigned,Adults Services,967.21
3110001828,13/12/2018,11/12/2018,1247257,Health Vision Uk,Not assigned,Adults Services,947.1
3110001831,13/12/2018,11/12/2018,1247650,London Care Ltd,Not assigned,Adults Services,944.14
3110001832,13/12/2018,11/12/2018,1247257,Health Vision Uk,Not assigned,Adults Services,1849.35
3110001835,13/12/2018,11/12/2018,1247650,London Care Ltd,Not assigned,Adults Services,3007.17
3110001838,13/12/2018,11/12/2018,1247257,Health Vision Uk,Not assigned,Adults Services,530.95
3110001839,13/12/2018,11/12/2018,1247650,London Care Ltd,Not assigned,Adults Services,666.31
3110001841,13/12/2018,11/12/2018,1247650,London Care Ltd,Not assigned,Adults Services,1144.32
3110001843,13/12/2018,11/12/2018,1247650,London Care Ltd,Not assigned,Adults Services,1548.03
3110001845,13/12/2018,11/12/2018,1247257,Health Vision Uk,Not assigned,Adults Services,1496.59
3110001848,13/12/2018,11/12/2018,1247650,London Care Ltd,Not assigned,Adults Services,949.8
3110001850,13/12/2018,11/12/2018,1247650,London Care Ltd,Not assigned,Adults Services,1079.08
3110001852,13/12/2018,11/12/2018,1247650,London Care Ltd,Not assigned,Adults Services,937.38
3110001853,13/12/2018,11/12/2018,1247257,Health Vision Uk,Not assigned,Adults Services,1016.64
3110001854,13/12/2018,11/12/2018,1247650,London Care Ltd,Not assigned,Adults Services,2143.19
3110001855,13/12/2018,11/12/2018,1247257,Health Vision Uk,Not assigned,Adults Services,1524.24
3110001856,13/12/2018,11/12/2018,1247650,London Care Ltd,Not assigned,Adults Services,3055.13
3110001857,13/12/2018,11/12/2018,1247257,Health Vision Uk,Not assigned,Adults Services,1957.07
3110001858,13/12/2018,11/12/2018,1247650,London Care Ltd,Not assigned,Adults Services,617.68
3110001860,13/12/2018,11/12/2018,1247650,London Care Ltd,Not assigned,Adults Services,753.34
3110001862,13/12/2018,11/12/2018,1247650,London Care Ltd,Not assigned,Adults Services,914.27
3110001866,13/12/2018,11/12/2018,1247650,London Care Ltd,Not assigned,Adults Services,764.51
3110001867,13/12/2018,11/12/2018,1247257,Health Vision Uk,Not assigned,Adults Services,670.78
3110001868,13/12/2018,11/12/2018,1247650,London Care Ltd,Not assigned,Adults Services,1547.97
3110001871,13/12/2018,11/12/2018,1247257,Health Vision Uk,Not assigned,Adults Services,1201.34
3110001874,13/12/2018,11/12/2018,1247650,London Care Ltd,Not assigned,Adults Services,1264.46
3110001877,13/12/2018,11/12/2018,1247257,Health Vision Uk,Not assigned,Adults Services,1712.27
3110001878,13/12/2018,11/12/2018,1247650,London Care Ltd,Not assigned,Adults Services,725.97
3110001881,13/12/2018,11/12/2018,1247257,Health Vision Uk,Not assigned,Adults Services,2766.48
3110001882,13/12/2018,11/12/2018,1247650,London Care Ltd,Not assigned,Adults Services,1479.65
3110001885,13/12/2018,11/12/2018,1247257,Health Vision Uk,Not assigned,Adults Services,1660.79
3110001886,13/12/2018,11/12/2018,1247650,London Care Ltd,Not assigned,Adults Services,1384.48
3110001887,13/12/2018,11/12/2018,1247257,Health Vision Uk,Not assigned,Adults Services,858.63
3110001888,13/12/2018,11/12/2018,1247650,London Care Ltd,Not assigned,Adults Services,1299.91
3110001890,13/12/2018,11/12/2018,1247650,London Care Ltd,Not assigned,Adults Services,886.09
3110001891,13/12/2018,11/12/2018,1247257,Health Vision Uk,Not assigned,Adults Services,563.34
3110001892,13/12/2018,11/12/2018,1247650,London Care Ltd,Not assigned,Adults Services,643.24
3110001893,13/12/2018,11/12/2018,1247257,Health Vision Uk,Not assigned,Adults Services,697.88
3110001895,13/12/2018,11/12/2018,1247257,Health Vision Uk,Not assigned,Adults Services,633.7
3110001897,13/12/2018,11/12/2018,1247257,Health Vision Uk,Not assigned,Adults Services,981.82
3110001898,13/12/2018,11/12/2018,1247650,London Care Ltd,Not assigned,Adults Services,855.77
3110001899,13/12/2018,11/12/2018,1247257,Health Vision Uk,Not assigned,Adults Services,536.7
3110001902,13/12/2018,11/12/2018,1247650,London Care Ltd,Not assigned,Adults Services,1684.17
3110001903,13/12/2018,11/12/2018,1247257,Health Vision Uk,Not assigned,Adults Services,1158.94
3110001905,13/12/2018,11/12/2018,1247257,Health Vision Uk,Not assigned,Adults Services,1585.98
3110001907,13/12/2018,11/12/2018,1247257,Health Vision Uk,Not assigned,Adults Services,552.44
3110001911,13/12/2018,11/12/2018,1247257,Health Vision Uk,Not assigned,Adults Services,1692.54
3110001912,13/12/2018,11/12/2018,1247650,London Care Ltd,Not assigned,Adults Services,530.79
3110001913,13/12/2018,11/12/2018,1247257,Health Vision Uk,Not assigned,Adults Services,899.16
3110001914,13/12/2018,11/12/2018,1247650,London Care Ltd,Not assigned,Adults Services,865.48
3110001916,13/12/2018,11/12/2018,1247650,London Care Ltd,Not assigned,Adults Services,1419.79
3110001919,13/12/2018,11/12/2018,1247257,Health Vision Uk,Not assigned,Adults Services,1651.03
3110001920,13/12/2018,11/12/2018,1247650,London Care Ltd,Not assigned,Adults Services,1267.31
3110001923,13/12/2018,11/12/2018,1247257,Health Vision Uk,Not assigned,Adults Services,706.33
3110001925,13/12/2018,11/12/2018,1247257,Health Vision Uk,Not assigned,Adults Services,1472.19
3110001927,13/12/2018,11/12/2018,1247257,Health Vision Uk,Not assigned,Adults Services,1006.91
3110001928,13/12/2018,11/12/2018,1247650,London Care Ltd,Not assigned,Adults Services,732.76
3110001929,13/12/2018,11/12/2018,1247650,London Care Ltd,Not assigned,Adults Services,520.37
3110001930,13/12/2018,11/12/2018,1247257,Health Vision Uk,Not assigned,Adults Services,2716.39
3110001933,13/12/2018,11/12/2018,1247650,London Care Ltd,Not assigned,Adults Services,2450.5
3110001936,13/12/2018,11/12/2018,1247257,Health Vision Uk,Not assigned,Adults Services,744.1
3110001938,13/12/2018,11/12/2018,1247257,Health Vision Uk,Not assigned,Adults Services,651.15
3110001940,13/12/2018,11/12/2018,1247257,Health Vision Uk,Not assigned,Adults Services,1222.03
3110001943,13/12/2018,11/12/2018,1247650,London Care Ltd,Not assigned,Adults Services,713.86
3110001944,13/12/2018,11/12/2018,1247257,Health Vision Uk,Not assigned,Adults Services,984.14
3110001945,13/12/2018,11/12/2018,1247650,London Care Ltd,Not assigned,Adults Services,1185.4
3110001946,13/12/2018,11/12/2018,1247257,Health Vision Uk,Not assigned,Adults Services,560.75
3110001948,13/12/2018,11/12/2018,1247257,Health Vision Uk,Not assigned,Adults Services,725.81
3110001951,13/12/2018,11/12/2018,1247650,London Care Ltd,Not assigned,Adults Services,1560.82
3110001954,13/12/2018,11/12/2018,1247257,Health Vision Uk,Not assigned,Adults Services,2975.1
3110001957,13/12/2018,11/12/2018,1247650,London Care Ltd,Not assigned,Adults Services,711.13
3110001959,13/12/2018,11/12/2018,1247650,London Care Ltd,Not assigned,Adults Services,779.57
3110001960,13/12/2018,11/12/2018,1247257,Health Vision Uk,Not assigned,Adults Services,731.56
3110001961,13/12/2018,11/12/2018,1247650,London Care Ltd,Not assigned,Adults Services,1980.88
3110001962,13/12/2018,11/12/2018,1247257,Health Vision Uk,Not assigned,Adults Services,971.26
3110001963,13/12/2018,11/12/2018,1247650,London Care Ltd,Not assigned,Adults Services,2838.14
3110001965,13/12/2018,11/12/2018,1247650,London Care Ltd,Not assigned,Adults Services,631.4
3110001968,13/12/2018,11/12/2018,1247257,Health Vision Uk,Not assigned,Adults Services,854.53
3110001969,13/12/2018,11/12/2018,1247650,London Care Ltd,Not assigned,Adults Services,710.42
3110001971,13/12/2018,11/12/2018,1247650,London Care Ltd,Not assigned,Adults Services,1577.77
3110001972,13/12/2018,11/12/2018,1247257,Health Vision Uk,Not assigned,Adults Services,1621.79
3110001973,13/12/2018,11/12/2018,1247650,London Care Ltd,Not assigned,Adults Services,781.59
3110001975,13/12/2018,11/12/2018,1247650,London Care Ltd,Not assigned,Adults Services,792.94
3110001978,13/12/2018,11/12/2018,1247257,Health Vision Uk,Not assigned,Adults Services,1236.51
3110001982,13/12/2018,11/12/2018,1247257,Health Vision Uk,Not assigned,Adults Services,884.07
3110001983,13/12/2018,11/12/2018,1247650,London Care Ltd,Not assigned,Adults Services,836.31
3110001984,13/12/2018,11/12/2018,1247257,Health Vision Uk,Not assigned,Adults Services,558.69
3110001987,13/12/2018,11/12/2018,1247650,London Care Ltd,Not assigned,Adults Services,1708.13
3110001988,13/12/2018,11/12/2018,1247257,Health Vision Uk,Not assigned,Adults Services,688.4
3110001990,13/12/2018,11/12/2018,1247257,Health Vision Uk,Not assigned,Adults Services,2151.22
3110001992,13/12/2018,11/12/2018,1247257,Health Vision Uk,Not assigned,Adults Services,737.24
3110001993,13/12/2018,11/12/2018,1247257,Health Vision Uk,Not assigned,Adults Services,570.23
3110001994,13/12/2018,11/12/2018,1247257,Health Vision Uk,Not assigned,Adults Services,545.06
3110001995,13/12/2018,11/12/2018,1247257,Health Vision Uk,Not assigned,Adults Services,2989.8
3110001997,13/12/2018,11/12/2018,1247257,Health Vision Uk,Not assigned,Adults Services,1468.81
3110001998,13/12/2018,11/12/2018,1247257,Health Vision Uk,Not assigned,Adults Services,562.78
3110002000,13/12/2018,11/12/2018,1247257,Health Vision Uk,Not assigned,Adults Services,2088.72
3110002002,13/12/2018,11/12/2018,1247257,Health Vision Uk,Not assigned,Adults Services,2201.2
3110002003,13/12/2018,11/12/2018,1247257,Health Vision Uk,Not assigned,Adults Services,974.38
3110002005,13/12/2018,11/12/2018,1247257,Health Vision Uk,Not assigned,Adults Services,2496
3110002006,13/12/2018,11/12/2018,1247257,Health Vision Uk,Not assigned,Adults Services,832.13
3110002007,13/12/2018,11/12/2018,1247257,Health Vision Uk,Not assigned,Adults Services,892.27
3110002009,13/12/2018,11/12/2018,1247257,Health Vision Uk,Not assigned,Adults Services,1179.44
3110002010,13/12/2018,11/12/2018,1247257,Health Vision Uk,Not assigned,Adults Services,981.56
3110002012,13/12/2018,11/12/2018,1247257,Health Vision Uk,Not assigned,Adults Services,1570.02
3110002013,13/12/2018,11/12/2018,1247257,Health Vision Uk,Not assigned,Adults Services,563.38
3110002014,13/12/2018,11/12/2018,1247257,Health Vision Uk,Not assigned,Adults Services,730.41
3110002017,13/12/2018,11/12/2018,1247257,Health Vision Uk,Not assigned,Adults Services,827.23
3110002019,13/12/2018,11/12/2018,1247257,Health Vision Uk,Not assigned,Adults Services,1040.38
3110002020,13/12/2018,11/12/2018,1247257,Health Vision Uk,Not assigned,Adults Services,538.84
3110002021,13/12/2018,11/12/2018,1247257,Health Vision Uk,Not assigned,Adults Services,1467.17
3110002022,13/12/2018,11/12/2018,1247257,Health Vision Uk,Not assigned,Adults Services,758.13
3110002023,13/12/2018,11/12/2018,1247257,Health Vision Uk,Not assigned,Adults Services,694.46
3110002026,13/12/2018,11/12/2018,1247257,Health Vision Uk,Not assigned,Adults Services,918.68
3110002028,13/12/2018,11/12/2018,1247257,Health Vision Uk,Not assigned,Adults Services,1394.31
3110002029,13/12/2018,11/12/2018,1247257,Health Vision Uk,Not assigned,Adults Services,570.25
3110002031,13/12/2018,11/12/2018,1247257,Health Vision Uk,Not assigned,Adults Services,930.61
3110002032,13/12/2018,11/12/2018,1247257,Health Vision Uk,Not assigned,Adults Services,737.22
3110002034,13/12/2018,11/12/2018,1247257,Health Vision Uk,Not assigned,Adults Services,736.32
3110002036,13/12/2018,11/12/2018,1247257,Health Vision Uk,Not assigned,Adults Services,728.79
3110002037,13/12/2018,11/12/2018,1247257,Health Vision Uk,Not assigned,Adults Services,831.84
3110002038,13/12/2018,11/12/2018,1247257,Health Vision Uk,Not assigned,Adults Services,3702.76
3110002039,13/12/2018,11/12/2018,1247257,Health Vision Uk,Not assigned,Adults Services,560.78
3110002045,13/12/2018,11/12/2018,1247257,Health Vision Uk,Not assigned,Adults Services,3428.76
3110002050,13/12/2018,11/12/2018,1247257,Health Vision Uk,Not assigned,Adults Services,812.28
3110002051,13/12/2018,11/12/2018,1247257,Health Vision Uk,Not assigned,Adults Services,753.96
3110002052,13/12/2018,11/12/2018,1247257,Health Vision Uk,Not assigned,Adults Services,2483.68
3110002053,13/12/2018,11/12/2018,1247257,Health Vision Uk,Not assigned,Adults Services,516.68
3110002055,13/12/2018,11/12/2018,1247257,Health Vision Uk,Not assigned,Adults Services,1292.73
3110002056,13/12/2018,11/12/2018,1247257,Health Vision Uk,Not assigned,Adults Services,1233.97
3110002058,13/12/2018,11/12/2018,1247257,Health Vision Uk,Not assigned,Adults Services,1278.24
3110002059,13/12/2018,11/12/2018,1247257,Health Vision Uk,Not assigned,Adults Services,2025.61
3110002061,13/12/2018,11/12/2018,1247257,Health Vision Uk,Not assigned,Adults Services,801.54
3110002062,13/12/2018,11/12/2018,1247257,Health Vision Uk,Not assigned,Adults Services,979.53
3110002064,13/12/2018,11/12/2018,1247257,Health Vision Uk,Not assigned,Adults Services,1332.32
3110002065,13/12/2018,11/12/2018,1247257,Health Vision Uk,Not assigned,Adults Services,1160.18
3110002066,13/12/2018,11/12/2018,1247257,Health Vision Uk,Not assigned,Adults Services,571.81
3110002067,13/12/2018,11/12/2018,1247257,Health Vision Uk,Not assigned,Adults Services,1307.11
3110002069,13/12/2018,11/12/2018,1247257,Health Vision Uk,Not assigned,Adults Services,1937.63
3110002070,13/12/2018,11/12/2018,1247257,Health Vision Uk,Not assigned,Adults Services,640.57
3110002071,13/12/2018,11/12/2018,1247257,Health Vision Uk,Not assigned,Adults Services,969.52
3110002072,13/12/2018,11/12/2018,1247257,Health Vision Uk,Not assigned,Adults Services,1687.83
3110002073,13/12/2018,11/12/2018,1247257,Health Vision Uk,Not assigned,Adults Services,1422.11
3110002076,13/12/2018,11/12/2018,1247257,Health Vision Uk,Not assigned,Adults Services,3700.99
3110002077,13/12/2018,11/12/2018,1247257,Health Vision Uk,Not assigned,Adults Services,1105.49
3110002080,13/12/2018,11/12/2018,1247257,Health Vision Uk,Not assigned,Adults Services,1591.63
3110002085,13/12/2018,11/12/2018,1247257,Health Vision Uk,Not assigned,Adults Services,741.21
3110002087,13/12/2018,11/12/2018,1247257,Health Vision Uk,Not assigned,Adults Services,1105.02
3110002088,13/12/2018,11/12/2018,1247257,Health Vision Uk,Not assigned,Adults Services,1104.02
3110002089,13/12/2018,11/12/2018,1247257,Health Vision Uk,Not assigned,Adults Services,1557.19
3110002090,13/12/2018,11/12/2018,1247257,Health Vision Uk,Not assigned,Adults Services,2126.95
3110002091,13/12/2018,11/12/2018,1247257,Health Vision Uk,Not assigned,Adults Services,2577.3
3110002092,13/12/2018,11/12/2018,1247257,Health Vision Uk,Not assigned,Adults Services,501.72
3110002093,13/12/2018,11/12/2018,1247257,Health Vision Uk,Not assigned,Adults Services,727.79
3110002094,13/12/2018,11/12/2018,1247257,Health Vision Uk,Not assigned,Adults Services,1985.94
3110002095,13/12/2018,11/12/2018,1247257,Health Vision Uk,Not assigned,Adults Services,833.63
3110002098,13/12/2018,11/12/2018,1247257,Health Vision Uk,Not assigned,Adults Services,810.73
3110002100,13/12/2018,11/12/2018,1247257,Health Vision Uk,Not assigned,Adults Services,2474.97
3110002103,13/12/2018,11/12/2018,1247257,Health Vision Uk,Not assigned,Adults Services,1643.26
3110002104,13/12/2018,11/12/2018,1247257,Health Vision Uk,Not assigned,Adults Services,2150.38
3110002127,14/12/2018,06/12/2018,1245372,GEM Environmental Building Services Ltd,Not assigned,Housing Revenue Acco,9928.33
3110002128,14/12/2018,06/12/2018,1245372,GEM Environmental Building Services Ltd,Not assigned,Housing Revenue Acco,694.49
3110002129,14/12/2018,06/12/2018,1245372,GEM Environmental Building Services Ltd,Not assigned,Housing Revenue Acco,21843.01
3110002130,14/12/2018,06/12/2018,1245372,GEM Environmental Building Services Ltd,Not assigned,Housing Revenue Acco,1502.67
3110002132,14/12/2018,06/12/2018,1245372,GEM Environmental Building Services Ltd,Not assigned,Housing Revenue Acco,852.88
3110002133,14/12/2018,06/12/2018,1245372,GEM Environmental Building Services Ltd,Not assigned,Housing Revenue Acco,12652.3
3110002134,14/12/2018,06/12/2018,1245372,GEM Environmental Building Services Ltd,Not assigned,Housing Revenue Acco,140572.15
3110002135,14/12/2018,05/12/2018,1245372,GEM Environmental Building Services Ltd,Not assigned,Housing Revenue Acco,29566.38
3110002137,14/12/2018,05/12/2018,1244689,Key Management Systems Ltd,Not assigned,Housing Revenue Acco,3593.8
3110002140,14/12/2018,12/12/2018,1246288,Personal detail - redacted,Not assigned,Housing Revenue Acco,750
3110002141,14/12/2018,12/12/2018,1246288,Personal detail - redacted,Not assigned,Housing Revenue Acco,750
3110002142,14/12/2018,12/12/2018,1246288,Personal detail - redacted,Not assigned,Housing Revenue Acco,1450
3110002143,14/12/2018,12/12/2018,1250716,Focus Furnishing,Not assigned,Housing Revenue Acco,1145.34
3110002144,14/12/2018,12/12/2018,1250716,Focus Furnishing,Not assigned,Housing,589.71
3110002145,14/12/2018,12/12/2018,1250716,Focus Furnishing,Not assigned,Housing,683.5
3110002147,14/12/2018,12/12/2018,1250716,Focus Furnishing,Not assigned,Housing Revenue Acco,1160.88
3110002148,14/12/2018,12/12/2018,1250716,Focus Furnishing,Not assigned,Housing Revenue Acco,1281.9
3110002149,14/12/2018,12/12/2018,1250716,Focus Furnishing,Not assigned,Housing Revenue Acco,1094.18
3110002162,14/12/2018,12/12/2018,1246289,Bs Project Services Ltd,Not assigned,Schools,764.37
3110002164,14/12/2018,12/12/2018,1246289,Bs Project Services Ltd,Not assigned,Schools,764.37
3110002166,14/12/2018,12/12/2018,1246289,Bs Project Services Ltd,Not assigned,Schools,1273.95
3110002168,14/12/2018,12/12/2018,1246289,Bs Project Services Ltd,Not assigned,Schools,764.37
3110002169,14/12/2018,13/12/2018,1245411,Personal detail - redacted,Not assigned,Childrens Services,555.5
3110002170,14/12/2018,04/12/2018,1246934,Equal People,Not assigned,Schools,900
3110002172,14/12/2018,13/12/2018,1245410,Personal detail - redacted,Not assigned,Childrens Services,628
3110002173,14/12/2018,13/12/2018,1245488,Personal detail - redacted,Not assigned,Childrens Services,933
3110002174,14/12/2018,13/12/2018,1250438,Personal detail - redacted,Not assigned,Childrens Services,879
3110002178,14/12/2018,13/12/2018,1247932,Igar Hotel T/A Minds Ltd,Not assigned,Childrens Services,1395
3110002180,14/12/2018,13/12/2018,1244672,Just Homes Charity,Not assigned,Childrens Services,507
3110002183,14/12/2018,13/12/2018,1243896,Altwood Housing Limited,Not assigned,Childrens Services,1080
3110002185,14/12/2018,13/12/2018,1249913,Personal detail - redacted,Not assigned,Childrens Services,1120
3110002186,14/12/2018,13/12/2018,1245463,Personal detail - redacted,Not assigned,Childrens Services,681
3110002190,14/12/2018,13/12/2018,1246326,Cansford Laboratories Ltd,Not assigned,Childrens Services,548.4
3110002196,14/12/2018,14/12/2018,1246707,Goodman Ray Solicitors LLP,Not assigned,Childrens Services,845.4
3110002203,14/12/2018,14/12/2018,1246707,Goodman Ray Solicitors LLP,Not assigned,Childrens Services,845.4
3110002204,14/12/2018,13/12/2018,1249913,Personal detail - redacted,Not assigned,Childrens Services,1120
3110002208,14/12/2018,13/12/2018,1244672,Just Homes Charity,Not assigned,Childrens Services,980
3110002211,14/12/2018,13/12/2018,1244672,Just Homes Charity,Not assigned,Childrens Services,980
3110002214,14/12/2018,07/12/2018,1245091,Care UK Community Partnerships Ltd,Not assigned,Adults Services,3701.58
3110002218,14/12/2018,07/12/2018,1245091,Care UK Community Partnerships Ltd,Not assigned,Adults Services,4152.72
3110002221,14/12/2018,07/12/2018,1245091,Care UK Community Partnerships Ltd,Not assigned,Adults Services,5223.18
3110002223,14/12/2018,13/12/2018,1244672,Just Homes Charity,Not assigned,Childrens Services,1092
3110002225,14/12/2018,07/12/2018,1245091,Care UK Community Partnerships Ltd,Not assigned,Adults Services,4147.4
3110002228,14/12/2018,07/12/2018,1245091,Care UK Community Partnerships Ltd,Not assigned,Adults Services,3627.35
3110002231,14/12/2018,07/12/2018,1245091,Care UK Community Partnerships Ltd,Not assigned,Adults Services,1997.09
3110002232,14/12/2018,13/12/2018,1246326,Cansford Laboratories Ltd,Not assigned,Childrens Services,682.8
3110002237,14/12/2018,07/12/2018,1245091,Care UK Community Partnerships Ltd,Not assigned,Adults Services,26334.41
3110002240,14/12/2018,07/12/2018,1245091,Care UK Community Partnerships Ltd,Not assigned,Adults Services,13365.19
3110002243,14/12/2018,07/12/2018,1245091,Care UK Community Partnerships Ltd,Not assigned,Adults Services,3622.04
3110002245,14/12/2018,07/12/2018,1245091,Care UK Community Partnerships Ltd,Not assigned,Adults Services,4243.68
3110002248,14/12/2018,07/12/2018,1245091,Care UK Community Partnerships Ltd,Not assigned,Adults Services,4152.72
3110002251,14/12/2018,07/12/2018,1245091,Care UK Community Partnerships Ltd,Not assigned,Adults Services,3701.58
3110002253,14/12/2018,13/12/2018,1243684,Personal detail - redacted,Not assigned,Childrens Services,720
3110002256,14/12/2018,07/12/2018,1245091,Care UK Community Partnerships Ltd,Not assigned,Adults Services,3701.58
3110002257,14/12/2018,13/12/2018,1245425,Personal detail - redacted,Not assigned,Childrens Services,664
3110002259,14/12/2018,07/12/2018,1245091,Care UK Community Partnerships Ltd,Not assigned,Adults Services,4248.99
3110002260,14/12/2018,13/12/2018,1250566,Personal detail - redacted,Not assigned,Childrens Services,913.28
3110002299,14/12/2018,13/12/2018,1252021,Personal detail - redacted,Not assigned,Childrens Services,2206
3110002313,14/12/2018,13/12/2018,1248408,Personal detail - redacted,Not assigned,Childrens Services,734.41
3110002367,14/12/2018,13/12/2018,1245674,Personal detail - redacted,Not assigned,Childrens Services,545.5
3110002370,14/12/2018,13/12/2018,1245447,Personal detail - redacted,Not assigned,Childrens Services,669.5
3110002375,14/12/2018,13/12/2018,1245411,Personal detail - redacted,Not assigned,Childrens Services,545.5
3110002378,14/12/2018,13/12/2018,1248462,Personal detail - redacted,Not assigned,Childrens Services,755.53
3110002379,14/12/2018,13/12/2018,1248486,Personal detail - redacted,Not assigned,Childrens Services,742.7
3110002415,14/12/2018,13/12/2018,1243715,Personal detail - redacted,Not assigned,Childrens Services,933
3110002428,14/12/2018,13/12/2018,1248462,Personal detail - redacted,Not assigned,Childrens Services,725.53
3110002436,14/12/2018,13/12/2018,1245415,Personal detail - redacted,Not assigned,Childrens Services,1332
3110002460,14/12/2018,13/12/2018,1245670,Personal detail - redacted,Not assigned,Childrens Services,894.7
3110002461,14/12/2018,13/12/2018,1243658,Personal detail - redacted,Not assigned,Childrens Services,545.5
3110002463,14/12/2018,13/12/2018,1248108,Personal detail - redacted,Not assigned,Childrens Services,1000
3110002473,14/12/2018,13/12/2018,1244411,Financial Data Management Ltd,Not assigned,SEB & Ceremonial,1318.55
3110002475,14/12/2018,14/12/2018,1248522,Portman Early Childhood Centre,Not assigned,Childrens Services,90000
3110002548,15/12/2018,10/12/2018,1244395,Explora Haven Training and Support Services Limited,Not assigned,Adults Services,1445
3110002557,15/12/2018,09/12/2018,1245882,The Bis Services Ltd,Not assigned,Adults Services,1142.44
3110002562,15/12/2018,01/12/2018,1244959,Oasis Care & Training Agency(octa),Not assigned,Adults Services,2100
3110002564,15/12/2018,01/12/2018,1244959,Oasis Care & Training Agency(octa),Not assigned,Adults Services,840
3110002565,15/12/2018,09/12/2018,1245882,The Bis Services Ltd,Not assigned,Adults Services,1142.44
3110002750,17/12/2018,31/12/2018,1243864,Active Wellness,Not assigned,Adults Services,1619.64
3110002751,17/12/2018,14/12/2018,1245382,Morgan Sindall Property Services Ltd,Not assigned,Housing Revenue Acco,288160.7
3110002752,17/12/2018,14/12/2018,1245382,Morgan Sindall Property Services Ltd,Not assigned,Housing Revenue Acco,243610.34
3110002753,17/12/2018,14/12/2018,1245382,Morgan Sindall Property Services Ltd,Not assigned,Housing Revenue Acco,248602.92
3110002754,17/12/2018,14/12/2018,1245382,Morgan Sindall Property Services Ltd,Not assigned,Housing Revenue Acco,134532.63
3110002755,17/12/2018,14/12/2018,1245382,Morgan Sindall Property Services Ltd,Not assigned,Housing Revenue Acco,288160.7
3110002756,17/12/2018,14/12/2018,1245382,Morgan Sindall Property Services Ltd,Not assigned,Housing Revenue Acco,288160.7
3110002758,17/12/2018,12/12/2018,D000000017,PARKING,Not assigned,Parking,891
3110002765,17/12/2018,13/12/2018,D000000017,PARKING,Not assigned,Parking,3816
3110002788,17/12/2018,13/12/2018,D000000017,PARKING,Not assigned,Parking,3255
3110002792,17/12/2018,12/12/2018,D000000017,PARKING,Not assigned,Parking,567
3110002806,17/12/2018,14/12/2018,D000000016,Personal detail - redacted,Not assigned,Housing Revenue Acco,2200
3110002807,17/12/2018,17/12/2018,1246166,Urban Land Management Ltd,Not assigned,Childrens Services,2571.43
3110002808,17/12/2018,17/12/2018,1245923,The Medusa Project Ltd,Not assigned,Childrens Services,7928.57
3110002809,17/12/2018,17/12/2018,1249151,The Vine Residential Services Ltd,Not assigned,Childrens Services,642.85
3110002810,17/12/2018,17/12/2018,1243855,Personal detail - redacted,Not assigned,Childrens Services,25500
3110002811,17/12/2018,17/12/2018,1249078,The Albert Kennedy Trust,Not assigned,Childrens Services,1007.05
3110002812,17/12/2018,17/12/2018,1244918,National Fostering Agency,Not assigned,Childrens Services,2938.8
3110002813,17/12/2018,17/12/2018,1244918,National Fostering Agency,Not assigned,Childrens Services,3192.9
3110002814,17/12/2018,17/12/2018,1248191,Next Step Fostering Services Ltd,Not assigned,Childrens Services,3407.1
3110002815,17/12/2018,17/12/2018,1244140,Centrepoint Soho Ltd (Rent),Not assigned,Childrens Services,921.38
3110002816,17/12/2018,17/12/2018,1244140,Centrepoint Soho Ltd (Rent),Not assigned,Childrens Services,900.35
3110002817,17/12/2018,17/12/2018,1244140,Centrepoint Soho Ltd (Rent),Not assigned,Childrens Services,953.65
3110002818,17/12/2018,17/12/2018,1246686,Diverse Care (Uk) Ltd,Not assigned,Childrens Services,2943
3110002819,17/12/2018,17/12/2018,1248237,One Housing Group Ltd,Not assigned,Childrens Services,816.95
3110002820,17/12/2018,17/12/2018,1244212,Complete Care London,Not assigned,Childrens Services,2357.15
3110002822,17/12/2018,17/12/2018,1243539,Silver Birch Care Ltd,Not assigned,Childrens Services,3171.43
3110002823,17/12/2018,17/12/2018,1243539,Silver Birch Care Ltd,Not assigned,Childrens Services,7131.43
3110002824,17/12/2018,17/12/2018,1244211,Compass Fostering North Ltd,Not assigned,Childrens Services,5524.28
3110002825,17/12/2018,17/12/2018,1246166,Urban Land Management Ltd,Not assigned,Childrens Services,3171.43
3110002826,17/12/2018,17/12/2018,1246166,Urban Land Management Ltd,Not assigned,Childrens Services,1821.43
3110002827,17/12/2018,17/12/2018,1248286,Pathway To Independence Support Services Ltd,Not assigned,Childrens Services,3295.72
3110002828,17/12/2018,17/12/2018,1248834,Safe Haven Accomodation Ltd,Not assigned,Childrens Services,14100
3110002829,17/12/2018,17/12/2018,1244918,National Fostering Agency,Not assigned,Childrens Services,3005.1
3110002830,17/12/2018,17/12/2018,1249033,Sunbeam Fostering Agency Ltd,Not assigned,Childrens Services,3064.28
3110002831,17/12/2018,17/12/2018,1244112,Cardinal Hume Centre,Not assigned,Childrens Services,732.65
3110002832,17/12/2018,17/12/2018,1244546,Hestia Enterprises Ltd,Not assigned,Childrens Services,3642.85
3110002833,17/12/2018,17/12/2018,1244110,Capstone Foster Care (South East)ltd,Not assigned,Childrens Services,2912.7
3110002834,17/12/2018,17/12/2018,1246210,Westfield Semi Independent Unit,Not assigned,Childrens Services,1178.57
3110002835,17/12/2018,17/12/2018,1246210,Westfield Semi Independent Unit,Not assigned,Childrens Services,1457.15
3110002836,17/12/2018,17/12/2018,1244102,Capital Care & Foster Ltd,Not assigned,Childrens Services,2716.85
3110002837,17/12/2018,17/12/2018,1248237,One Housing Group Ltd,Not assigned,Childrens Services,762.82
3110002838,17/12/2018,17/12/2018,1248187,Netpex Ltd,Not assigned,Childrens Services,2464.28
3110002839,17/12/2018,17/12/2018,1243744,Phase II Care Ltd,Not assigned,Childrens Services,3259.5
3110002841,17/12/2018,17/12/2018,1243531,PJL Healthcare Ltd T/A Mayfield Childrens Home,Not assigned,Childrens Services,15364.28
3110002843,17/12/2018,17/12/2018,1245090,Care R Us (Essex) Ltd,Not assigned,Childrens Services,2577.14
3110002844,17/12/2018,17/12/2018,1245090,Care R Us (Essex) Ltd,Not assigned,Childrens Services,2352.85
3110002846,17/12/2018,17/12/2018,1243539,Silver Birch Care Ltd,Not assigned,Childrens Services,3171.43
3110002847,17/12/2018,17/12/2018,1243539,Silver Birch Care Ltd,Not assigned,Childrens Services,3409.5
3110002848,17/12/2018,17/12/2018,1246983,Fit For Sport Ltd,Not assigned,Childrens Services,671.4
3110002850,17/12/2018,17/12/2018,1244918,National Fostering Agency,Not assigned,Childrens Services,3005.1
3110002851,17/12/2018,17/12/2018,1244918,National Fostering Agency,Not assigned,Childrens Services,3192.9
3110002852,17/12/2018,17/12/2018,1244918,National Fostering Agency,Not assigned,Childrens Services,3192.9
3110002853,17/12/2018,17/12/2018,1243929,Ascent Fostering Agency Ltd,Not assigned,Childrens Services,3835.72
3110002854,17/12/2018,17/12/2018,1248837,Safehouses Ltd,Not assigned,Childrens Services,3679.5
3110002855,17/12/2018,17/12/2018,1244112,Cardinal Hume Centre,Not assigned,Childrens Services,768.73
3110002856,17/12/2018,17/12/2018,1244140,Centrepoint Soho Ltd (Rent),Not assigned,Childrens Services,951.13
3110002857,17/12/2018,17/12/2018,1249176,Transitions Living,Not assigned,Childrens Services,4309.5
3110002858,17/12/2018,17/12/2018,1244156,Childhood First,Not assigned,Childrens Services,21303.7
3110002859,17/12/2018,17/12/2018,1250717,Holmdene Housing Ltd,Not assigned,Childrens Services,2262.86
3110002860,17/12/2018,17/12/2018,1246422,Young Futures CIC,Not assigned,Childrens Services,3171.43
3110002862,17/12/2018,17/12/2018,1245110,Eric Patrick Care Ltd,Not assigned,Childrens Services,4178.57
3110002863,17/12/2018,17/12/2018,1246130,Transforming Lives Company,Not assigned,Childrens Services,515.71
3110002864,17/12/2018,17/12/2018,1246130,Transforming Lives Company,Not assigned,Childrens Services,3094.28
3110002865,17/12/2018,17/12/2018,1243539,Silver Birch Care Ltd,Not assigned,Childrens Services,8766.43
3110002867,17/12/2018,17/12/2018,1243539,Silver Birch Care Ltd,Not assigned,Childrens Services,3171.43
3110002869,17/12/2018,17/12/2018,1246166,Urban Land Management Ltd,Not assigned,Childrens Services,3559.5
3110002870,17/12/2018,17/12/2018,1244281,Diagrama Childrens Services,Not assigned,Childrens Services,3525.85
3110002873,17/12/2018,17/12/2018,1246991,Five Rivers Child Care Ltd,Not assigned,Childrens Services,2954.02
3110002874,17/12/2018,17/12/2018,1244918,National Fostering Agency,Not assigned,Childrens Services,2880
3110002875,17/12/2018,17/12/2018,1246299,By The Bridge,Not assigned,Childrens Services,4478.57
3110002876,17/12/2018,17/12/2018,1244546,Hestia Enterprises Ltd,Not assigned,Childrens Services,3023.79
3110002877,17/12/2018,17/12/2018,1244140,Centrepoint Soho Ltd (Rent),Not assigned,Childrens Services,2354.79
3110002878,17/12/2018,17/12/2018,1244140,Centrepoint Soho Ltd (Rent),Not assigned,Childrens Services,934.45
3110002879,17/12/2018,17/12/2018,1244140,Centrepoint Soho Ltd (Rent),Not assigned,Childrens Services,951.13
3110002880,17/12/2018,17/12/2018,1248949,St Edmund's College,Not assigned,Childrens Services,11883.99
3110002881,17/12/2018,17/12/2018,1243744,Phase II Care Ltd,Not assigned,Childrens Services,3535.72
3110002882,17/12/2018,17/12/2018,1245797,Action For Children Services Ltd,Not assigned,Childrens Services,3767.15
3110002883,17/12/2018,17/12/2018,1245958,Affinity Fostering Services Ltd,Not assigned,Childrens Services,3921.43
3110002884,17/12/2018,17/12/2018,1246130,Transforming Lives Company,Not assigned,Childrens Services,3951.43
3110002885,17/12/2018,17/12/2018,1243539,Silver Birch Care Ltd,Not assigned,Childrens Services,3171.43
3110002887,17/12/2018,17/12/2018,1243539,Silver Birch Care Ltd,Not assigned,Childrens Services,750
3110002888,17/12/2018,17/12/2018,1243539,Silver Birch Care Ltd,Not assigned,Childrens Services,3171.43
3110002890,17/12/2018,17/12/2018,1244211,Compass Fostering North Ltd,Not assigned,Childrens Services,3660
3110002891,17/12/2018,17/12/2018,1245923,The Medusa Project Ltd,Not assigned,Childrens Services,7928.57
3110002892,17/12/2018,17/12/2018,1247137,Kingham Hill School,Not assigned,Childrens Services,10150
3110002893,17/12/2018,17/12/2018,1244918,National Fostering Agency,Not assigned,Childrens Services,3253.2
3110002894,17/12/2018,17/12/2018,1248582,Rainbow Fostering Services Ltd,Not assigned,Childrens Services,8357.15
3110002895,17/12/2018,17/12/2018,1246097,Themi Care Limited,Not assigned,Childrens Services,2225.71
3110002896,17/12/2018,17/12/2018,1246559,Christopher House (London) Ltd,Not assigned,Childrens Services,4472
3110002897,17/12/2018,17/12/2018,1244546,Hestia Enterprises Ltd,Not assigned,Childrens Services,971.43
3110002898,17/12/2018,17/12/2018,1246673,Depaul Uk (Rent Account),Not assigned,Childrens Services,944.35
3110002899,17/12/2018,17/12/2018,1244140,Centrepoint Soho Ltd (Rent),Not assigned,Childrens Services,1035.63
3110002900,17/12/2018,17/12/2018,1244140,Centrepoint Soho Ltd (Rent),Not assigned,Childrens Services,934.25
3110002901,17/12/2018,17/12/2018,1244140,Centrepoint Soho Ltd (Rent),Not assigned,Childrens Services,934.25
3110002902,17/12/2018,17/12/2018,1244140,Centrepoint Soho Ltd (Rent),Not assigned,Childrens Services,917.45
3110002903,17/12/2018,17/12/2018,1249747,Rye St Antony School Ltd,Not assigned,Childrens Services,8645
3110002904,17/12/2018,17/12/2018,1244554,Holibrook House Ltd,Not assigned,Childrens Services,5571.43
3110002906,17/12/2018,17/12/2018,1245110,Eric Patrick Care Ltd,Not assigned,Childrens Services,9835.72
3110002907,17/12/2018,17/12/2018,1245797,Action For Children Services Ltd,Not assigned,Childrens Services,3767.15
3110002908,17/12/2018,17/12/2018,1244732,LCS Partnerships Ltd,Not assigned,Childrens Services,1705.72
3110002910,17/12/2018,17/12/2018,1245090,Care R Us (Essex) Ltd,Not assigned,Childrens Services,1942.85
3110002911,17/12/2018,17/12/2018,1243539,Silver Birch Care Ltd,Not assigned,Childrens Services,3171.43
3110002912,17/12/2018,17/12/2018,1246166,Urban Land Management Ltd,Not assigned,Childrens Services,4186.07
3110002913,17/12/2018,17/12/2018,1246166,Urban Land Management Ltd,Not assigned,Childrens Services,3321.43
3110002914,17/12/2018,17/12/2018,1249151,The Vine Residential Services Ltd,Not assigned,Childrens Services,25920
3110002916,17/12/2018,17/12/2018,1244918,National Fostering Agency,Not assigned,Childrens Services,3192.85
3110002917,17/12/2018,17/12/2018,1244918,National Fostering Agency,Not assigned,Childrens Services,3192.9
3110002918,17/12/2018,17/12/2018,1244918,National Fostering Agency,Not assigned,Childrens Services,3065.4
3110002919,17/12/2018,17/12/2018,1244918,National Fostering Agency,Not assigned,Childrens Services,3065.4
3110002920,17/12/2018,17/12/2018,1248582,Rainbow Fostering Services Ltd,Not assigned,Childrens Services,3621.43
3110002921,17/12/2018,17/12/2018,1248582,Rainbow Fostering Services Ltd,Not assigned,Childrens Services,511.43
3110002922,17/12/2018,17/12/2018,1248582,Rainbow Fostering Services Ltd,Not assigned,Childrens Services,2357.15
3110002923,17/12/2018,17/12/2018,1248582,Rainbow Fostering Services Ltd,Not assigned,Childrens Services,1634.4
3110002924,17/12/2018,17/12/2018,1246097,Themi Care Limited,Not assigned,Childrens Services,3838.07
3110002925,17/12/2018,17/12/2018,1244441,Foster Care Associates Ltd,Not assigned,Childrens Services,3283.2
3110002926,17/12/2018,17/12/2018,1248837,Safehouses Ltd,Not assigned,Childrens Services,3251.15
3110002927,17/12/2018,17/12/2018,1244112,Cardinal Hume Centre,Not assigned,Childrens Services,732.65
3110002929,17/12/2018,17/12/2018,1244546,Hestia Enterprises Ltd,Not assigned,Childrens Services,3642.85
3110002930,17/12/2018,17/12/2018,1244546,Hestia Enterprises Ltd,Not assigned,Childrens Services,3642.85
3110002932,17/12/2018,17/12/2018,1246210,Westfield Semi Independent Unit,Not assigned,Childrens Services,1928.57
3110002933,17/12/2018,17/12/2018,1244140,Centrepoint Soho Ltd (Rent),Not assigned,Childrens Services,934.45
3110002934,17/12/2018,17/12/2018,1244140,Centrepoint Soho Ltd (Rent),Not assigned,Childrens Services,934.25
3110002935,17/12/2018,17/12/2018,1244140,Centrepoint Soho Ltd (Rent),Not assigned,Childrens Services,934.25
3110002936,17/12/2018,17/12/2018,1244554,Holibrook House Ltd,Not assigned,Childrens Services,6000
3110002937,17/12/2018,17/12/2018,1248193,Nexus Fostering Limited,Not assigned,Childrens Services,3570
3110002938,17/12/2018,17/12/2018,1243744,Phase II Care Ltd,Not assigned,Childrens Services,3557.15
3110002939,17/12/2018,17/12/2018,1245110,Eric Patrick Care Ltd,Not assigned,Childrens Services,4178.57
3110002940,17/12/2018,17/12/2018,1245958,Affinity Fostering Services Ltd,Not assigned,Childrens Services,3407.15
3110002941,17/12/2018,17/12/2018,1245240,Praxis Community Projects,Not assigned,Childrens Services,1426
3110002942,17/12/2018,17/12/2018,1245090,Care R Us (Essex) Ltd,Not assigned,Childrens Services,11914.28
3110002943,17/12/2018,17/12/2018,1243523,Orange Grove Fostercare Ltd,Not assigned,Childrens Services,3445.2
3110002945,17/12/2018,17/12/2018,1243539,Silver Birch Care Ltd,Not assigned,Childrens Services,3171.43
3110002947,17/12/2018,17/12/2018,1249076,The Adolescent & Children's Trust,Not assigned,Childrens Services,3307.5
3110002948,17/12/2018,17/12/2018,1245135,Ingleside Children's Home Ltd,Not assigned,Childrens Services,19714.3
3110002949,17/12/2018,17/12/2018,1243539,Silver Birch Care Ltd,Not assigned,Childrens Services,3171.43
3110002950,17/12/2018,17/12/2018,1246166,Urban Land Management Ltd,Not assigned,Childrens Services,1521.43
3110002951,17/12/2018,17/12/2018,1249076,The Adolescent & Children's Trust,Not assigned,Childrens Services,3330
3110002953,17/12/2018,17/12/2018,1244918,National Fostering Agency,Not assigned,Childrens Services,3253.2
3110002954,17/12/2018,17/12/2018,1244918,National Fostering Agency,Not assigned,Childrens Services,3192.9
3110002955,17/12/2018,17/12/2018,1246097,Themi Care Limited,Not assigned,Childrens Services,3838.07
3110002956,17/12/2018,17/12/2018,1244441,Foster Care Associates Ltd,Not assigned,Childrens Services,3410.87
3110002957,17/12/2018,17/12/2018,1244209,Compass Fostering East Ltd,Not assigned,Childrens Services,3300
3110002958,17/12/2018,17/12/2018,1245124,Heath Farm,Not assigned,Childrens Services,5201.7
3110002959,17/12/2018,17/12/2018,1244112,Cardinal Hume Centre,Not assigned,Childrens Services,4542.39
3110002960,17/12/2018,17/12/2018,1244112,Cardinal Hume Centre,Not assigned,Childrens Services,732.65
3110002961,17/12/2018,17/12/2018,1244546,Hestia Enterprises Ltd,Not assigned,Childrens Services,3642.85
3110002962,17/12/2018,17/12/2018,1246673,Depaul Uk (Rent Account),Not assigned,Childrens Services,944.35
3110002963,17/12/2018,17/12/2018,1244110,Capstone Foster Care (South East)ltd,Not assigned,Childrens Services,2974.55
3110002964,17/12/2018,17/12/2018,1244110,Capstone Foster Care (South East)ltd,Not assigned,Childrens Services,3204.6
3110002965,17/12/2018,17/12/2018,1244110,Capstone Foster Care (South East)ltd,Not assigned,Childrens Services,3036.73
3110002966,17/12/2018,17/12/2018,1246210,Westfield Semi Independent Unit,Not assigned,Childrens Services,1928.57
3110002967,17/12/2018,17/12/2018,1245693,London Borough Of Hammersmith & Fulham,Not assigned,Childrens Services,6000
3110002968,17/12/2018,17/12/2018,1246686,Diverse Care (Uk) Ltd,Not assigned,Childrens Services,6428.57
3110002969,17/12/2018,17/12/2018,1248237,One Housing Group Ltd,Not assigned,Childrens Services,762.82
3110002970,17/12/2018,17/12/2018,1246422,Young Futures CIC,Not assigned,Childrens Services,4457.15
3110002971,17/12/2018,17/12/2018,1248193,Nexus Fostering Limited,Not assigned,Childrens Services,5852
3110002972,17/12/2018,17/12/2018,1243744,Phase II Care Ltd,Not assigned,Childrens Services,3471.43
3110002973,17/12/2018,17/12/2018,1244210,Compass Fostering London Ltd,Not assigned,Childrens Services,3320
3110002974,17/12/2018,17/12/2018,1245110,Eric Patrick Care Ltd,Not assigned,Childrens Services,8142.85
3110002977,17/12/2018,17/12/2018,1244091,Cambian Childcare Ltd,Not assigned,Childrens Services,14142.87
3110002978,17/12/2018,17/12/2018,1244211,Compass Fostering North Ltd,Not assigned,Childrens Services,2678.7
3110002979,17/12/2018,17/12/2018,1244918,National Fostering Agency,Not assigned,Childrens Services,1771.58
3110002982,17/12/2018,17/12/2018,1246097,Themi Care Limited,Not assigned,Childrens Services,3838.07
3110002983,17/12/2018,17/12/2018,1244112,Cardinal Hume Centre,Not assigned,Childrens Services,768.73
3110002984,17/12/2018,17/12/2018,1244112,Cardinal Hume Centre,Not assigned,Childrens Services,768.73
3110002985,17/12/2018,17/12/2018,1244112,Cardinal Hume Centre,Not assigned,Childrens Services,732.65
3110002986,17/12/2018,17/12/2018,1244112,Cardinal Hume Centre,Not assigned,Childrens Services,732.65
3110002987,17/12/2018,17/12/2018,1244110,Capstone Foster Care (South East)ltd,Not assigned,Childrens Services,3270
3110002988,17/12/2018,17/12/2018,1246210,Westfield Semi Independent Unit,Not assigned,Childrens Services,1928.57
3110002989,17/12/2018,17/12/2018,1244140,Centrepoint Soho Ltd (Rent),Not assigned,Childrens Services,913.03
3110002990,17/12/2018,17/12/2018,1246686,Diverse Care (Uk) Ltd,Not assigned,Childrens Services,2943
3110002991,17/12/2018,17/12/2018,1246422,Young Futures CIC,Not assigned,Childrens Services,3171.43
3110002992,17/12/2018,17/12/2018,1243744,Phase II Care Ltd,Not assigned,Childrens Services,2957.15
3110002993,17/12/2018,17/12/2018,1244210,Compass Fostering London Ltd,Not assigned,Childrens Services,4607.1
3110002994,17/12/2018,17/12/2018,1245151,More Than Care Ltd,Not assigned,Childrens Services,3085.72
3110002995,17/12/2018,17/12/2018,1245151,More Than Care Ltd,Not assigned,Childrens Services,3085.72
3110002996,17/12/2018,17/12/2018,1246130,Transforming Lives Company,Not assigned,Childrens Services,515.71
3110002997,17/12/2018,17/12/2018,1245090,Care R Us (Essex) Ltd,Not assigned,Childrens Services,4858.57
3110002999,17/12/2018,17/12/2018,1245090,Care R Us (Essex) Ltd,Not assigned,Childrens Services,3514.28
3110003000,17/12/2018,17/12/2018,1247344,Wisdom School T/A NLGS,Not assigned,Childrens Services,3825
3110003002,17/12/2018,17/12/2018,1243539,Silver Birch Care Ltd,Not assigned,Childrens Services,1057.14
3110003003,17/12/2018,17/12/2018,1243539,Silver Birch Care Ltd,Not assigned,Childrens Services,1902.86
3110003004,17/12/2018,17/12/2018,1243539,Silver Birch Care Ltd,Not assigned,Childrens Services,3409.5
3110003005,17/12/2018,17/12/2018,1243539,Silver Birch Care Ltd,Not assigned,Childrens Services,3525
3110003006,18/12/2018,05/12/2018,1248223,Oakray Limited,Not assigned,Housing Revenue Acco,2215.85
3110003007,18/12/2018,06/12/2018,1248223,Oakray Limited,Not assigned,Housing Revenue Acco,1802.34
3110003008,18/12/2018,05/12/2018,1248223,Oakray Limited,Not assigned,Housing Revenue Acco,3070.53
3110003009,18/12/2018,06/12/2018,1248223,Oakray Limited,Not assigned,Housing Revenue Acco,8478.77
3110003010,18/12/2018,05/12/2018,1248223,Oakray Limited,Not assigned,Housing Revenue Acco,2965.32
3110003011,18/12/2018,05/12/2018,1248223,Oakray Limited,Not assigned,Housing Revenue Acco,900.04
3110003012,18/12/2018,06/12/2018,1248223,Oakray Limited,Not assigned,Housing Revenue Acco,1200.78
3110003014,18/12/2018,05/12/2018,1248223,Oakray Limited,Not assigned,Housing Revenue Acco,12411.33
3110003015,18/12/2018,05/12/2018,1248223,Oakray Limited,Not assigned,Housing Revenue Acco,1591.2
3110003016,18/12/2018,05/12/2018,1248223,Oakray Limited,Not assigned,Housing Revenue Acco,2896.91
3110003023,18/12/2018,17/12/2018,1245714,Westminster City Council (Council Tax),Not assigned,Housing Revenue Acco,24210.19
3110003024,18/12/2018,17/12/2018,1245714,Westminster City Council (Council Tax),Not assigned,Housing Revenue Acco,1869.07
3110003025,18/12/2018,17/12/2018,D000000016,Personal detail - redacted,Not assigned,Housing Revenue Acco,1164.22
3110003026,18/12/2018,17/12/2018,D000000016,Personal detail - redacted,Not assigned,Housing Revenue Acco,977.21
3110003027,18/12/2018,17/12/2018,D000000016,Personal detail - redacted,Not assigned,Housing Revenue Acco,834.92
3110003039,18/12/2018,10/12/2018,1244531,HCP Staffing Services Ltd,Not assigned,Schools,663.28
3110003072,19/12/2018,18/12/2018,1243632,Personal detail - redacted,Not assigned,Childrens Services,766
3110003073,19/12/2018,18/12/2018,1243654,Personal detail - redacted,Not assigned,Childrens Services,854
3110003075,19/12/2018,18/12/2018,1243714,Personal detail - redacted,Not assigned,Childrens Services,674
3110003084,19/12/2018,18/12/2018,1248816,Personal detail - redacted,Not assigned,Childrens Services,918
3110003099,19/12/2018,18/12/2018,1243643,Personal detail - redacted,Not assigned,Childrens Services,854
3110003100,19/12/2018,18/12/2018,1243668,Personal detail - redacted,Not assigned,Childrens Services,918
3110003102,19/12/2018,18/12/2018,1243684,Personal detail - redacted,Not assigned,Childrens Services,1440
3110003103,19/12/2018,19/12/2018,1246166,Urban Land Management Ltd,Not assigned,Childrens Services,621.43
3110003104,19/12/2018,19/12/2018,1246166,Urban Land Management Ltd,Not assigned,Childrens Services,580
3110003105,19/12/2018,18/12/2018,1245425,Personal detail - redacted,Not assigned,Childrens Services,1328
3110003108,19/12/2018,18/12/2018,1245487,Personal detail - redacted,Not assigned,Childrens Services,854
3110003112,19/12/2018,18/12/2018,1243694,Personal detail - redacted,Not assigned,Childrens Services,918
3110003116,19/12/2018,18/12/2018,1250571,Personal detail - redacted,Not assigned,Childrens Services,911
3110003119,19/12/2018,19/12/2018,1245135,Ingleside Children's Home Ltd,Not assigned,Childrens Services,4501.42
3110003122,19/12/2018,18/12/2018,1245447,Personal detail - redacted,Not assigned,Childrens Services,674
3110003123,19/12/2018,18/12/2018,1244672,Just Homes Charity,Not assigned,Childrens Services,980
3110003126,19/12/2018,18/12/2018,1243634,Personal detail - redacted,Not assigned,Childrens Services,918
3110003136,19/12/2018,18/12/2018,1250066,Personal detail - redacted,Not assigned,Childrens Services,946.4
3110003137,19/12/2018,18/12/2018,1248762,Personal detail - redacted,Not assigned,Childrens Services,766
3110003138,19/12/2018,18/12/2018,1243667,Personal detail - redacted,Not assigned,Childrens Services,985
3110003140,19/12/2018,18/12/2018,1245421,Personal detail - redacted,Not assigned,Childrens Services,854
3110003141,19/12/2018,18/12/2018,1243680,Personal detail - redacted,Not assigned,Childrens Services,577.2
3110003143,19/12/2018,18/12/2018,1243687,Personal detail - redacted,Not assigned,Childrens Services,854
3110003145,19/12/2018,18/12/2018,1252021,Personal detail - redacted,Not assigned,Childrens Services,854
3110003149,19/12/2018,18/12/2018,1243727,Personal detail - redacted,Not assigned,Childrens Services,854
3110003153,19/12/2018,18/12/2018,1243725,Personal detail - redacted,Not assigned,Childrens Services,918
3110003155,19/12/2018,18/12/2018,1243697,Personal detail - redacted,Not assigned,Childrens Services,674
3110003167,19/12/2018,18/12/2018,1243712,Personal detail - redacted,Not assigned,Childrens Services,766
3110003169,19/12/2018,18/12/2018,1245434,Personal detail - redacted,Not assigned,Childrens Services,854
3110003171,19/12/2018,18/12/2018,1250312,Personal detail - redacted,Not assigned,Childrens Services,766
3110003173,19/12/2018,18/12/2018,1247748,Personal detail - redacted,Not assigned,Childrens Services,918
3110003175,19/12/2018,18/12/2018,1245674,Personal detail - redacted,Not assigned,Childrens Services,1091
3110003177,19/12/2018,18/12/2018,1245447,Personal detail - redacted,Not assigned,Childrens Services,1386
3110003181,19/12/2018,18/12/2018,1245411,Personal detail - redacted,Not assigned,Childrens Services,1091
3110003185,19/12/2018,18/12/2018,1245445,Personal detail - redacted,Not assigned,Childrens Services,674
3110003188,19/12/2018,18/12/2018,1250312,Personal detail - redacted,Not assigned,Childrens Services,736
3110003193,19/12/2018,18/12/2018,1245415,Personal detail - redacted,Not assigned,Childrens Services,582.29
3110003195,19/12/2018,18/12/2018,1243634,Personal detail - redacted,Not assigned,Childrens Services,918
3110003200,19/12/2018,18/12/2018,1250260,Personal detail - redacted,Not assigned,Childrens Services,985
3110003210,19/12/2018,18/12/2018,1245412,Personal detail - redacted,Not assigned,Childrens Services,705.2
3110003213,19/12/2018,18/12/2018,1243703,Personal detail - redacted,Not assigned,Childrens Services,766
3110003215,19/12/2018,18/12/2018,1243735,Personal detail - redacted,Not assigned,Childrens Services,918
3110003218,19/12/2018,18/12/2018,1250099,Personal detail - redacted,Not assigned,Childrens Services,854
3110003220,19/12/2018,18/12/2018,1245421,Personal detail - redacted,Not assigned,Childrens Services,854
3110003222,19/12/2018,18/12/2018,1243707,Personal detail - redacted,Not assigned,Childrens Services,854
3110003224,19/12/2018,18/12/2018,1245670,Personal detail - redacted,Not assigned,Childrens Services,1789.4
3110003226,19/12/2018,18/12/2018,1243658,Personal detail - redacted,Not assigned,Childrens Services,1091
3110003232,19/12/2018,18/12/2018,1248108,Personal detail - redacted,Not assigned,Childrens Services,2000
3110003234,19/12/2018,18/12/2018,1243713,Personal detail - redacted,Not assigned,Childrens Services,674
3110003246,19/12/2018,18/12/2018,1245457,Personal detail - redacted,Not assigned,Childrens Services,854
3110003249,19/12/2018,18/12/2018,1245411,Personal detail - redacted,Not assigned,Childrens Services,1111
3110003250,19/12/2018,18/12/2018,1243678,Personal detail - redacted,Not assigned,Childrens Services,737.2
3110003251,19/12/2018,18/12/2018,1245410,Personal detail - redacted,Not assigned,Childrens Services,1256
3110003253,19/12/2018,18/12/2018,1245488,Personal detail - redacted,Not assigned,Childrens Services,1866
3110003255,19/12/2018,18/12/2018,1250438,Personal detail - redacted,Not assigned,Childrens Services,1758
3110003258,19/12/2018,18/12/2018,1245474,Personal detail - redacted,Not assigned,Childrens Services,660.78
3110003269,19/12/2018,18/12/2018,1243725,Personal detail - redacted,Not assigned,Childrens Services,1392
3110003271,19/12/2018,18/12/2018,1245463,Personal detail - redacted,Not assigned,Childrens Services,918
3110003282,19/12/2018,18/12/2018,1245469,Personal detail - redacted,Not assigned,Childrens Services,507.18
3110003284,19/12/2018,18/12/2018,1250002,Personal detail - redacted,Not assigned,Childrens Services,673.96
3110003285,19/12/2018,18/12/2018,1245491,Personal detail - redacted,Not assigned,Childrens Services,854
3110003287,19/12/2018,18/12/2018,1245440,Personal detail - redacted,Not assigned,Childrens Services,918
3110003289,19/12/2018,18/12/2018,1243674,Personal detail - redacted,Not assigned,Childrens Services,772
3110003295,19/12/2018,18/12/2018,1245443,Personal detail - redacted,Not assigned,Childrens Services,674
3110003299,19/12/2018,18/12/2018,1245438,Personal detail - redacted,Not assigned,Childrens Services,918
3110003309,19/12/2018,18/12/2018,1245454,Personal detail - redacted,Not assigned,Childrens Services,918
3110003311,19/12/2018,18/12/2018,1243726,Personal detail - redacted,Not assigned,Childrens Services,1566.6
3110003313,19/12/2018,18/12/2018,1243675,Personal detail - redacted,Not assigned,Childrens Services,766
3110003315,19/12/2018,18/12/2018,1243653,Personal detail - redacted,Not assigned,Childrens Services,918
3110003317,19/12/2018,18/12/2018,1245440,Personal detail - redacted,Not assigned,Childrens Services,854
3110003319,19/12/2018,18/12/2018,1245674,Personal detail - redacted,Not assigned,Childrens Services,854
3110003321,19/12/2018,18/12/2018,1243715,Personal detail - redacted,Not assigned,Childrens Services,1866
3110003326,19/12/2018,18/12/2018,1245456,Personal detail - redacted,Not assigned,Childrens Services,809.8
3110003328,19/12/2018,18/12/2018,1245463,Personal detail - redacted,Not assigned,Childrens Services,674
3110003330,19/12/2018,18/12/2018,1245473,Personal detail - redacted,Not assigned,Childrens Services,854
3110003332,19/12/2018,18/12/2018,1245447,Personal detail - redacted,Not assigned,Childrens Services,674
3110003335,19/12/2018,18/12/2018,1243687,Personal detail - redacted,Not assigned,Childrens Services,918
3110003346,19/12/2018,18/12/2018,1243678,Personal detail - redacted,Not assigned,Childrens Services,723.4
3110003358,19/12/2018,18/12/2018,1245412,Personal detail - redacted,Not assigned,Childrens Services,723.4
3110003363,19/12/2018,19/12/2018,1243730,Personal detail - redacted,Not assigned,Childrens Services,1500
3110003366,19/12/2018,18/12/2018,D000000016,Personal detail - redacted,Not assigned,Childrens Services,3300
3110003369,19/12/2018,19/12/2018,1243673,Personal detail - redacted,Not assigned,Childrens Services,2630
3110003370,19/12/2018,18/12/2018,1248971,St Martin Of Tours Housing Assoc Ltd,Not assigned,Adults Services,2714.28
3110003372,19/12/2018,14/12/2018,1248971,St Martin Of Tours Housing Assoc Ltd,Not assigned,Adults Services,3600
3110003373,19/12/2018,14/12/2018,1248621,Rnib Redhill College,Not assigned,Adults Services,4951.64
3110003374,19/12/2018,14/12/2018,1243543,Springlake Care Home Ltd,Not assigned,Adults Services,5074
3110003375,19/12/2018,14/12/2018,1243543,Springlake Care Home Ltd,Not assigned,Adults Services,5674
3110003376,19/12/2018,14/12/2018,1247852,Look Ahead Care and Support Ltd (Main Account 30171263),Not assigned,Adults Services,1252.4
3110003377,19/12/2018,14/12/2018,1245147,MMCG (2) Ltd (Maria Mallaband Care Group Ltd),Not assigned,Adults Services,3658.92
3110003378,19/12/2018,14/12/2018,1245147,MMCG (2) Ltd (Maria Mallaband Care Group Ltd),Not assigned,Adults Services,2165.68
3110003379,19/12/2018,14/12/2018,1243503,Life Opportunities Trust,Not assigned,Adults Services,3399.8
3110003380,19/12/2018,14/12/2018,1247147,Norwood Schools Ltd,Not assigned,Adults Services,6570.76
3110003381,19/12/2018,14/12/2018,1243519,Oaks Nursing Centre,Not assigned,Adults Services,6299
3110003382,19/12/2018,14/12/2018,1245094,Personal detail - redacted,Not assigned,Adults Services,2520
3110003383,19/12/2018,14/12/2018,1243481,Gold Care Homes Ltd,Not assigned,Adults Services,3600
3110003384,19/12/2018,14/12/2018,1244167,Choice Support,Not assigned,Adults Services,8936
3110003385,19/12/2018,14/12/2018,1243466,Crownwise Ltd,Not assigned,Adults Services,2506.96
3110003386,19/12/2018,14/12/2018,1246321,Camphill Village Trust,Not assigned,Adults Services,1109.6
3110003387,19/12/2018,14/12/2018,1244904,Nas House,Not assigned,Adults Services,2600
3110003388,19/12/2018,14/12/2018,1244904,Nas House,Not assigned,Adults Services,3451.04
3110003389,19/12/2018,14/12/2018,1243554,Solo Care Group Ltd,Not assigned,Adults Services,5974.7
3110003391,19/12/2018,14/12/2018,1245144,Methodist Homes For The Aged,Not assigned,Adults Services,2700
3110003393,19/12/2018,14/12/2018,1244905,Nas Services Ltd (Residential),Not assigned,Adults Services,5146.16
3110003394,19/12/2018,14/12/2018,1244719,L'arche London,Not assigned,Adults Services,544
3110003396,19/12/2018,14/12/2018,1243518,Oakfield Care (Ashtead) Ltd,Not assigned,Adults Services,2367.36
3110003397,19/12/2018,14/12/2018,1243518,Oakfield Care (Ashtead) Ltd,Not assigned,Adults Services,3400
3110003398,19/12/2018,14/12/2018,1246339,Caretech Community Services Ltd,Not assigned,Adults Services,7164.21
3110003399,19/12/2018,14/12/2018,1248948,St Davids Care In The Community Ltd,Not assigned,Adults Services,3114
3110003400,19/12/2018,14/12/2018,1243453,Bupa Care Homes(ANS ) Ltd - T/a Meadbank Nursing Home,Not assigned,Adults Services,2704.76
3110003402,19/12/2018,14/12/2018,1243566,Yarrow Housing Ltd,Not assigned,Adults Services,3387.52
3110003403,19/12/2018,14/12/2018,1243566,Yarrow Housing Ltd,Not assigned,Adults Services,4281.52
3110003404,19/12/2018,14/12/2018,1243566,Yarrow Housing Ltd,Not assigned,Adults Services,4204
3110003405,19/12/2018,14/12/2018,1243547,St David'S Home For,Not assigned,Adults Services,2552
3110003406,19/12/2018,14/12/2018,1243452,Bupa Care Homes(ANS ) Ltd - T/a Collingwood Court Nursing Centre,Not assigned,Adults Services,2397.88
3110003407,19/12/2018,14/12/2018,1243431,Abba Residential Home,Not assigned,Adults Services,3441.32
3110003408,19/12/2018,14/12/2018,1243537,Shaw Healthcare (Group) Ltd,Not assigned,Adults Services,2372
3110003409,19/12/2018,14/12/2018,1243454,Bupa Care Homes(ANS) Ltd - T/a Havelock Court Nursing Centre,Not assigned,Adults Services,3844
3110003410,19/12/2018,14/12/2018,1245074,Astra Homes Ltd,Not assigned,Adults Services,3500
3110003411,19/12/2018,14/12/2018,1249019,Stepping Stones C/o Michael Abu,Not assigned,Adults Services,2760
3110003412,19/12/2018,14/12/2018,1243516,Campania,Not assigned,Adults Services,2307.68
3110003413,19/12/2018,14/12/2018,1245620,Spencer & Arlington,Not assigned,Adults Services,9203.6
3110003414,19/12/2018,14/12/2018,1249045,Susah Uk Ltd,Not assigned,Adults Services,3200
3110003415,19/12/2018,14/12/2018,1243443,British Home & Hospital,Not assigned,Adults Services,2394
3110003416,19/12/2018,14/12/2018,1243551,Vane Hill Residential Home,Not assigned,Adults Services,2884.64
3110003417,19/12/2018,14/12/2018,1245193,Thornton Lodge,Not assigned,Adults Services,17776.06
3110003418,19/12/2018,14/12/2018,1246224,Whitmore Vale Housing Association Ltd,Not assigned,Adults Services,3315.2
3110003419,19/12/2018,14/12/2018,1245144,Methodist Homes For The Aged,Not assigned,Adults Services,3017
3110003420,19/12/2018,14/12/2018,1244905,Nas Services Ltd (Residential),Not assigned,Adults Services,10326.4
3110003421,19/12/2018,14/12/2018,1243479,Georgian House Nursing Home,Not assigned,Adults Services,3052
3110003422,19/12/2018,14/12/2018,1245636,St Mungo's Broadway (Grants & General Invoicing),Not assigned,Adults Services,2720
3110003423,19/12/2018,14/12/2018,1246261,Brent Wandsworth & Westminster Mind (Acc 14285850),Not assigned,Adults Services,934.96
3110003424,19/12/2018,14/12/2018,1243566,Yarrow Housing Ltd,Not assigned,Adults Services,6646.68
3110003425,19/12/2018,14/12/2018,1245084,Beau Sejour Residential Care Home Ltd,Not assigned,Adults Services,5847.96
3110003426,19/12/2018,14/12/2018,1245156,Nazareth House,Not assigned,Adults Services,2188
3110003428,19/12/2018,14/12/2018,1243481,Gold Care Homes Ltd,Not assigned,Adults Services,2233
3110003429,19/12/2018,14/12/2018,1243481,Gold Care Homes Ltd,Not assigned,Adults Services,3060
3110003430,19/12/2018,14/12/2018,1243481,Gold Care Homes Ltd,Not assigned,Adults Services,3056.68
3110003431,19/12/2018,14/12/2018,1243534,Self Unlimited,Not assigned,Adults Services,2883.8
3110003432,19/12/2018,14/12/2018,1243518,Oakfield Care (Ashtead) Ltd,Not assigned,Adults Services,2975
3110003433,19/12/2018,14/12/2018,1245144,Methodist Homes For The Aged,Not assigned,Adults Services,1997.04
3110003434,19/12/2018,14/12/2018,1243447,Bupa Care Homes (ANS) Ltd - T/a Middlesex Manor Nursing Centre,Not assigned,Adults Services,2779.8
3110003435,19/12/2018,14/12/2018,1243563,Willowmead Residential Home Ltd C/O Healthcare Management Solutions Ltd,Not assigned,Adults Services,3200
3110003436,19/12/2018,14/12/2018,1246339,Caretech Community Services Ltd,Not assigned,Adults Services,7246.09
3110003437,19/12/2018,14/12/2018,1245104,Ealing Manor Nursing Home,Not assigned,Adults Services,2020
3110003438,19/12/2018,14/12/2018,1245566,Shaw Care Uk Ltd,Not assigned,Adults Services,6400
3110003439,19/12/2018,14/12/2018,1244905,Nas Services Ltd (Residential),Not assigned,Adults Services,3732.88
3110003440,19/12/2018,14/12/2018,1243503,Life Opportunities Trust,Not assigned,Adults Services,3399
3110003442,19/12/2018,14/12/2018,1243453,Bupa Care Homes(ANS ) Ltd - T/a Meadbank Nursing Home,Not assigned,Adults Services,2463.64
3110003443,19/12/2018,14/12/2018,1243453,Bupa Care Homes(ANS ) Ltd - T/a Meadbank Nursing Home,Not assigned,Adults Services,2926.17
3110003444,19/12/2018,14/12/2018,1243453,Bupa Care Homes(ANS ) Ltd - T/a Meadbank Nursing Home,Not assigned,Adults Services,2926.17
3110003445,19/12/2018,14/12/2018,1243474,Duckyls Farm Centre,Not assigned,Adults Services,2633.12
3110003446,19/12/2018,14/12/2018,1243454,Bupa Care Homes(ANS) Ltd - T/a Havelock Court Nursing Centre,Not assigned,Adults Services,957.71
3110003447,19/12/2018,14/12/2018,1245138,Jewish Care,Not assigned,Adults Services,3115.04
3110003448,19/12/2018,14/12/2018,1250268,Personal detail - redacted,Not assigned,Adults Services,22757.66
3110003449,19/12/2018,14/12/2018,1245174,Rosedene Nursing Home,Not assigned,Adults Services,5552
3110003450,19/12/2018,14/12/2018,1245127,Heaton Lodge,Not assigned,Adults Services,1764
3110003451,19/12/2018,14/12/2018,1245196,Tudor House,Not assigned,Adults Services,2867.36
3110003452,19/12/2018,14/12/2018,1245091,Care UK Community Partnerships Ltd,Not assigned,Adults Services,3343.36
3110003453,19/12/2018,14/12/2018,1243439,Blakesley House Nursing Home,Not assigned,Adults Services,2948
3110003454,19/12/2018,14/12/2018,1245091,Care UK Community Partnerships Ltd,Not assigned,Adults Services,3600
3110003455,19/12/2018,14/12/2018,1245620,Spencer & Arlington,Not assigned,Adults Services,16559.76
3110003456,19/12/2018,14/12/2018,1244092,Cambrian Learning Disabilities Ltd,Not assigned,Adults Services,5367
3110003457,19/12/2018,14/12/2018,1243551,Vane Hill Residential Home,Not assigned,Adults Services,2874
3110003458,19/12/2018,14/12/2018,1244905,Nas Services Ltd (Residential),Not assigned,Adults Services,7199.28
3110003460,19/12/2018,14/12/2018,1248971,St Martin Of Tours Housing Assoc Ltd,Not assigned,Adults Services,3800
3110003461,19/12/2018,14/12/2018,1243512,Md Homes,Not assigned,Adults Services,4300
3110003463,19/12/2018,14/12/2018,1243745,Primrose House Care Home Ltd,Not assigned,Adults Services,2120
3110003464,19/12/2018,14/12/2018,1245097,Chaston House,Not assigned,Adults Services,2320
3110003465,19/12/2018,14/12/2018,1245900,The Grace Eyre Foundation,Not assigned,Adults Services,1100
3110003467,19/12/2018,14/12/2018,1245637,St Mungo's Broadway (Rents),Not assigned,Adults Services,1347.92
3110003468,19/12/2018,14/12/2018,1245147,MMCG (2) Ltd (Maria Mallaband Care Group Ltd),Not assigned,Adults Services,2357.04
3110003469,19/12/2018,14/12/2018,1245637,St Mungo's Broadway (Rents),Not assigned,Adults Services,994.56
3110003471,19/12/2018,14/12/2018,1243486,Grove House Residential & Dementia Care,Not assigned,Adults Services,2400
3110003472,19/12/2018,14/12/2018,1245636,St Mungo's Broadway (Grants & General Invoicing),Not assigned,Adults Services,1187.2
3110003473,19/12/2018,14/12/2018,1243476,GCH (Acton) Ltd,Not assigned,Adults Services,2403.8
3110003474,19/12/2018,14/12/2018,1245105,Earlybirdcare Ltd,Not assigned,Adults Services,2600
3110003475,19/12/2018,14/12/2018,1245163,Poor Servants of the mother of God T/A The Frances Taylor Foundation(St Raphael's),Not assigned,Adults Services,2326.48
3110003476,19/12/2018,14/12/2018,1243566,Yarrow Housing Ltd,Not assigned,Adults Services,2985.52
3110003477,19/12/2018,14/12/2018,1245138,Jewish Care,Not assigned,Adults Services,2209
3110003478,19/12/2018,14/12/2018,1243470,Downing (Chertsey Road) Ltd,Not assigned,Adults Services,5645.2
3110003479,19/12/2018,14/12/2018,1245091,Care UK Community Partnerships Ltd,Not assigned,Adults Services,3805.07
3110003480,19/12/2018,14/12/2018,1245091,Care UK Community Partnerships Ltd,Not assigned,Adults Services,18149.67
3110003481,19/12/2018,14/12/2018,1243439,Blakesley House Nursing Home,Not assigned,Adults Services,3124.53
3110003482,19/12/2018,14/12/2018,1246022,Assisted Living Solutions Ltd,Not assigned,Adults Services,8234.4
3110003483,19/12/2018,14/12/2018,1245146,Minster Care Management Ltd,Not assigned,Adults Services,1952
3110003484,19/12/2018,14/12/2018,1245144,Methodist Homes For The Aged,Not assigned,Adults Services,4411.68
3110003485,19/12/2018,14/12/2018,1245144,Methodist Homes For The Aged,Not assigned,Adults Services,2375
3110003486,19/12/2018,14/12/2018,1249982,Personal detail - redacted,Not assigned,Adults Services,1400
3110003489,19/12/2018,14/12/2018,1243462,Coppermill Care Home,Not assigned,Adults Services,2400
3110003490,19/12/2018,14/12/2018,1243462,Coppermill Care Home,Not assigned,Adults Services,2400
3110003491,19/12/2018,14/12/2018,1246169,Venus Healthcare Ltd,Not assigned,Adults Services,10800.16
3110003492,19/12/2018,14/12/2018,1245072,Aster Healthcare Ltd,Not assigned,Adults Services,3400
3110003493,19/12/2018,14/12/2018,1246168,Venus Healthcare Homes Ltd,Not assigned,Adults Services,6400
3110003494,19/12/2018,14/12/2018,1248618,Riverside Echg,Not assigned,Adults Services,841.4
3110003495,19/12/2018,14/12/2018,1243513,Norbury Hall Residential Care Home Ltd,Not assigned,Adults Services,2400
3110003497,19/12/2018,14/12/2018,1243561,Greenfield Residential Home,Not assigned,Adults Services,2056
3110003498,19/12/2018,14/12/2018,1243469,Deepdene Care Ltd,Not assigned,Adults Services,14710.64
3110003499,19/12/2018,14/12/2018,1244905,Nas Services Ltd (Residential),Not assigned,Adults Services,3211
3110003500,19/12/2018,14/12/2018,1248237,One Housing Group Ltd,Not assigned,Adults Services,782.32
3110003502,19/12/2018,14/12/2018,1244826,Personal detail - redacted,Not assigned,Adults Services,2900
3110003503,19/12/2018,14/12/2018,1247656,London Cyrenians Housing Ltd,Not assigned,Adults Services,14400
3110003504,19/12/2018,14/12/2018,1245091,Care UK Community Partnerships Ltd,Not assigned,Adults Services,2579.8
3110003505,19/12/2018,14/12/2018,1245165,Precious Homes Ltd,Not assigned,Adults Services,23157.44
3110003506,19/12/2018,14/12/2018,1247912,Mental Health Residential Ltd,Not assigned,Adults Services,3236
3110003507,19/12/2018,14/12/2018,1246261,Brent Wandsworth & Westminster Mind (Acc 14285850),Not assigned,Adults Services,925.76
3110003508,19/12/2018,14/12/2018,1243439,Blakesley House Nursing Home,Not assigned,Adults Services,2726.23
3110003510,19/12/2018,14/12/2018,1245193,Thornton Lodge,Not assigned,Adults Services,2440.66
3110003511,19/12/2018,14/12/2018,1244905,Nas Services Ltd (Residential),Not assigned,Adults Services,9629.48
3110003513,19/12/2018,14/12/2018,1245636,St Mungo's Broadway (Grants & General Invoicing),Not assigned,Adults Services,2942.8
3110003514,19/12/2018,14/12/2018,1246261,Brent Wandsworth & Westminster Mind (Acc 14285850),Not assigned,Adults Services,944.68
3110003515,19/12/2018,14/12/2018,1243742,Leyton House Community Care Ltd,Not assigned,Adults Services,2600
3110003516,19/12/2018,14/12/2018,1249062,Tamaris Healthcare England Ltd,Not assigned,Adults Services,1803.16
3110003517,19/12/2018,14/12/2018,1245115,First Choice Care Ltd,Not assigned,Adults Services,3880
3110003518,19/12/2018,14/12/2018,1244905,Nas Services Ltd (Residential),Not assigned,Adults Services,3956.4
3110003519,19/12/2018,14/12/2018,1243548,St Georges Nursing Home Ltd,Not assigned,Adults Services,4239.09
3110003520,19/12/2018,14/12/2018,1243559,West London Residential Care Homes Ltd,Not assigned,Adults Services,2160
3110003521,19/12/2018,14/12/2018,1243559,West London Residential Care Homes Ltd,Not assigned,Adults Services,4085.71
3110003522,19/12/2018,14/12/2018,1245100,Chestnuts Bargate Ltd,Not assigned,Adults Services,1840
3110003523,19/12/2018,14/12/2018,1245112,Farrington Care Homes Ltd t/a Fairways Residential Care Home,Not assigned,Adults Services,2400
3110003524,19/12/2018,14/12/2018,1243495,La Rosa Homes Ltd T/A La Rosa,Not assigned,Adults Services,3076.28
3110003525,19/12/2018,14/12/2018,1245180,St Marys Care Ltd,Not assigned,Adults Services,2012
3110003526,19/12/2018,14/12/2018,1245180,St Marys Care Ltd,Not assigned,Adults Services,2124.4
3110003527,19/12/2018,14/12/2018,1245180,St Marys Care Ltd,Not assigned,Adults Services,2160
3110003528,19/12/2018,14/12/2018,1245168,Randall Care Homes,Not assigned,Adults Services,3100
3110003529,19/12/2018,14/12/2018,1245165,Precious Homes Ltd,Not assigned,Adults Services,5320
3110003530,19/12/2018,14/12/2018,1246261,Brent Wandsworth & Westminster Mind (Acc 14285850),Not assigned,Adults Services,864.12
3110003531,19/12/2018,14/12/2018,1245129,Heron Hill Care Home,Not assigned,Adults Services,2012
3110003532,19/12/2018,14/12/2018,1246095,Theana Ltd T/a Enlighten Homes,Not assigned,Adults Services,3980
3110003533,19/12/2018,14/12/2018,1243448,Bupa Care Homes (ANS) Ltd T/A The Sidcup Care Home,Not assigned,Adults Services,2283.54
3110003534,19/12/2018,14/12/2018,1243455,Bupa Care Homes(BNH) Ltd - T/a Allington Court Nursing Home,Not assigned,Adults Services,4419.16
3110003535,19/12/2018,14/12/2018,1245106,Elizabeth House,Not assigned,Adults Services,2160
3110003536,19/12/2018,14/12/2018,1245076,Avante Care & Support Ltd T/A Puddingstone Grange,Not assigned,Adults Services,2554.4
3110003537,19/12/2018,14/12/2018,1243948,Ategi Ltd,Not assigned,Adults Services,3116
3110003538,19/12/2018,14/12/2018,1243484,Grenham Bay Care Ltd,Not assigned,Adults Services,3500
3110003539,19/12/2018,14/12/2018,1245147,MMCG (2) Ltd (Maria Mallaband Care Group Ltd),Not assigned,Adults Services,2544
3110003540,19/12/2018,14/12/2018,1245147,MMCG (2) Ltd (Maria Mallaband Care Group Ltd),Not assigned,Adults Services,2567.36
3110003541,19/12/2018,14/12/2018,1243511,Margaret Rose Care Ltd T/A Warberries Nursing Home,Not assigned,Adults Services,3179.8
3110003542,19/12/2018,14/12/2018,1244760,Little Sisters of the Poor (St Peter's Residence),Not assigned,Adults Services,2373.04
3110003543,19/12/2018,14/12/2018,1247656,London Cyrenians Housing Ltd,Not assigned,Adults Services,779
3110003544,19/12/2018,14/12/2018,1245125,Heathcotes (Southern) Ltd,Not assigned,Adults Services,7935.2
3110003545,19/12/2018,14/12/2018,1245636,St Mungo's Broadway (Grants & General Invoicing),Not assigned,Adults Services,1187.2
3110003546,19/12/2018,14/12/2018,1243476,GCH (Acton) Ltd,Not assigned,Adults Services,2448
3110003547,19/12/2018,14/12/2018,1243476,GCH (Acton) Ltd,Not assigned,Adults Services,2207.36
3110003548,19/12/2018,14/12/2018,1243476,GCH (Acton) Ltd,Not assigned,Adults Services,2207.36
3110003549,19/12/2018,14/12/2018,1245072,Aster Healthcare Ltd,Not assigned,Adults Services,2552
3110003550,19/12/2018,14/12/2018,1243514,Norwood Green Care Centre,Not assigned,Adults Services,2132
3110003551,19/12/2018,14/12/2018,1244440,Foster Care Agency Ltd,Not assigned,Adults Services,4116
3110003552,19/12/2018,14/12/2018,1248618,Riverside Echg,Not assigned,Adults Services,818.72
3110003553,19/12/2018,14/12/2018,1243442,Bridgeside Lodge Care Centre,Not assigned,Adults Services,4167.36
3110003554,19/12/2018,14/12/2018,1245156,Nazareth House,Not assigned,Adults Services,2188
3110003555,19/12/2018,14/12/2018,1244547,Hestia Housing & Support,Not assigned,Adults Services,3444
3110003556,19/12/2018,14/12/2018,1245144,Methodist Homes For The Aged,Not assigned,Adults Services,2032
3110003557,19/12/2018,14/12/2018,1247656,London Cyrenians Housing Ltd,Not assigned,Adults Services,14280
3110003558,19/12/2018,14/12/2018,1243495,La Rosa Homes Ltd T/A La Rosa,Not assigned,Adults Services,4280
3110003559,19/12/2018,14/12/2018,1245180,St Marys Care Ltd,Not assigned,Adults Services,2020.4
3110003560,19/12/2018,14/12/2018,1245180,St Marys Care Ltd,Not assigned,Adults Services,2160
3110003561,19/12/2018,14/12/2018,1247852,Look Ahead Care and Support Ltd (Main Account 30171263),Not assigned,Adults Services,1116.12
3110003562,19/12/2018,14/12/2018,1243541,Sonesta Nursing Home Ltd,Not assigned,Adults Services,1988.68
3110003563,19/12/2018,14/12/2018,1245637,St Mungo's Broadway (Rents),Not assigned,Adults Services,1076.32
3110003564,19/12/2018,14/12/2018,1243841,About Me Care & Support Ltd,Not assigned,Adults Services,4386.8
3110003565,19/12/2018,14/12/2018,1245142,Medicrest Ltd T/A Homelands Nursing Home,Not assigned,Adults Services,2414.56
3110003566,19/12/2018,14/12/2018,1243530,Pine Lodge Care Ltd,Not assigned,Adults Services,2240
3110003567,19/12/2018,14/12/2018,1243458,Cocklebury Farmhouse Homes Ltd,Not assigned,Adults Services,5987.44
3110003568,19/12/2018,14/12/2018,1243473,Drs Care Homes Ltd,Not assigned,Adults Services,3000
3110003569,19/12/2018,14/12/2018,1243473,Drs Care Homes Ltd,Not assigned,Adults Services,3183.44
3110003570,19/12/2018,14/12/2018,1243962,Autism London,Not assigned,Adults Services,5154.96
3110003571,19/12/2018,14/12/2018,1245005,Outlook Care,Not assigned,Adults Services,3784.56
3110003572,19/12/2018,14/12/2018,1248618,Riverside Echg,Not assigned,Adults Services,1116.92
3110003573,19/12/2018,14/12/2018,1247852,Look Ahead Care and Support Ltd (Main Account 30171263),Not assigned,Adults Services,1252.4
3110003574,19/12/2018,14/12/2018,1243503,Life Opportunities Trust,Not assigned,Adults Services,5176
3110003575,19/12/2018,14/12/2018,1243961,Autism Anglia,Not assigned,Adults Services,11644
3110003577,19/12/2018,14/12/2018,1243500,Laurel Residential Homes Ltd,Not assigned,Adults Services,2840
3110003579,19/12/2018,14/12/2018,1243555,Waterfall House Ltd,Not assigned,Adults Services,2000
3110003580,19/12/2018,14/12/2018,1243517,Oak Lodge Residential Home,Not assigned,Adults Services,1800
3110003581,19/12/2018,14/12/2018,1243469,Deepdene Care Ltd,Not assigned,Adults Services,3584.4
3110003582,19/12/2018,14/12/2018,1246602,Community Housing Therapy,Not assigned,Adults Services,1940
3110003584,19/12/2018,14/12/2018,1243519,Oaks Nursing Centre,Not assigned,Adults Services,1429.62
3110003585,19/12/2018,14/12/2018,1243497,Lansdowne Care Home,Not assigned,Adults Services,2070.44
3110003587,19/12/2018,14/12/2018,1243481,Gold Care Homes Ltd,Not assigned,Adults Services,29944.29
3110003588,19/12/2018,14/12/2018,1243481,Gold Care Homes Ltd,Not assigned,Adults Services,3056.68
3110003589,19/12/2018,14/12/2018,1244479,Glenholme Mental Health,Not assigned,Adults Services,4519.36
3110003590,19/12/2018,14/12/2018,1246602,Community Housing Therapy,Not assigned,Adults Services,1940
3110003591,19/12/2018,14/12/2018,1244904,Nas House,Not assigned,Adults Services,18933.4
3110003592,19/12/2018,14/12/2018,1244904,Nas House,Not assigned,Adults Services,2600
3110003593,19/12/2018,14/12/2018,1247482,Personal detail - redacted,Not assigned,Adults Services,833.28
3110003594,19/12/2018,14/12/2018,1248237,One Housing Group Ltd,Not assigned,Adults Services,1174.36
3110003595,19/12/2018,14/12/2018,1245181,St Wilfrids Care Home,Not assigned,Adults Services,2756
3110003596,19/12/2018,14/12/2018,1243559,West London Residential Care Homes Ltd,Not assigned,Adults Services,2372
3110003597,19/12/2018,14/12/2018,1245147,MMCG (2) Ltd (Maria Mallaband Care Group Ltd),Not assigned,Adults Services,2579.8
3110003598,19/12/2018,14/12/2018,1245147,MMCG (2) Ltd (Maria Mallaband Care Group Ltd),Not assigned,Adults Services,2575
3110003599,19/12/2018,14/12/2018,1243461,Connifers Care Ltd,Not assigned,Adults Services,4748
3110003600,19/12/2018,14/12/2018,1245130,Hoffmann Foundation for Autism T/A Gordon Avenue,Not assigned,Adults Services,5645.32
3110003601,19/12/2018,14/12/2018,1246339,Caretech Community Services Ltd,Not assigned,Adults Services,8493.76
3110003602,19/12/2018,14/12/2018,1245768,A2Dominion Housing Group (Acc 20621250),Not assigned,Adults Services,637.04
3110003603,19/12/2018,14/12/2018,1243476,GCH (Acton) Ltd,Not assigned,Adults Services,2207.36
3110003604,19/12/2018,14/12/2018,1243476,GCH (Acton) Ltd,Not assigned,Adults Services,2207.36
3110003606,19/12/2018,14/12/2018,1243493,HC-One Oval Ltd,Not assigned,Adults Services,1896.36
3110003607,19/12/2018,14/12/2018,1243493,HC-One Oval Ltd,Not assigned,Adults Services,2600
3110003608,19/12/2018,14/12/2018,1245183,Tamulst Care Ltd T/A Woodgrove Care Home,Not assigned,Adults Services,2760
3110003609,19/12/2018,14/12/2018,1245071,Ashness Care Ltd,Not assigned,Adults Services,3550
3110003611,19/12/2018,14/12/2018,1243503,Life Opportunities Trust,Not assigned,Adults Services,4663
3110003612,19/12/2018,14/12/2018,1243506,Lifeways Community Care Ltd,Not assigned,Adults Services,6760.88
3110003613,19/12/2018,14/12/2018,1245147,MMCG (2) Ltd (Maria Mallaband Care Group Ltd),Not assigned,Adults Services,2775
3110003614,19/12/2018,14/12/2018,1243527,Park View Care Home C/O Barchester Health Care,Not assigned,Adults Services,3900
3110003616,19/12/2018,14/12/2018,1245190,The Old Parsonage,Not assigned,Adults Services,2986.8
3110003617,19/12/2018,14/12/2018,1247651,London Care Partnership Ltd,Not assigned,Adults Services,8155.8
3110003618,19/12/2018,14/12/2018,1245091,Care UK Community Partnerships Ltd,Not assigned,Adults Services,12760.11
3110003619,19/12/2018,14/12/2018,1245091,Care UK Community Partnerships Ltd,Not assigned,Adults Services,2952
3110003620,19/12/2018,14/12/2018,1243469,Deepdene Care Ltd,Not assigned,Adults Services,3880
3110003621,19/12/2018,14/12/2018,1245192,The Whitehouse Residential  Nursing Home,Not assigned,Adults Services,2400
3110003622,19/12/2018,14/12/2018,1243566,Yarrow Housing Ltd,Not assigned,Adults Services,7297.56
3110003623,19/12/2018,14/12/2018,1247147,Norwood Schools Ltd,Not assigned,Adults Services,6432.08
3110003624,19/12/2018,14/12/2018,1243549,St Georges Retreat,Not assigned,Adults Services,1995.48
3110003625,19/12/2018,14/12/2018,1243497,Lansdowne Care Home,Not assigned,Adults Services,2020.36
3110003626,19/12/2018,14/12/2018,1245160,Nightingale House,Not assigned,Adults Services,3263.16
3110003627,19/12/2018,14/12/2018,1243524,Ormsby Lodge,Not assigned,Adults Services,4315.76
3110003628,19/12/2018,14/12/2018,1247147,Norwood Schools Ltd,Not assigned,Adults Services,5675.48
3110003629,19/12/2018,14/12/2018,1247147,Norwood Schools Ltd,Not assigned,Adults Services,7974.36
3110003630,19/12/2018,14/12/2018,1245126,Heatherwood Nursing Home Ltd T/A Willow Lodge Nursing Home,Not assigned,Adults Services,3316.08
3110003631,19/12/2018,14/12/2018,1243447,Bupa Care Homes (ANS) Ltd - T/a Middlesex Manor Nursing Centre,Not assigned,Adults Services,2465.16
3110003632,19/12/2018,14/12/2018,1243447,Bupa Care Homes (ANS) Ltd - T/a Middlesex Manor Nursing Centre,Not assigned,Adults Services,2959.8
3110003633,19/12/2018,14/12/2018,1245104,Ealing Manor Nursing Home,Not assigned,Adults Services,2092
3110003634,19/12/2018,14/12/2018,1243507,Personal detail - redacted,Not assigned,Adults Services,1308.2
3110003635,19/12/2018,14/12/2018,1245005,Outlook Care,Not assigned,Adults Services,2744
3110003636,19/12/2018,14/12/2018,1249156,The Wirral Autistic Society,Not assigned,Adults Services,3945.2
3110003637,19/12/2018,14/12/2018,1246937,Equinox Care,Not assigned,Adults Services,6171.43
3110003638,19/12/2018,14/12/2018,1243480,Gibson Lodge Nursing Home,Not assigned,Adults Services,2464
3110003639,19/12/2018,14/12/2018,1243453,Bupa Care Homes(ANS ) Ltd - T/a Meadbank Nursing Home,Not assigned,Adults Services,2861.7
3110003640,19/12/2018,14/12/2018,1243453,Bupa Care Homes(ANS ) Ltd - T/a Meadbank Nursing Home,Not assigned,Adults Services,2628.41
3110003641,19/12/2018,14/12/2018,1245080,Barchester Health Care Homes Ltd (Magnolia Court),Not assigned,Adults Services,4967.36
3110003642,19/12/2018,14/12/2018,1247630,Leonard Cheshire Foundation,Not assigned,Adults Services,4735.64
3110003643,19/12/2018,14/12/2018,1243470,Downing (Chertsey Road) Ltd,Not assigned,Adults Services,5645.2
3110003644,19/12/2018,14/12/2018,1245174,Rosedene Nursing Home,Not assigned,Adults Services,4179.8
3110003645,19/12/2018,14/12/2018,1245174,Rosedene Nursing Home,Not assigned,Adults Services,4419.8
3110003646,19/12/2018,14/12/2018,1245174,Rosedene Nursing Home,Not assigned,Adults Services,3451
3110003647,19/12/2018,14/12/2018,1247656,London Cyrenians Housing Ltd,Not assigned,Adults Services,4912
3110003648,19/12/2018,14/12/2018,1243487,Gunputh Associates Ltd,Not assigned,Adults Services,5940
3110003649,19/12/2018,14/12/2018,1249045,Susah Uk Ltd,Not assigned,Adults Services,3564
3110003650,19/12/2018,14/12/2018,1244165,Chiswick Nursing Centre,Not assigned,Adults Services,3361.6
3110003651,19/12/2018,14/12/2018,1244165,Chiswick Nursing Centre,Not assigned,Adults Services,4249.8
3110003652,19/12/2018,14/12/2018,1243483,Greenview Healthcare Ltd,Not assigned,Adults Services,3800
3110003653,19/12/2018,14/12/2018,1245636,St Mungo's Broadway (Grants & General Invoicing),Not assigned,Adults Services,2720
3110003654,19/12/2018,14/12/2018,1249044,Susash London Limited,Not assigned,Adults Services,3400
3110003655,19/12/2018,14/12/2018,1245072,Aster Healthcare Ltd,Not assigned,Adults Services,2235.8
3110003656,19/12/2018,14/12/2018,1243514,Norwood Green Care Centre,Not assigned,Adults Services,2160
3110003657,19/12/2018,14/12/2018,1245156,Nazareth House,Not assigned,Adults Services,3829
3110003658,19/12/2018,14/12/2018,1243457,Cmg Homes Ltd - The Care House,Not assigned,Adults Services,5804.52
3110003659,19/12/2018,14/12/2018,1243481,Gold Care Homes Ltd,Not assigned,Adults Services,2233
3110003660,19/12/2018,14/12/2018,1243481,Gold Care Homes Ltd,Not assigned,Adults Services,3056.68
3110003661,19/12/2018,14/12/2018,1243456,Clifton Court Development Co,Not assigned,Adults Services,2134.64
3110003662,19/12/2018,14/12/2018,1245160,Nightingale House,Not assigned,Adults Services,2638.16
3110003663,19/12/2018,14/12/2018,1245160,Nightingale House,Not assigned,Adults Services,3110.32
3110003665,19/12/2018,14/12/2018,1243447,Bupa Care Homes (ANS) Ltd - T/a Middlesex Manor Nursing Centre,Not assigned,Adults Services,2239.53
3110003666,19/12/2018,14/12/2018,1245098,Chd Living,Not assigned,Adults Services,2665.96
3110003667,19/12/2018,14/12/2018,1244549,Hf Trust Ltd,Not assigned,Adults Services,4428.04
3110003668,19/12/2018,14/12/2018,1247990,National Society For Epilepsy,Not assigned,Adults Services,9904.84
3110003669,19/12/2018,14/12/2018,1243453,Bupa Care Homes(ANS ) Ltd - T/a Meadbank Nursing Home,Not assigned,Adults Services,2463.64
3110003670,19/12/2018,14/12/2018,1243453,Bupa Care Homes(ANS ) Ltd - T/a Meadbank Nursing Home,Not assigned,Adults Services,2926.17
3110003671,19/12/2018,14/12/2018,1243453,Bupa Care Homes(ANS ) Ltd - T/a Meadbank Nursing Home,Not assigned,Adults Services,2861.7
3110003672,19/12/2018,14/12/2018,1243452,Bupa Care Homes(ANS ) Ltd - T/a Collingwood Court Nursing Centre,Not assigned,Adults Services,2475.88
3110003673,19/12/2018,14/12/2018,1243537,Shaw Healthcare (Group) Ltd,Not assigned,Adults Services,2160
3110003674,19/12/2018,14/12/2018,1244197,Clwyd Community Care Ltd,Not assigned,Adults Services,5382.28
3110003675,19/12/2018,14/12/2018,1245074,Astra Homes Ltd,Not assigned,Adults Services,3200
3110003676,19/12/2018,14/12/2018,1243457,Cmg Homes Ltd - The Care House,Not assigned,Adults Services,9292.6
3110003677,19/12/2018,14/12/2018,1243516,Campania,Not assigned,Adults Services,2277
3110003678,19/12/2018,14/12/2018,1243443,British Home & Hospital,Not assigned,Adults Services,3352
3110003679,19/12/2018,14/12/2018,1245178,Saffronland Homes,Not assigned,Adults Services,4073.8
3110003680,19/12/2018,14/12/2018,1244905,Nas Services Ltd (Residential),Not assigned,Adults Services,9360.68
3110003681,19/12/2018,14/12/2018,1244905,Nas Services Ltd (Residential),Not assigned,Adults Services,24764.56
3110003682,19/12/2018,14/12/2018,1245636,St Mungo's Broadway (Grants & General Invoicing),Not assigned,Adults Services,2720
3110003683,19/12/2018,14/12/2018,1245636,St Mungo's Broadway (Grants & General Invoicing),Not assigned,Adults Services,2500
3110003684,19/12/2018,14/12/2018,1245636,St Mungo's Broadway (Grants & General Invoicing),Not assigned,Adults Services,2923.76
3110003685,19/12/2018,14/12/2018,1243501,Laurel Residential Homes Ltd,Not assigned,Adults Services,1800
3110003686,19/12/2018,14/12/2018,1248618,Riverside Echg,Not assigned,Adults Services,1173.2
3110003687,19/12/2018,14/12/2018,1244905,Nas Services Ltd (Residential),Not assigned,Adults Services,12209.96
3110003688,19/12/2018,14/12/2018,1244905,Nas Services Ltd (Residential),Not assigned,Adults Services,3816.6
3110003689,19/12/2018,14/12/2018,1245097,Chaston House,Not assigned,Adults Services,2320
3110003690,19/12/2018,14/12/2018,1250448,Personal detail - redacted,Not assigned,Adults Services,1419.24
3110003691,19/12/2018,14/12/2018,1243536,Sharda Care Ltd,Not assigned,Adults Services,3347.36
3110003692,19/12/2018,14/12/2018,1245184,Telford Lodge Care Ltd,Not assigned,Adults Services,2220
3110003693,19/12/2018,14/12/2018,1243548,St Georges Nursing Home Ltd,Not assigned,Adults Services,1737.32
3110003694,19/12/2018,14/12/2018,1243559,West London Residential Care Homes Ltd,Not assigned,Adults Services,2140
3110003695,19/12/2018,14/12/2018,1243558,West London Mission,Not assigned,Adults Services,3122
3110003697,19/12/2018,14/12/2018,1246561,Church Army Marylebone Project,Not assigned,Adults Services,994.78
3110003698,19/12/2018,14/12/2018,1245173,Rookhurst Lodge Ltd,Not assigned,Adults Services,4697.6
3110003699,19/12/2018,14/12/2018,1247852,Look Ahead Care and Support Ltd (Main Account 30171263),Not assigned,Adults Services,1116.12
3110003700,19/12/2018,14/12/2018,1246261,Brent Wandsworth & Westminster Mind (Acc 14285850),Not assigned,Adults Services,944.68
3110003701,19/12/2018,14/12/2018,1246261,Brent Wandsworth & Westminster Mind (Acc 14285850),Not assigned,Adults Services,1041.84
3110003702,19/12/2018,14/12/2018,1243461,Connifers Care Ltd,Not assigned,Adults Services,6200
3110003703,19/12/2018,14/12/2018,1247598,Kisimul Group Ltd,Not assigned,Adults Services,6953.47
3110003704,19/12/2018,14/12/2018,1248282,Partnerships In Care,Not assigned,Adults Services,4228.24
3110003705,19/12/2018,14/12/2018,1248237,One Housing Group Ltd,Not assigned,Adults Services,1180.56
3110003706,19/12/2018,14/12/2018,1246095,Theana Ltd T/a Enlighten Homes,Not assigned,Adults Services,3980
3110003707,19/12/2018,14/12/2018,1243532,Sanctuary Care Ltd,Not assigned,Adults Services,2600
3110003708,19/12/2018,14/12/2018,1243532,Sanctuary Care Ltd,Not assigned,Adults Services,2600
3110003709,19/12/2018,14/12/2018,1245147,MMCG (2) Ltd (Maria Mallaband Care Group Ltd),Not assigned,Adults Services,2552
3110003710,19/12/2018,14/12/2018,1245166,Precious Homes Support Ltd,Not assigned,Adults Services,24102.92
3110003711,19/12/2018,14/12/2018,1243476,GCH (Acton) Ltd,Not assigned,Adults Services,1748.57
3110003712,19/12/2018,14/12/2018,1243476,GCH (Acton) Ltd,Not assigned,Adults Services,2207.36
3110003713,19/12/2018,14/12/2018,1243476,GCH (Acton) Ltd,Not assigned,Adults Services,2207.36
3110003714,19/12/2018,14/12/2018,1243476,GCH (Acton) Ltd,Not assigned,Adults Services,2359.8
3110003715,19/12/2018,14/12/2018,1243476,GCH (Acton) Ltd,Not assigned,Adults Services,2448
3110003716,19/12/2018,14/12/2018,1245134,Hulcott Nursing Home,Not assigned,Adults Services,2371
3110003717,19/12/2018,14/12/2018,1243473,Drs Care Homes Ltd,Not assigned,Adults Services,2905.28
3110003718,19/12/2018,14/12/2018,1243473,Drs Care Homes Ltd,Not assigned,Adults Services,3365.92
3110003719,19/12/2018,14/12/2018,1245637,St Mungo's Broadway (Rents),Not assigned,Adults Services,3031.64
3110003720,19/12/2018,14/12/2018,1243552,Vision Homes Association,Not assigned,Adults Services,7437
3110003721,19/12/2018,14/12/2018,1247852,Look Ahead Care and Support Ltd (Main Account 30171263),Not assigned,Adults Services,1252.4
3110003722,19/12/2018,14/12/2018,1247852,Look Ahead Care and Support Ltd (Main Account 30171263),Not assigned,Adults Services,1252.4
3110003723,19/12/2018,14/12/2018,1248935,Southside Partnership,Not assigned,Adults Services,3346.68
3110003724,19/12/2018,14/12/2018,1243566,Yarrow Housing Ltd,Not assigned,Adults Services,843.08
3110003725,19/12/2018,14/12/2018,1243961,Autism Anglia,Not assigned,Adults Services,5390.24
3110003726,19/12/2018,14/12/2018,1243444,Broadham Care Ltd,Not assigned,Adults Services,7277
3110003727,19/12/2018,14/12/2018,1243559,West London Residential Care Homes Ltd,Not assigned,Adults Services,2140
3110003728,19/12/2018,14/12/2018,1243559,West London Residential Care Homes Ltd,Not assigned,Adults Services,2372
3110003729,19/12/2018,14/12/2018,1243525,P J Care Ltd,Not assigned,Adults Services,6714.4
3110003730,19/12/2018,14/12/2018,1245077,Avery Homes (Nelson) Ltd,Not assigned,Adults Services,2487.36
3110003731,19/12/2018,14/12/2018,1247657,London Residential Healthcare Ltd,Not assigned,Adults Services,2383.64
3110003732,19/12/2018,14/12/2018,1247852,Look Ahead Care and Support Ltd (Main Account 30171263),Not assigned,Adults Services,1279.12
3110003733,19/12/2018,14/12/2018,1246261,Brent Wandsworth & Westminster Mind (Acc 14285850),Not assigned,Adults Services,934.96
3110003734,19/12/2018,14/12/2018,1243541,Sonesta Nursing Home Ltd,Not assigned,Adults Services,2613.68
3110003735,19/12/2018,14/12/2018,1245637,St Mungo's Broadway (Rents),Not assigned,Adults Services,1347.92
3110003736,19/12/2018,14/12/2018,1245637,St Mungo's Broadway (Rents),Not assigned,Adults Services,1347.92
3110003737,19/12/2018,14/12/2018,1245078,B & M Investments Ltd,Not assigned,Adults Services,2380
3110003738,19/12/2018,14/12/2018,1246095,Theana Ltd T/a Enlighten Homes,Not assigned,Adults Services,3580
3110003739,19/12/2018,14/12/2018,1246339,Caretech Community Services Ltd,Not assigned,Adults Services,16592
3110003740,19/12/2018,14/12/2018,1243441,Bondcare (London) Ltd T/A The Fountains,Not assigned,Adults Services,2009.08
3110003742,19/12/2018,14/12/2018,1245130,Hoffmann Foundation for Autism T/A Gordon Avenue,Not assigned,Adults Services,2946.72
3110003743,19/12/2018,14/12/2018,1249693,Aurora Care & Education OPCO Ltd T/A Aurora Orchard Manor Transition Service and Meldreth Manor School,Not assigned,Adults Services,9074.28
3110003744,19/12/2018,14/12/2018,1247854,Look Ahead Housing & Care Ltd,Not assigned,Adults Services,591.46
3110003745,19/12/2018,14/12/2018,1243476,GCH (Acton) Ltd,Not assigned,Adults Services,2219.8
3110003746,19/12/2018,14/12/2018,1243896,Altwood Housing Limited,Not assigned,Adults Services,840
3110003747,19/12/2018,14/12/2018,1244827,Maria Mallaband Ltd (Winscombe Care Home),Not assigned,Adults Services,4000
3110003748,19/12/2018,14/12/2018,1243493,HC-One Oval Ltd,Not assigned,Adults Services,2267.28
3110003749,19/12/2018,14/12/2018,1248971,St Martin Of Tours Housing Assoc Ltd,Not assigned,Adults Services,3980
3110003750,19/12/2018,14/12/2018,1248971,St Martin Of Tours Housing Assoc Ltd,Not assigned,Adults Services,7192.86
3110003751,19/12/2018,14/12/2018,1243458,Cocklebury Farmhouse Homes Ltd,Not assigned,Adults Services,6470.24
3110003752,19/12/2018,14/12/2018,1246324,Candour Care Services (Broadview) Ltd,Not assigned,Adults Services,7434.92
3110003753,19/12/2018,14/12/2018,1245005,Outlook Care,Not assigned,Adults Services,3784.56
3110003755,19/12/2018,14/12/2018,1243506,Lifeways Community Care Ltd,Not assigned,Adults Services,11633
3110003756,19/12/2018,14/12/2018,1245147,MMCG (2) Ltd (Maria Mallaband Care Group Ltd),Not assigned,Adults Services,3200
3110003757,19/12/2018,14/12/2018,1243560,Westergate House,Not assigned,Adults Services,3465.04
3110003759,19/12/2018,14/12/2018,1243497,Lansdowne Care Home,Not assigned,Adults Services,2407.36
3110003760,19/12/2018,14/12/2018,1247147,Norwood Schools Ltd,Not assigned,Adults Services,4882.52
3110003761,19/12/2018,14/12/2018,1245156,Nazareth House,Not assigned,Adults Services,1300
3110003762,19/12/2018,14/12/2018,1245156,Nazareth House,Not assigned,Adults Services,2132
3110003763,19/12/2018,14/12/2018,1243481,Gold Care Homes Ltd,Not assigned,Adults Services,3060
3110003764,19/12/2018,14/12/2018,1246321,Camphill Village Trust,Not assigned,Adults Services,8530.89
3110003765,19/12/2018,14/12/2018,1244904,Nas House,Not assigned,Adults Services,2268.66
3110003766,19/12/2018,14/12/2018,1244904,Nas House,Not assigned,Adults Services,18933.4
3110003767,19/12/2018,14/12/2018,1244515,Hampshire Autistic Society,Not assigned,Adults Services,5993.54
3110003769,19/12/2018,14/12/2018,1243534,Self Unlimited,Not assigned,Adults Services,1558.8
3110003770,19/12/2018,14/12/2018,1248948,St Davids Care In The Community Ltd,Not assigned,Adults Services,2806.56
3110003771,19/12/2018,14/12/2018,1243453,Bupa Care Homes(ANS ) Ltd - T/a Meadbank Nursing Home,Not assigned,Adults Services,10822.77
3110003772,19/12/2018,14/12/2018,1243453,Bupa Care Homes(ANS ) Ltd - T/a Meadbank Nursing Home,Not assigned,Adults Services,2731.75
3110003773,19/12/2018,14/12/2018,1243453,Bupa Care Homes(ANS ) Ltd - T/a Meadbank Nursing Home,Not assigned,Adults Services,2750.71
3110003774,19/12/2018,14/12/2018,1243453,Bupa Care Homes(ANS ) Ltd - T/a Meadbank Nursing Home,Not assigned,Adults Services,2926.17
3110003775,19/12/2018,14/12/2018,1243452,Bupa Care Homes(ANS ) Ltd - T/a Collingwood Court Nursing Centre,Not assigned,Adults Services,2538.28
3110003776,19/12/2018,14/12/2018,1243431,Abba Residential Home,Not assigned,Adults Services,4800
3110003777,19/12/2018,14/12/2018,1243431,Abba Residential Home,Not assigned,Adults Services,3164.88
3110003778,19/12/2018,14/12/2018,1245091,Care UK Community Partnerships Ltd,Not assigned,Adults Services,3096.74
3110003779,19/12/2018,14/12/2018,1243551,Vane Hill Residential Home,Not assigned,Adults Services,1967.6
3110003780,19/12/2018,14/12/2018,1247852,Look Ahead Care and Support Ltd (Main Account 30171263),Not assigned,Adults Services,1252.4
3110003781,19/12/2018,14/12/2018,1248935,Southside Partnership,Not assigned,Adults Services,4392.8
3110003782,19/12/2018,14/12/2018,1245153,Murrefield Lodge Ltd,Not assigned,Adults Services,1693.2
3110003783,19/12/2018,14/12/2018,1243496,Langley House Residential Care Home,Not assigned,Adults Services,1827.04
3110003784,19/12/2018,14/12/2018,1245283,Quest Haven Ltd,Not assigned,Adults Services,5200
3110003785,19/12/2018,14/12/2018,1243503,Life Opportunities Trust,Not assigned,Adults Services,6199.2
3110003786,19/12/2018,14/12/2018,1245091,Care UK Community Partnerships Ltd,Not assigned,Adults Services,3240
3110003787,19/12/2018,14/12/2018,1243434,Acorn Lodge Care Home,Not assigned,Adults Services,2497.6
3110003788,19/12/2018,14/12/2018,1243469,Deepdene Care Ltd,Not assigned,Adults Services,3180
3110003789,19/12/2018,14/12/2018,1245156,Nazareth House,Not assigned,Adults Services,1955
3110003790,19/12/2018,14/12/2018,1243851,Accomplish Group Ltd,Not assigned,Adults Services,6422.8
3110003791,19/12/2018,14/12/2018,1245138,Jewish Care,Not assigned,Adults Services,3464.6
3110003792,19/12/2018,14/12/2018,1243481,Gold Care Homes Ltd,Not assigned,Adults Services,2233
3110003793,19/12/2018,14/12/2018,1244904,Nas House,Not assigned,Adults Services,18933.4
3110003794,19/12/2018,14/12/2018,1245636,St Mungo's Broadway (Grants & General Invoicing),Not assigned,Adults Services,2220
3110003796,19/12/2018,14/12/2018,1243518,Oakfield Care (Ashtead) Ltd,Not assigned,Adults Services,949.59
3110003797,19/12/2018,14/12/2018,1243518,Oakfield Care (Ashtead) Ltd,Not assigned,Adults Services,2842
3110003798,19/12/2018,14/12/2018,1245138,Jewish Care,Not assigned,Adults Services,2333.14
3110003799,19/12/2018,14/12/2018,1243447,Bupa Care Homes (ANS) Ltd - T/a Middlesex Manor Nursing Centre,Not assigned,Adults Services,2752
3110003800,19/12/2018,14/12/2018,1247933,Minster Pathways Ltd,Not assigned,Adults Services,4752
3110003801,19/12/2018,14/12/2018,1245108,Elysium Healthcare No 2 Ltd T/A Priory Grange St Neots,Not assigned,Adults Services,8722.2
3110003803,19/12/2018,14/12/2018,1245185,Terrance House Care Ltd,Not assigned,Adults Services,1709.92
3110003805,19/12/2018,14/12/2018,1245171,Richard Cusden Homes Ltd,Not assigned,Adults Services,2554.56
3110003806,19/12/2018,14/12/2018,1245144,Methodist Homes For The Aged,Not assigned,Adults Services,3167.36
3110003807,19/12/2018,14/12/2018,1243559,West London Residential Care Homes Ltd,Not assigned,Adults Services,931.85
3110003809,19/12/2018,14/12/2018,1245092,Caring Consultancy Ltd,Not assigned,Adults Services,1485.9
3110003810,19/12/2018,14/12/2018,1245186,Tewkesbury Care Home Ltd,Not assigned,Adults Services,4000
3110003811,19/12/2018,14/12/2018,1244905,Nas Services Ltd (Residential),Not assigned,Adults Services,6944.2
3110003812,19/12/2018,14/12/2018,1245900,The Grace Eyre Foundation,Not assigned,Adults Services,3534.4
3110003813,19/12/2018,14/12/2018,1245141,Personal detail - redacted,Not assigned,Adults Services,9084.08
3110003814,19/12/2018,14/12/2018,1245514,S & E Housing Ltd,Not assigned,Adults Services,1180
3110003815,19/12/2018,14/12/2018,1245091,Care UK Community Partnerships Ltd,Not assigned,Adults Services,3400
3110003816,19/12/2018,14/12/2018,1244166,Choice Care Group,Not assigned,Adults Services,7836
3110003817,19/12/2018,14/12/2018,1243459,Coghlan Lodges Ltd,Not assigned,Adults Services,3800
3110003818,19/12/2018,14/12/2018,1245157,Nevisbridge Ltd T/A Manor Care Centre,Not assigned,Adults Services,3624.16
3110003819,19/12/2018,14/12/2018,1245067,Andover Care Ltd T/A Andover Nursing Home,Not assigned,Adults Services,5767.36
3110003820,19/12/2018,14/12/2018,1245120,Four Seasons 2000 Ltd T/A Copper Beeches Care Home,Not assigned,Adults Services,2292
3110003821,19/12/2018,14/12/2018,1244369,Entertainment Artistes Benevolent Fund,Not assigned,Adults Services,1864
3110003822,19/12/2018,14/12/2018,1244866,Micado Community Living Services Ltd,Not assigned,Adults Services,2880
3110003823,19/12/2018,14/12/2018,1243568,Z & M Care Ltd ,Not assigned,Adults Services,3276.8
3110003824,19/12/2018,14/12/2018,1245636,St Mungo's Broadway (Grants & General Invoicing),Not assigned,Adults Services,1187.2
3110003826,19/12/2018,14/12/2018,1243476,GCH (Acton) Ltd,Not assigned,Adults Services,2207.36
3110003827,19/12/2018,14/12/2018,1243499,Larchwood Care Homes (South) Ltd (Dungate Manor),Not assigned,Adults Services,3400
3110003828,19/12/2018,14/12/2018,1245081,Barchester Healthcare Homes Ltd Oak Grange,Not assigned,Adults Services,5440
3110003829,19/12/2018,14/12/2018,1247546,J Jindal Ltd,Not assigned,Adults Services,3840
3110003830,19/12/2018,14/12/2018,1245005,Outlook Care,Not assigned,Adults Services,5024
3110003831,19/12/2018,14/12/2018,1247630,Leonard Cheshire Foundation,Not assigned,Adults Services,5510.08
3110003832,19/12/2018,14/12/2018,1243453,Bupa Care Homes(ANS ) Ltd - T/a Meadbank Nursing Home,Not assigned,Adults Services,2926.17
3110003833,19/12/2018,14/12/2018,1243453,Bupa Care Homes(ANS ) Ltd - T/a Meadbank Nursing Home,Not assigned,Adults Services,2866.89
3110003834,19/12/2018,14/12/2018,1243453,Bupa Care Homes(ANS ) Ltd - T/a Meadbank Nursing Home,Not assigned,Adults Services,3558.81
3110003835,19/12/2018,14/12/2018,1243453,Bupa Care Homes(ANS ) Ltd - T/a Meadbank Nursing Home,Not assigned,Adults Services,2505.68
3110003836,19/12/2018,14/12/2018,1243431,Abba Residential Home,Not assigned,Adults Services,1965.04
3110003837,19/12/2018,14/12/2018,1245174,Rosedene Nursing Home,Not assigned,Adults Services,26945.93
3110003839,19/12/2018,14/12/2018,1243439,Blakesley House Nursing Home,Not assigned,Adults Services,2897.75
3110003840,19/12/2018,14/12/2018,1243485,Grove Care Partnership Ltd,Not assigned,Adults Services,7672.8
3110003841,19/12/2018,14/12/2018,1249045,Susah Uk Ltd,Not assigned,Adults Services,4100.28
3110003842,19/12/2018,14/12/2018,1243746,Royal Hospital For Neuro-disability,Not assigned,Adults Services,6000
3110003843,19/12/2018,14/12/2018,1245193,Thornton Lodge,Not assigned,Adults Services,2700
3110003844,19/12/2018,14/12/2018,1244905,Nas Services Ltd (Residential),Not assigned,Adults Services,4657.72
3110003845,19/12/2018,14/12/2018,1245636,St Mungo's Broadway (Grants & General Invoicing),Not assigned,Adults Services,2500
3110003846,19/12/2018,14/12/2018,1245636,St Mungo's Broadway (Grants & General Invoicing),Not assigned,Adults Services,2923.76
3110003848,19/12/2018,14/12/2018,1244212,Complete Care London,Not assigned,Adults Services,6120
3110003849,19/12/2018,14/12/2018,1244212,Complete Care London,Not assigned,Adults Services,3600
3110003850,19/12/2018,14/12/2018,1243501,Laurel Residential Homes Ltd,Not assigned,Adults Services,2800
3110003851,19/12/2018,14/12/2018,1245145,Micado Homes Ltd,Not assigned,Adults Services,4312
3110003852,19/12/2018,14/12/2018,1245145,Micado Homes Ltd,Not assigned,Adults Services,3731.2
3110003853,19/12/2018,14/12/2018,1245083,Bayswift Ltd T/A Chegworth Nursing Home,Not assigned,Adults Services,2767.36
3110003854,19/12/2018,14/12/2018,1243508,Lukka Care Homes,Not assigned,Adults Services,2658.6
3110003855,19/12/2018,14/12/2018,1243515,Notaro Homes Ltd (Clarence Park Care Home),Not assigned,Adults Services,2780
3110003856,19/12/2018,14/12/2018,1243548,St Georges Nursing Home Ltd,Not assigned,Adults Services,3800
3110003857,19/12/2018,14/12/2018,1243548,St Georges Nursing Home Ltd,Not assigned,Adults Services,7948.02
3110003858,19/12/2018,14/12/2018,1243548,St Georges Nursing Home Ltd,Not assigned,Adults Services,2160
3110003859,19/12/2018,14/12/2018,1243478,Georgian House (Torquay) Ltd,Not assigned,Adults Services,3580
3110003860,19/12/2018,14/12/2018,1245584,Single Homeless Project,Not assigned,Adults Services,713.68
3110003862,19/12/2018,14/12/2018,1243990,BCS Medical (Shackleton) Ltd,Not assigned,Adults Services,2132
3110003863,19/12/2018,14/12/2018,1243490,Haydon Park Lodge Ltd,Not assigned,Adults Services,4000
3110003864,19/12/2018,14/12/2018,1245527,Sanctuary Care Property (2) Ltd,Not assigned,Adults Services,2560
3110003865,19/12/2018,14/12/2018,1245147,MMCG (2) Ltd (Maria Mallaband Care Group Ltd),Not assigned,Adults Services,2575
3110003866,19/12/2018,14/12/2018,1245147,MMCG (2) Ltd (Maria Mallaband Care Group Ltd),Not assigned,Adults Services,5436.01
3110003867,19/12/2018,14/12/2018,1243472,Dr Toqeer Aslam,Not assigned,Adults Services,2760
3110003868,19/12/2018,14/12/2018,1248540,Priory Education Services Ltd,Not assigned,Adults Services,14879.84
3110003869,19/12/2018,14/12/2018,1247546,J Jindal Ltd,Not assigned,Adults Services,3580
3110003870,19/12/2018,14/12/2018,1243493,HC-One Oval Ltd,Not assigned,Adults Services,2600
3110003871,19/12/2018,14/12/2018,1248971,St Martin Of Tours Housing Assoc Ltd,Not assigned,Adults Services,3400
3110003872,19/12/2018,14/12/2018,1248971,St Martin Of Tours Housing Assoc Ltd,Not assigned,Adults Services,3800
3110003873,19/12/2018,14/12/2018,1243543,Springlake Care Home Ltd,Not assigned,Adults Services,6474
3110003874,19/12/2018,14/12/2018,1245147,MMCG (2) Ltd (Maria Mallaband Care Group Ltd),Not assigned,Adults Services,2567.36
3110003875,19/12/2018,14/12/2018,1245167,Quantum Care Ltd,Not assigned,Adults Services,3400
3110003876,19/12/2018,14/12/2018,1244905,Nas Services Ltd (Residential),Not assigned,Adults Services,3379.32
3110003877,19/12/2018,14/12/2018,1245091,Care UK Community Partnerships Ltd,Not assigned,Adults Services,2607.36
3110003878,19/12/2018,14/12/2018,1245091,Care UK Community Partnerships Ltd,Not assigned,Adults Services,3783.84
3110003879,19/12/2018,14/12/2018,1243469,Deepdene Care Ltd,Not assigned,Adults Services,3300
3110003880,19/12/2018,14/12/2018,1243435,Acorn Village,Not assigned,Adults Services,5221.08
3110003881,19/12/2018,14/12/2018,1247852,Look Ahead Care and Support Ltd (Main Account 30171263),Not assigned,Adults Services,1244.48
3110003882,19/12/2018,14/12/2018,1246286,Brunswick Supported,Not assigned,Adults Services,2629.28
3110003884,19/12/2018,14/12/2018,1245147,MMCG (2) Ltd (Maria Mallaband Care Group Ltd),Not assigned,Adults Services,3600
3110003885,19/12/2018,14/12/2018,1243500,Laurel Residential Homes Ltd,Not assigned,Adults Services,2900
3110003886,19/12/2018,14/12/2018,1243520,Oakview Care (Berkshire) Ltd,Not assigned,Adults Services,6383.36
3110003887,19/12/2018,14/12/2018,1243461,Connifers Care Ltd,Not assigned,Adults Services,27801.1
3110003888,19/12/2018,14/12/2018,1244437,Forward Support Ltd,Not assigned,Adults Services,4800
3110003889,19/12/2018,14/12/2018,1247651,London Care Partnership Ltd,Not assigned,Adults Services,8983.64
3110003890,19/12/2018,14/12/2018,1243555,Waterfall House Ltd,Not assigned,Adults Services,3000
3110003891,19/12/2018,14/12/2018,1245137,Jesmund Care Ltd T/A Jesmund Nursing Home,Not assigned,Adults Services,2112
3110003893,19/12/2018,14/12/2018,1243505,Lifestyle Care Ltd (Formerly Life Style Care(2005) Ltd,Not assigned,Adults Services,3500
3110003894,19/12/2018,14/12/2018,1243503,Life Opportunities Trust,Not assigned,Adults Services,6095.6
3110003895,19/12/2018,14/12/2018,1245079,Banstead Carshalton And District,Not assigned,Adults Services,2008
3110003896,19/12/2018,14/12/2018,1243566,Yarrow Housing Ltd,Not assigned,Adults Services,5210.52
3110003897,19/12/2018,14/12/2018,1245138,Jewish Care,Not assigned,Adults Services,4128.5
3110003898,19/12/2018,14/12/2018,1245156,Nazareth House,Not assigned,Adults Services,1947.8
3110003899,19/12/2018,14/12/2018,1245156,Nazareth House,Not assigned,Adults Services,2600
3110003900,19/12/2018,14/12/2018,1244479,Glenholme Mental Health,Not assigned,Adults Services,4316.96
3110003901,19/12/2018,14/12/2018,1243456,Clifton Court Development Co,Not assigned,Adults Services,2062.64
3110003902,19/12/2018,14/12/2018,1244904,Nas House,Not assigned,Adults Services,23177.26
3110003903,19/12/2018,14/12/2018,1244904,Nas House,Not assigned,Adults Services,18933.4
3110003904,19/12/2018,14/12/2018,1250358,Personal detail - redacted,Not assigned,Adults Services,1056.36
3110003905,19/12/2018,14/12/2018,1243942,Aspens Charities,Not assigned,Adults Services,5119.92
3110003906,19/12/2018,14/12/2018,1247147,Norwood Schools Ltd,Not assigned,Adults Services,8320.68
3110003907,19/12/2018,14/12/2018,1244762,Livability,Not assigned,Adults Services,5857
3110003908,19/12/2018,14/12/2018,1243450,Bupa Care Homes(AKW) Ltd - T/a Wingham Court Care Centre,Not assigned,Adults Services,11332.28
3110003909,19/12/2018,14/12/2018,1243450,Bupa Care Homes(AKW) Ltd - T/a Wingham Court Care Centre,Not assigned,Adults Services,5392.36
3110003910,19/12/2018,14/12/2018,1245117,Flying Angel Ltd (Alvina Lodge),Not assigned,Adults Services,3832
3110003911,19/12/2018,14/12/2018,1246095,Theana Ltd T/a Enlighten Homes,Not assigned,Adults Services,5892
3110003912,19/12/2018,14/12/2018,1243484,Grenham Bay Care Ltd,Not assigned,Adults Services,2847.6
3110003913,19/12/2018,14/12/2018,1243532,Sanctuary Care Ltd,Not assigned,Adults Services,1707.56
3110003915,19/12/2018,14/12/2018,1245147,MMCG (2) Ltd (Maria Mallaband Care Group Ltd),Not assigned,Adults Services,2579.8
3110003916,19/12/2018,14/12/2018,1247656,London Cyrenians Housing Ltd,Not assigned,Adults Services,764.48
3110003917,19/12/2018,14/12/2018,1245123,Healthcare Homes (LSC) Ltd,Not assigned,Adults Services,2400
3110003918,19/12/2018,14/12/2018,1245789,Acorn (Watford) Ltd,Not assigned,Adults Services,1747.6
3110003919,19/12/2018,14/12/2018,1245636,St Mungo's Broadway (Grants & General Invoicing),Not assigned,Adults Services,3052.8
3110003920,19/12/2018,14/12/2018,1245636,St Mungo's Broadway (Grants & General Invoicing),Not assigned,Adults Services,1187.2
3110003921,19/12/2018,14/12/2018,1245636,St Mungo's Broadway (Grants & General Invoicing),Not assigned,Adults Services,1102.64
3110003922,19/12/2018,14/12/2018,1243493,HC-One Oval Ltd,Not assigned,Adults Services,2267.28
3110003923,19/12/2018,14/12/2018,1248971,St Martin Of Tours Housing Assoc Ltd,Not assigned,Adults Services,3980
3110003924,19/12/2018,14/12/2018,1243458,Cocklebury Farmhouse Homes Ltd,Not assigned,Adults Services,5147.44
3110003925,19/12/2018,14/12/2018,1243458,Cocklebury Farmhouse Homes Ltd,Not assigned,Adults Services,5115.44
3110003926,19/12/2018,14/12/2018,1243458,Cocklebury Farmhouse Homes Ltd,Not assigned,Adults Services,4534.32
3110003927,19/12/2018,14/12/2018,1245169,Rcp Residential Care Providers Ltd,Not assigned,Adults Services,19813.82
3110003928,19/12/2018,14/12/2018,1245929,The Regard Partnership Ltd,Not assigned,Adults Services,5284.12
3110003929,19/12/2018,14/12/2018,1245929,The Regard Partnership Ltd,Not assigned,Adults Services,3375.88
3110003930,19/12/2018,14/12/2018,1245005,Outlook Care,Not assigned,Adults Services,4191.68
3110003931,19/12/2018,14/12/2018,1245005,Outlook Care,Not assigned,Adults Services,840
3110003932,19/12/2018,14/12/2018,1243566,Yarrow Housing Ltd,Not assigned,Adults Services,8301.92
3110003933,19/12/2018,14/12/2018,1246327,Canterbury Oast Trust Ltd,Not assigned,Adults Services,3346.16
3110003934,19/12/2018,14/12/2018,1245091,Care UK Community Partnerships Ltd,Not assigned,Adults Services,2607.36
3110003935,19/12/2018,14/12/2018,1243566,Yarrow Housing Ltd,Not assigned,Adults Services,5563
3110003936,19/12/2018,14/12/2018,1243566,Yarrow Housing Ltd,Not assigned,Adults Services,1408.68
3110003937,19/12/2018,14/12/2018,1243549,St Georges Retreat,Not assigned,Adults Services,2007.92
3110003938,19/12/2018,14/12/2018,1245138,Jewish Care,Not assigned,Adults Services,2485.55
3110003939,19/12/2018,14/12/2018,1243497,Lansdowne Care Home,Not assigned,Adults Services,5739.12
3110003940,19/12/2018,14/12/2018,1243445,Broadstreet House Limited,Not assigned,Adults Services,4775.55
3110003942,19/12/2018,14/12/2018,1243851,Accomplish Group Ltd,Not assigned,Adults Services,14400
3110003943,19/12/2018,14/12/2018,1243481,Gold Care Homes Ltd,Not assigned,Adults Services,3060
3110003944,19/12/2018,14/12/2018,1243510,Manor Rest Home,Not assigned,Adults Services,5775.25
3110003945,19/12/2018,14/12/2018,1244904,Nas House,Not assigned,Adults Services,2800
3110003946,19/12/2018,14/12/2018,1245126,Heatherwood Nursing Home Ltd T/A Willow Lodge Nursing Home,Not assigned,Adults Services,3377.37
3110003947,19/12/2018,14/12/2018,1245126,Heatherwood Nursing Home Ltd T/A Willow Lodge Nursing Home,Not assigned,Adults Services,4940.59
3110003949,19/12/2018,14/12/2018,1243447,Bupa Care Homes (ANS) Ltd - T/a Middlesex Manor Nursing Centre,Not assigned,Adults Services,2332.74
3110003950,19/12/2018,14/12/2018,1245172,Richmond Health Care Ltd,Not assigned,Adults Services,34095.71
3110003951,19/12/2018,14/12/2018,1245021,Paradise Community,Not assigned,Adults Services,10091.68
3110003952,19/12/2018,14/12/2018,1243503,Life Opportunities Trust,Not assigned,Adults Services,3399
3110003953,19/12/2018,14/12/2018,1246937,Equinox Care,Not assigned,Adults Services,2512.08
3110003954,19/12/2018,14/12/2018,1243553,Voyage,Not assigned,Adults Services,4015.32
3110003955,19/12/2018,14/12/2018,1246681,Disabilities Trust,Not assigned,Adults Services,2678.48
3110003956,19/12/2018,14/12/2018,1243453,Bupa Care Homes(ANS ) Ltd - T/a Meadbank Nursing Home,Not assigned,Adults Services,2460
3110003957,19/12/2018,14/12/2018,1243453,Bupa Care Homes(ANS ) Ltd - T/a Meadbank Nursing Home,Not assigned,Adults Services,2926.17
3110003958,19/12/2018,14/12/2018,1243453,Bupa Care Homes(ANS ) Ltd - T/a Meadbank Nursing Home,Not assigned,Adults Services,10173.4
3110003959,19/12/2018,14/12/2018,1243437,Amberley House Private Residential Home,Not assigned,Adults Services,2900
3110003960,19/12/2018,14/12/2018,1243547,St David'S Home For,Not assigned,Adults Services,4175
3110003961,19/12/2018,14/12/2018,1243547,St David'S Home For,Not assigned,Adults Services,3192
3110003962,19/12/2018,14/12/2018,1243452,Bupa Care Homes(ANS ) Ltd - T/a Collingwood Court Nursing Centre,Not assigned,Adults Services,1746.05
3110003963,19/12/2018,14/12/2018,1243446,Brook House,Not assigned,Adults Services,2062.8
3110004344,20/12/2018,30/08/2017,1246341,Carewatch Care Services Ltd  ,Not assigned,Adults Services,2287.5
3110004346,20/12/2018,05/12/2018,1246341,Carewatch Care Services Ltd  ,Not assigned,Adults Services,1813.5
3110004354,20/12/2018,30/08/2017,1246341,Carewatch Care Services Ltd  ,Not assigned,Adults Services,1687.5
3110004356,20/12/2018,11/12/2018,1248474,Personal detail - redacted,Not assigned,Adults Services,696.4
3110004357,20/12/2018,11/12/2018,1250238,Personal detail - redacted,Not assigned,Adults Services,689.12
3110004358,20/12/2018,11/12/2018,1250302,Personal detail - redacted,Not assigned,Adults Services,1473.36
3110004359,20/12/2018,11/12/2018,1250382,Personal detail - redacted,Not assigned,Adults Services,1897.6
3110004360,20/12/2018,11/12/2018,1250516,Personal detail - redacted,Not assigned,Adults Services,2121.12
3110004361,20/12/2018,11/12/2018,1250673,Personal detail - redacted,Not assigned,Adults Services,749.32
3110004364,20/12/2018,11/12/2018,1250375,Personal detail - redacted,Not assigned,Adults Services,1624.6
3110004365,20/12/2018,11/12/2018,1248824,Personal detail - redacted,Not assigned,Adults Services,1353.48
3110004367,20/12/2018,11/12/2018,1247804,Personal detail - redacted,Not assigned,Adults Services,902.4
3110004368,20/12/2018,11/12/2018,1248150,Personal detail - redacted,Not assigned,Adults Services,975.48
3110004371,20/12/2018,11/12/2018,1247473,Personal detail - redacted,Not assigned,Adults Services,2356.08
3110004372,20/12/2018,11/12/2018,1248128,Personal detail - redacted,Not assigned,Adults Services,1888.76
3110004375,20/12/2018,11/12/2018,1245611,Solo Support Services Ltd,Not assigned,Adults Services,17500
3110004376,20/12/2018,11/12/2018,1249999,Personal detail - redacted,Not assigned,Adults Services,4400
3110004377,20/12/2018,11/12/2018,1249004,Personal detail - redacted,Not assigned,Adults Services,1550
3110004378,20/12/2018,11/12/2018,1250334,Personal detail - redacted,Not assigned,Adults Services,1102.16
3110004379,20/12/2018,11/12/2018,1250224,Personal detail - redacted,Not assigned,Adults Services,9055.76
3110004380,20/12/2018,11/12/2018,1250505,Personal detail - redacted,Not assigned,Adults Services,769.88
3110004382,20/12/2018,11/12/2018,1250384,Personal detail - redacted,Not assigned,Adults Services,1263.36
3110004383,20/12/2018,11/12/2018,1248037,Personal detail - redacted,Not assigned,Adults Services,1398.72
3110004384,20/12/2018,11/12/2018,1247823,Personal detail - redacted,Not assigned,Adults Services,676.8
3110004386,20/12/2018,11/12/2018,1248410,Personal detail - redacted,Not assigned,Adults Services,7791.24
3110004387,20/12/2018,11/12/2018,1250362,Personal detail - redacted,Not assigned,Adults Services,1321.2
3110004388,20/12/2018,11/12/2018,1248655,Personal detail - redacted,Not assigned,Adults Services,542.64
3110004389,20/12/2018,11/12/2018,1250570,Personal detail - redacted,Not assigned,Adults Services,786.04
3110004391,20/12/2018,11/12/2018,1247707,Personal detail - redacted,Not assigned,Adults Services,744.48
3110004392,20/12/2018,11/12/2018,1247444,Personal detail - redacted,Not assigned,Adults Services,4176.24
3110004397,20/12/2018,11/12/2018,1247345,Personal detail - redacted,Not assigned,Adults Services,560
3110004399,20/12/2018,11/12/2018,1248010,Personal detail - redacted,Not assigned,Adults Services,541.44
3110004400,20/12/2018,11/12/2018,1249829,Personal detail - redacted,Not assigned,Adults Services,825.24
3110004402,20/12/2018,11/12/2018,1250138,Personal detail - redacted,Not assigned,Adults Services,1200
3110004403,20/12/2018,11/12/2018,1248705,Personal detail - redacted,Not assigned,Adults Services,541.44
3110004407,20/12/2018,11/12/2018,1247679,Personal detail - redacted,Not assigned,Adults Services,1240
3110004408,20/12/2018,11/12/2018,1248830,Personal detail - redacted,Not assigned,Adults Services,630
3110004409,20/12/2018,11/12/2018,1247704,Personal detail - redacted,Not assigned,Adults Services,2023.6
3110004413,20/12/2018,11/12/2018,1250500,Personal detail - redacted,Not assigned,Adults Services,737.28
3110004414,20/12/2018,11/12/2018,1250048,Personal detail - redacted,Not assigned,Adults Services,869.84
3110004415,20/12/2018,11/12/2018,1247676,Personal detail - redacted,Not assigned,Adults Services,1320
3110004416,20/12/2018,11/12/2018,1250074,Personal detail - redacted,Not assigned,Adults Services,5747.04
3110004417,20/12/2018,11/12/2018,1248049,Personal detail - redacted,Not assigned,Adults Services,669.24
3110004420,20/12/2018,11/12/2018,1250642,Personal detail - redacted,Not assigned,Adults Services,900
3110004421,20/12/2018,11/12/2018,1248002,Personal detail - redacted,Not assigned,Adults Services,1160
3110004422,20/12/2018,11/12/2018,1250568,Personal detail - redacted,Not assigned,Adults Services,2886.84
3110004423,20/12/2018,11/12/2018,1249845,Personal detail - redacted,Not assigned,Adults Services,4579.24
3110004425,20/12/2018,11/12/2018,1250031,Personal detail - redacted,Not assigned,Adults Services,2338.6
3110004426,20/12/2018,11/12/2018,1250447,Personal detail - redacted,Not assigned,Adults Services,1312.64
3110004429,20/12/2018,11/12/2018,1250186,Personal detail - redacted,Not assigned,Adults Services,2540
3110004430,20/12/2018,11/12/2018,1248096,Personal detail - redacted,Not assigned,Adults Services,976
3110004432,20/12/2018,11/12/2018,1250299,Personal detail - redacted,Not assigned,Adults Services,2101.92
3110004433,20/12/2018,11/12/2018,1248459,Personal detail - redacted,Not assigned,Adults Services,675.2
3110004434,20/12/2018,11/12/2018,1247751,Personal detail - redacted,Not assigned,Adults Services,2759
3110004435,20/12/2018,11/12/2018,1248672,Personal detail - redacted,Not assigned,Adults Services,732
3110004438,20/12/2018,11/12/2018,1248439,Personal detail - redacted,Not assigned,Adults Services,1302
3110004439,20/12/2018,11/12/2018,1250592,Personal detail - redacted,Not assigned,Adults Services,1070
3110004444,20/12/2018,11/12/2018,1250191,Personal detail - redacted,Not assigned,Adults Services,1512
3110004445,20/12/2018,11/12/2018,1250591,Personal detail - redacted,Not assigned,Adults Services,641.68
3110004450,20/12/2018,11/12/2018,1250570,Personal detail - redacted,Not assigned,Adults Services,1263.36
3110004451,20/12/2018,11/12/2018,1250338,Personal detail - redacted,Not assigned,Adults Services,3722.4
3110004452,20/12/2018,11/12/2018,1247697,Personal detail - redacted,Not assigned,Adults Services,737.52
3110004453,20/12/2018,11/12/2018,1248812,Personal detail - redacted,Not assigned,Adults Services,1006.6
3110004455,20/12/2018,11/12/2018,1250627,Personal detail - redacted,Not assigned,Adults Services,2253
3110004457,20/12/2018,11/12/2018,1247693,Personal detail - redacted,Not assigned,Adults Services,2336
3110004458,20/12/2018,11/12/2018,1250365,Personal detail - redacted,Not assigned,Adults Services,3472
3110004462,20/12/2018,11/12/2018,1248168,Personal detail - redacted,Not assigned,Adults Services,2560
3110004465,20/12/2018,11/12/2018,1248156,Personal detail - redacted,Not assigned,Adults Services,1426
3110004466,20/12/2018,11/12/2018,1249825,Personal detail - redacted,Not assigned,Adults Services,826.56
3110004468,20/12/2018,11/12/2018,1247386,Personal detail - redacted,Not assigned,Adults Services,2044
3110004470,20/12/2018,11/12/2018,1250626,Personal detail - redacted,Not assigned,Adults Services,1576
3110004471,20/12/2018,11/12/2018,1250454,Personal detail - redacted,Not assigned,Adults Services,1699.6
3110004472,20/12/2018,11/12/2018,1248773,Personal detail - redacted,Not assigned,Adults Services,554.28
3110004475,20/12/2018,11/12/2018,1248423,Personal detail - redacted,Not assigned,Adults Services,576
3110004476,20/12/2018,11/12/2018,1248031,Personal detail - redacted,Not assigned,Adults Services,1437.4
3110004477,20/12/2018,11/12/2018,1249807,Personal detail - redacted,Not assigned,Adults Services,1138
3110004478,20/12/2018,11/12/2018,1248751,Personal detail - redacted,Not assigned,Adults Services,1085
3110004479,20/12/2018,11/12/2018,1249911,Personal detail - redacted,Not assigned,Adults Services,1607.76
3110004480,20/12/2018,11/12/2018,1250042,Personal detail - redacted,Not assigned,Adults Services,2089.56
3110004482,20/12/2018,11/12/2018,1247724,Personal detail - redacted,Not assigned,Adults Services,3389
3110004483,20/12/2018,11/12/2018,1250629,Personal detail - redacted,Not assigned,Adults Services,2324.92
3110004485,20/12/2018,11/12/2018,1249905,Personal detail - redacted,Not assigned,Adults Services,1049.28
3110004486,20/12/2018,11/12/2018,1248651,Personal detail - redacted,Not assigned,Adults Services,1080
3110004488,20/12/2018,11/12/2018,1250656,Personal detail - redacted,Not assigned,Adults Services,1118.36
3110004489,20/12/2018,11/12/2018,1247755,Personal detail - redacted,Not assigned,Adults Services,1050
3110004493,20/12/2018,11/12/2018,1250600,Personal detail - redacted,Not assigned,Adults Services,2400
3110004496,20/12/2018,11/12/2018,1248831,Personal detail - redacted,Not assigned,Adults Services,1693.24
3110004497,20/12/2018,11/12/2018,1248354,Personal detail - redacted,Not assigned,Adults Services,1624.32
3110004498,20/12/2018,11/12/2018,1248413,Personal detail - redacted,Not assigned,Adults Services,1399.32
3110004499,20/12/2018,11/12/2018,1248328,Personal detail - redacted,Not assigned,Adults Services,794.57
3110004501,20/12/2018,11/12/2018,1248058,Personal detail - redacted,Not assigned,Adults Services,553.88
3110004502,20/12/2018,11/12/2018,1249844,Personal detail - redacted,Not assigned,Adults Services,9048.72
3110004504,20/12/2018,11/12/2018,1248470,Personal detail - redacted,Not assigned,Adults Services,522.4
3110004505,20/12/2018,11/12/2018,1250289,Personal detail - redacted,Not assigned,Adults Services,742
3110004506,20/12/2018,11/12/2018,1250093,Personal detail - redacted,Not assigned,Adults Services,2025.76
3110004507,20/12/2018,11/12/2018,1247754,Personal detail - redacted,Not assigned,Adults Services,710.84
3110004508,20/12/2018,11/12/2018,1250177,Personal detail - redacted,Not assigned,Adults Services,1448.44
3110004509,20/12/2018,11/12/2018,1250546,Personal detail - redacted,Not assigned,Adults Services,1042.88
3110004510,20/12/2018,11/12/2018,1249978,Personal detail - redacted,Not assigned,Adults Services,812.16
3110004511,20/12/2018,11/12/2018,1250286,Personal detail - redacted,Not assigned,Adults Services,2707.2
3110004512,20/12/2018,11/12/2018,1250068,Personal detail - redacted,Not assigned,Adults Services,740
3110004513,20/12/2018,11/12/2018,1250598,Personal detail - redacted,Not assigned,Adults Services,2166.52
3110004515,20/12/2018,11/12/2018,1248353,Personal detail - redacted,Not assigned,Adults Services,9128
3110004517,20/12/2018,11/12/2018,1250115,Personal detail - redacted,Not assigned,Adults Services,1181.8
3110004518,20/12/2018,11/12/2018,1250310,Personal detail - redacted,Not assigned,Adults Services,1368
3110004519,20/12/2018,11/12/2018,1250083,Personal detail - redacted,Not assigned,Adults Services,1193.6
3110004522,20/12/2018,11/12/2018,1248790,Personal detail - redacted,Not assigned,Adults Services,1189.32
3110004523,20/12/2018,11/12/2018,1248129,Personal detail - redacted,Not assigned,Adults Services,2160.2
3110004524,20/12/2018,11/12/2018,1248397,Personal detail - redacted,Not assigned,Adults Services,1232
3110004525,20/12/2018,11/12/2018,1247408,Personal detail - redacted,Not assigned,Adults Services,7120.84
3110004526,20/12/2018,11/12/2018,1248777,Personal detail - redacted,Not assigned,Adults Services,1020
3110004528,20/12/2018,11/12/2018,1250137,Personal detail - redacted,Not assigned,Adults Services,1720
3110004530,20/12/2018,11/12/2018,1249834,Personal detail - redacted,Not assigned,Adults Services,902.4
3110004531,20/12/2018,11/12/2018,1249796,Personal detail - redacted,Not assigned,Adults Services,721.92
3110004532,20/12/2018,11/12/2018,1248803,Personal detail - redacted,Not assigned,Adults Services,902.4
3110004535,20/12/2018,11/12/2018,1250525,Personal detail - redacted,Not assigned,Adults Services,1531.08
3110004538,20/12/2018,11/12/2018,1250419,Personal detail - redacted,Not assigned,Adults Services,1062.64
3110004539,20/12/2018,11/12/2018,1248766,Personal detail - redacted,Not assigned,Adults Services,1120
3110004540,20/12/2018,11/12/2018,1247479,Personal detail - redacted,Not assigned,Adults Services,1396.84
3110004541,20/12/2018,11/12/2018,1248327,Personal detail - redacted,Not assigned,Adults Services,870.72
3110004545,20/12/2018,14/12/2018,D000000016,Personal detail - redacted,Not assigned,Housing Revenue Acco,10798.37
3110004546,20/12/2018,11/12/2018,1250488,Personal detail - redacted,Not assigned,Adults Services,1260
3110004547,20/12/2018,17/12/2018,D000000016,Personal detail - redacted,Not assigned,Housing Revenue Acco,1120
3110004548,20/12/2018,19/12/2018,D000000016,Personal detail - redacted,Not assigned,Childrens Services,1500
3110004549,20/12/2018,11/12/2018,1250107,Personal detail - redacted,Not assigned,Adults Services,1000
3110004552,20/12/2018,11/12/2018,1247389,Personal detail - redacted,Not assigned,Adults Services,523.04
3110004554,20/12/2018,19/12/2018,D000000016,Personal detail - redacted,Not assigned,Housing Revenue Acco,956.01
3110004556,20/12/2018,19/12/2018,D000000016,Personal detail - redacted,Not assigned,Housing Revenue Acco,966
3110004557,20/12/2018,11/12/2018,1245611,Solo Support Services Ltd,Not assigned,Adults Services,2165.84
3110004560,20/12/2018,11/12/2018,1248805,Personal detail - redacted,Not assigned,Adults Services,1260
3110004561,20/12/2018,19/12/2018,D000000016,Personal detail - redacted,Not assigned,Housing Revenue Acco,2997.38
3110004562,20/12/2018,20/12/2018,D000000016,Personal detail - redacted,Not assigned,Housing Revenue Acco,6211.66
3110004563,20/12/2018,11/12/2018,1250636,Personal detail - redacted,Not assigned,Adults Services,1710
3110004564,20/12/2018,19/12/2018,D000000016,Personal detail - redacted,Not assigned,Housing Revenue Acco,4000
3110004566,20/12/2018,11/12/2018,1248983,Personal detail - redacted,Not assigned,Adults Services,1772
3110004568,20/12/2018,20/12/2018,D000000016,Personal detail - redacted,Not assigned,Housing Revenue Acco,1029.63
3110004569,20/12/2018,11/12/2018,1248016,Personal detail - redacted,Not assigned,Adults Services,1179.84
3110004570,20/12/2018,11/12/2018,1248148,Personal detail - redacted,Not assigned,Adults Services,1638.96
3110004572,20/12/2018,11/12/2018,1250660,Personal detail - redacted,Not assigned,Adults Services,620
3110004573,20/12/2018,11/12/2018,1247374,Age Concern Westminster,Not assigned,Adults Services,2289.6
3110004574,20/12/2018,11/12/2018,1248406,Personal detail - redacted,Not assigned,Adults Services,1304.4
3110004576,20/12/2018,11/12/2018,1250367,Personal detail - redacted,Not assigned,Adults Services,721.92
3110004577,20/12/2018,11/12/2018,1250482,Personal detail - redacted,Not assigned,Adults Services,4072.32
3110004578,20/12/2018,11/12/2018,1247500,Personal detail - redacted,Not assigned,Adults Services,564
3110004579,20/12/2018,11/12/2018,1248678,Personal detail - redacted,Not assigned,Adults Services,1353.6
3110004582,20/12/2018,11/12/2018,1250510,Personal detail - redacted,Not assigned,Adults Services,1185.32
3110004583,20/12/2018,11/12/2018,1250360,Personal detail - redacted,Not assigned,Adults Services,2220.92
3110004589,20/12/2018,11/12/2018,1250308,Personal detail - redacted,Not assigned,Adults Services,2201
3110004591,20/12/2018,11/12/2018,1250368,Personal detail - redacted,Not assigned,Adults Services,1794.08
3110004594,20/12/2018,11/12/2018,1250164,Personal detail - redacted,Not assigned,Adults Services,7220
3110004596,20/12/2018,11/12/2018,1250318,Personal detail - redacted,Not assigned,Adults Services,594.56
3110004599,20/12/2018,11/12/2018,1250249,Personal detail - redacted,Not assigned,Adults Services,699.36
3110004600,20/12/2018,11/12/2018,1248808,Personal detail - redacted,Not assigned,Adults Services,676.8
3110004601,20/12/2018,11/12/2018,1249981,Personal detail - redacted,Not assigned,Adults Services,658.52
3110004602,20/12/2018,11/12/2018,1247821,Personal detail - redacted,Not assigned,Adults Services,737.52
3110004603,20/12/2018,11/12/2018,1247355,Personal detail - redacted,Not assigned,Adults Services,2030.4
3110004604,20/12/2018,11/12/2018,1250181,Personal detail - redacted,Not assigned,Adults Services,5158.4
3110004606,20/12/2018,11/12/2018,1250072,Personal detail - redacted,Not assigned,Adults Services,1139.56
3110004612,20/12/2018,11/12/2018,1248745,Personal detail - redacted,Not assigned,Adults Services,1488.96
3110004614,20/12/2018,11/12/2018,1248420,Personal detail - redacted,Not assigned,Adults Services,1085
3110004615,20/12/2018,11/12/2018,1247997,Personal detail - redacted,Not assigned,Adults Services,1866
3110004617,20/12/2018,11/12/2018,1250028,Personal detail - redacted,Not assigned,Adults Services,3435.04
3110004618,20/12/2018,11/12/2018,1248357,Personal detail - redacted,Not assigned,Adults Services,1400
3110004622,20/12/2018,11/12/2018,1248440,Personal detail - redacted,Not assigned,Adults Services,930.92
3110004624,20/12/2018,11/12/2018,1248167,Personal detail - redacted,Not assigned,Adults Services,1025.72
3110004626,20/12/2018,11/12/2018,1250225,Personal detail - redacted,Not assigned,Adults Services,1956.48
3110004627,20/12/2018,11/12/2018,1250464,Personal detail - redacted,Not assigned,Adults Services,1346.4
3110004628,20/12/2018,11/12/2018,1248742,Personal detail - redacted,Not assigned,Adults Services,1755.12
3110004629,20/12/2018,11/12/2018,1248022,Personal detail - redacted,Not assigned,Adults Services,3196.96
3110004630,20/12/2018,11/12/2018,1247715,Personal detail - redacted,Not assigned,Adults Services,2323.8
3110004636,20/12/2018,11/12/2018,1248000,Personal detail - redacted,Not assigned,Adults Services,2400
3110004638,20/12/2018,11/12/2018,1250129,Personal detail - redacted,Not assigned,Adults Services,1021.2
3110004640,20/12/2018,11/12/2018,1250439,Personal detail - redacted,Not assigned,Adults Services,549.8
3110004641,20/12/2018,11/12/2018,1249947,Personal detail - redacted,Not assigned,Adults Services,2586.72
3110004643,20/12/2018,11/12/2018,1248146,Personal detail - redacted,Not assigned,Adults Services,840
3110004644,20/12/2018,11/12/2018,1250504,Personal detail - redacted,Not assigned,Adults Services,754.88
3110004645,20/12/2018,11/12/2018,1248403,Personal detail - redacted,Not assigned,Adults Services,1644
3110004651,20/12/2018,11/12/2018,1250654,Personal detail - redacted,Not assigned,Adults Services,533.84
3110004652,20/12/2018,11/12/2018,1248718,Personal detail - redacted,Not assigned,Adults Services,1260
3110004654,20/12/2018,11/12/2018,1250104,Personal detail - redacted,Not assigned,Adults Services,640
3110004656,20/12/2018,11/12/2018,1250463,Personal detail - redacted,Not assigned,Adults Services,868
3110004657,20/12/2018,11/12/2018,1250674,Personal detail - redacted,Not assigned,Adults Services,1177.6
3110004658,20/12/2018,11/12/2018,1250245,Personal detail - redacted,Not assigned,Adults Services,558
3110004659,20/12/2018,11/12/2018,1250650,Personal detail - redacted,Not assigned,Adults Services,996
3110004661,20/12/2018,11/12/2018,1248154,Personal detail - redacted,Not assigned,Adults Services,1540
3110004662,20/12/2018,11/12/2018,1248722,Personal detail - redacted,Not assigned,Adults Services,1829
3110004663,20/12/2018,11/12/2018,1247829,Personal detail - redacted,Not assigned,Adults Services,1242.24
3110004666,20/12/2018,11/12/2018,1248145,Personal detail - redacted,Not assigned,Adults Services,799.6
3110004667,20/12/2018,11/12/2018,1250166,Personal detail - redacted,Not assigned,Adults Services,1143
3110004669,20/12/2018,11/12/2018,1248457,Personal detail - redacted,Not assigned,Adults Services,1550
